Workbook

Sheet Feuille-match
B3: =CONCATENATE("Journée ",Journee_classement+1) -> Journée 8 | D3: Ne remplir que les cases sur fond blanc | J3: Après vos matchs, pensez à transmettre ce fichier aux responsables ci-contre : | K3: veteran@cdbebillard91.fr
B4: =INDEX(Dates,Journee_classement+1) -> 2026-01-20 | K4: com-sportive@cdbebillard91.fr
B5: 17
B8: EQUIPE RECEVANTE : | C8: - | J8: EQUIPE VISITEUSE : | K8: -
K9: 6
B10: NOM DES JOUEURS | J10: NOM DES JOUEURS
B12: Libre | C12: distance | D12: pts réal. | E12: reprises | F12: moyenne | H12: pt match | J12: Libre | K12: distance | L12: pts réal. | M12: reprises | N12: moyenne | P12: pt match
B13: - | C13: =IFERROR(ROUND(INDEX(Distance_libre,MATCH(B13,Joueurs,0)),0),"") ->  | F13: =IF(E13="","",D13/E13) ->  | H13: =IF(D13=0,"",IF(C13=D13,IF(K13=L13,2,3),IF(D13<C13,1))) ->  | J13: - | K13: =IFERROR(ROUND(INDEX(Distance_libre,MATCH(J13,Joueurs,0)),0),"") ->  | N13: =IF(M13="","",L13/M13) ->  | P13: =IF(L13=0,"",IF(K13=L13,IF(D13=C13,2,3),IF(L13<K13,1))) -> 
B15: Bande | C15: distance | D15: pts réal. | E15: reprises | F15: moyenne | H15: pts match | J15: Bande | K15: distance | L15: pts réal. | M15: reprises | N15: moyenne | P15: pts match
B16: - | C16: =IFERROR(ROUND(INDEX(Distance_bande,MATCH(B16,Joueurs,0)),0),"") ->  | F16: =IF(E16="","",D16/E16) ->  | H16: =IF(D16=0,"",IF(C16=D16,IF(K16=L16,2,3),IF(D16<C16,1))) ->  | J16: - | K16: =IFERROR(ROUND(INDEX(Distance_bande,MATCH(J16,Joueurs,0)),0),"") ->  | N16: =IF(M16="","",L16/M16) ->  | P16: =IF(L16=0,"",IF(K16=L16,IF(D16=C16,2,3),IF(L16<K16,1))) -> 
B18: 3 Bandes | C18: distance | D18: pts réal. | E18: reprises | F18: moyenne | H18: pts match | J18: 3 Bandes | K18: distance | L18: pts réal. | M18: reprises | N18: moyenne | P18: pts match
B19: - | C19: =IFERROR(ROUND(INDEX(Distance_3bandes,MATCH(B19,Joueurs,0)),0),"") ->  | F19: =IF(E19="","",D19/E19) ->  | H19: =IF(D19=0,"",IF(C19=D19,IF(K19=L19,2,3),IF(D19<C19,1))) ->  | J19: - | K19: =IFERROR(ROUND(INDEX(Distance_3bandes,MATCH(J19,Joueurs,0)),0),"") ->  | N19: =IF(M19="","",L19/M19) ->  | P19: =IF(L19=0,"",IF(K19=L19,IF(D19=C19,2,3),IF(L19<K19,1))) -> 
B21: 5 Quilles | C21: distance | D21: 1er set | E21: 2nd set | J21: 5 Quilles | K21: distance | L21: 1er set | M21: 2nd set
B22: - | C22: =IFERROR(ROUND(INDEX(Distance_5quilles,MATCH(B22,Joueurs,0)),0),"") ->  | F22: =IF(D22=C22,1,0) -> 1 | G22: =IF(E22=C22,1,0) -> 1 | H22: =IF(D22=0,"",IF(F22+G22=2,3,IF(F22+G22=1,2,1))) ->  | J22: - | K22: =IFERROR(ROUND(INDEX(Distance_5quilles,MATCH(J22,Joueurs,0)),0),"") ->  | N22: =IF(L22=K22,1,0) -> 1 | O22: =IF(M22=K22,1,0) -> 1 | P22: =IF(L22=0,"",IF(N22+O22=2,3,IF(N22+O22=1,2,1))) -> 
B24: TOTAUX | C24: =IFERROR(SUM(C13+C16+C19+C22),0) -> 0 | D24: =IFERROR(SUM(D13+D16+D19+D22),0) -> 0 | E24: coef. Pond. | F24: =IFERROR((D13*1+D16*2+D19*5+(D22+E22)*0.5)/(C13*1+C16*2+C19*5+2*C22*0.5),0) -> 0 | J24: TOTAUX | K24: =IFERROR(SUM(K13+K16+K19+K22),0) -> 0 | L24: =IFERROR(SUM(L13+L16+L19+L22),0) -> 0 | M24: coef. Pond. | N24: =IFERROR((L13*1+L16*2+L19*5+(L22+M22)*0.5)/(K13*1+K16*2+K19*5+2*K22*0.5),0) -> 0
B26: points obtenus par l'équipe : >>>>>>>>>>>> >>>>>>>>>>>>>>>>>>> | H26: =IF(H13="","",H13+H16+H19+H22) ->  | J26: points obtenus par l'équipe : >>>>>>>>>>>> >>>>>>>>>>>>>>>>>>> | P26: =IF(P13="","",P13+P16+P19+P22) -> 
B29: NOM du CAPITAINE | E29: signature | J29: NOM du CAPITAINE | M29: signature
E32: X | M32: X
B33: 19 | J33: 19
C34: ATTENTION : > SI JOUEUR FORFAIT, CLIQUER SUR LE COIN ROUGE!!!
B35: Lorsqu'une équipe est incomplète, l'un des 3 joueurs devra disputer 2 modes de jeu différents. Ce joueur et les modes de jeu qu'il fera seront définis avant le début des matchs par le capitaine de l'équipe incomplète.Ce cas de figure ne sera accepté que 2 fois dans la saison.

Sheet Etiquettes
A1: ='Feuille-match'!C8 -> - | H1: ='Feuille-match'!C13 -> 
A6: ='Feuille-match'!B13 -> - | H6: LIBRE
A11: ='Feuille-match'!K8 -> - | H11: ='Feuille-match'!K13 -> 
A16: ='Feuille-match'!J13 -> - | H16: LIBRE
A21: =A1 -> - | H21: ='Feuille-match'!C16 -> 
A26: ='Feuille-match'!B16 -> - | H26: BANDE
A31: =A11 -> - | H31: ='Feuille-match'!K16 -> 
A36: ='Feuille-match'!J16 -> - | H36: BANDE
A41: =A1 -> - | H41: ='Feuille-match'!C19 -> 
A46: ='Feuille-match'!B19 -> - | H46: 3 BANDES
A51: =A11 -> - | H51: ='Feuille-match'!K19 -> 
A56: ='Feuille-match'!J19 -> - | H56: 3 BANDES
A61: =A1 -> - | H61: ='Feuille-match'!C22 -> 
A66: ='Feuille-match'!B22 -> - | H66: 5 QUILLES
A71: =A11 -> - | H71: ='Feuille-match'!K22 -> 
A76: ='Feuille-match'!J22 -> - | H76: 5 QUILLES

Sheet Classement
A1: CIRCUIT VETERAN ESSONNE 2024 / 2025 au : | M1: =IF(Journee_classement>0,INDEX(Dates,Journee_classement),"") -> 2026-01-13
D3: 7 | E3: ème journée
B5: Classement | D5: pts | G5: jouées | I5: pour | K5: contre | M5: différence | O5: coefficient
A6: 1 | B6: ='Calculs equipes'!I53 -> MORANGIS1 | D6: ='Calculs equipes'!K53 -> 18 | G6: ='Calculs equipes'!J53 -> 7 | I6: ='Calculs equipes'!L53 -> 65 | K6: ='Calculs equipes'!M53 -> 47 | M6: ='Calculs equipes'!N53 -> 18 | O6: ='Calculs equipes'!O53 -> 0.9303175049
A7: 2 | B7: ='Calculs equipes'!I54 -> MASSY | D7: ='Calculs equipes'!K54 -> 17 | G7: ='Calculs equipes'!J54 -> 7 | I7: ='Calculs equipes'!L54 -> 63 | K7: ='Calculs equipes'!M54 -> 49 | M7: ='Calculs equipes'!N54 -> 14 | O7: ='Calculs equipes'!O54 -> 0.8501552795
A8: 3 | B8: ='Calculs equipes'!I55 -> MORANGIS2 | D8: ='Calculs equipes'!K55 -> 17 | G8: ='Calculs equipes'!J55 -> 7 | I8: ='Calculs equipes'!L55 -> 57 | K8: ='Calculs equipes'!M55 -> 55 | M8: ='Calculs equipes'!N55 -> 2 | O8: ='Calculs equipes'!O55 -> 0.8596938776
A9: 4 | B9: ='Calculs equipes'!I56 -> ARPAJON | D9: ='Calculs equipes'!K56 -> 14 | G9: ='Calculs equipes'!J56 -> 7 | I9: ='Calculs equipes'!L56 -> 56 | K9: ='Calculs equipes'!M56 -> 56 | M9: ='Calculs equipes'!N56 -> 0 | O9: ='Calculs equipes'!O56 -> 0.8951048951
A10: 5 | B10: ='Calculs equipes'!I57 -> VIGNEUX1 | D10: ='Calculs equipes'!K57 -> 13 | G10: ='Calculs equipes'!J57 -> 7 | I10: ='Calculs equipes'!L57 -> 52 | K10: ='Calculs equipes'!M57 -> 60 | M10: ='Calculs equipes'!N57 -> -8 | O10: ='Calculs equipes'!O57 -> 0.8694563662
A11: 6 | B11: ='Calculs equipes'!I58 -> DRAVEIL | D11: ='Calculs equipes'!K58 -> 11 | G11: ='Calculs equipes'!J58 -> 6 | I11: ='Calculs equipes'!L58 -> 48 | K11: ='Calculs equipes'!M58 -> 48 | M11: ='Calculs equipes'!N58 -> 0 | O11: ='Calculs equipes'!O58 -> 0.8859002169
A12: 7 | B12: ='Calculs equipes'!I59 -> ETRECHY | D12: ='Calculs equipes'!K59 -> 10 | G12: ='Calculs equipes'!J59 -> 6 | I12: ='Calculs equipes'!L59 -> 43 | K12: ='Calculs equipes'!M59 -> 53 | M12: ='Calculs equipes'!N59 -> -10 | O12: ='Calculs equipes'!O59 -> 0.8189768255
A13: 8 | B13: ='Calculs equipes'!I60 -> VIGNEUX2 | D13: ='Calculs equipes'!K60 -> 8 | G13: ='Calculs equipes'!J60 -> 7 | I13: ='Calculs equipes'!L60 -> 48 | K13: ='Calculs equipes'!M60 -> 64 | M13: ='Calculs equipes'!N60 -> -16 | O13: ='Calculs equipes'!O60 -> 0.7878532265
A14: 9 | B14: ='Calculs equipes'!I61 -> - | D14: ='Calculs equipes'!K61 -> 0 | G14: ='Calculs equipes'!J61 ->  | I14: ='Calculs equipes'!L61 -> 0 | K14: ='Calculs equipes'!M61 -> 0 | M14: ='Calculs equipes'!N61 -> 0 | O14: ='Calculs equipes'!O61 -> 
B16: Matchs du : | C16: =INDEX(Dates,D3) -> 2026-01-13 | F16: Résultats
B19: Morangis1 - Vigneux2 | G19: =IFERROR(CONCATENATE(INDEX(Matchs,MATCH(B19,Matchs!C:C,0),7)," - ",INDEX(Matchs,MATCH(B19,Matchs!C:C,0),13)),"Non parvenu") -> 9 - 7
B21: Massy - Draveil | G21: =IFERROR(CONCATENATE(INDEX(Matchs,MATCH(B21,Matchs!C:C,0),7)," - ",INDEX(Matchs,MATCH(B21,Matchs!C:C,0),13)),"Non parvenu") -> 8 - 8
B23: Vigneux1 - Etrechy | G23: =IFERROR(CONCATENATE(INDEX(Matchs,MATCH(B23,Matchs!C:C,0),7)," - ",INDEX(Matchs,MATCH(B23,Matchs!C:C,0),13)),"Non parvenu") -> 6 - 10
B25: Arpajon - Morangis2 | G25: =IFERROR(CONCATENATE(INDEX(Matchs,MATCH(B25,Matchs!C:C,0),7)," - ",INDEX(Matchs,MATCH(B25,Matchs!C:C,0),13)),"Non parvenu") -> 6 - 10
B28: Prochaine journée | C28: N° | D28: =Journee_classement+1 -> 8 | E28: le | G28: =INDEX(Dates,D28) -> 2026-01-20
A30: Remise des trophées au billard club
B32: RESPONSABLES VETERANS
B33: Arpajon : | C33: Max Thenot
B34: Corbeil : | C34: Anne-Marie Noe
B35: Draveil : | C35: Eric Anne
B36: Massy : | C36: Christian Daniau
B37: Morangis : | C37: Gérard Lablanche, Michel Alexandre
B38: Etréchy | C38: Michel Houplain
B39: Vigneux : | C39: Jérome Helleu

Sheet Calendrier
A1: COMITE DEPARTEMENTAL DE BILLARD DE L'ESSONNE
O2: =Gestion!C2 -> ARPAJON | P2: =COUNTIF($A$1:$K$36,O2) -> 14
A3: CALENDRIER VETERAN 2025 / 2026 | O3: =Gestion!#REF! ->  | P3: 0
A4: Matchs Aller | O4: =Gestion!C3 -> DRAVEIL | P4: 14
K5: Exempt de la journée | O5: =Gestion!C4 -> ETRECHY | P5: 14
A6: 1 | B6: =INDEX(Dates,A6) -> 2025-11-18 | C6: MORANGIS1 | D6: MA | E6: VIGNEUX1 | F6: MA | G6: ETRECHY | H6: MA | I6: DRAVEIL | J6: MA | O6: =Gestion!C5 -> MASSY | P6: 14
C7: MORANGIS2 | E7: VIGNEUX2 | G7: MASSY | I7: ARPAJON | O7: =Gestion!C6 -> MORANGIS1 | P7: 14
A8: 2 | B8: =INDEX(Dates,A8) -> 2025-11-25 | C8: DRAVEIL | D8: MA | E8: ARPAJON | F8: MA | G8: MASSY | H8: MA | I8: VIGNEUX2 | J8: MA | O8: =Gestion!C7 -> MORANGIS2 | P8: 14
C9: MORANGIS1 | E9: ETRECHY | G9: VIGNEUX1 | I9: MORANGIS2 | O9: =Gestion!#REF! ->  | P9: 0
A10: 3 | B10: =INDEX(Dates,A10) -> 2025-12-02 | C10: MASSY | D10: MA | E10: MORANGIS2 | F10: MA | G10: VIGNEUX2 | H10: MA | I10: ETRECHY | J10: MA | O10: =Gestion!C8 -> VIGNEUX1
C11: ARPAJON | E11: VIGNEUX1 | G11: DRAVEIL | I11: MORANGIS1 | O11: =Gestion!C9 -> VIGNEUX2
A12: 4 | B12: =INDEX(Dates,A12) -> 2025-12-09 | C12: DRAVEIL | D12: MA | E12: VIGNEUX1 | F12: MA | G12: ETRECHY | H12: MA | I12: MORANGIS1 | J12: MA
C13: MORANGIS2 | E13: ARPAJON | G13: VIGNEUX2 | I13: MASSY
A14: 5 | B14: =INDEX(Dates,A14) -> 2025-12-16 | C14: MORANGIS2 | D14: MA | E14: VIGNEUX2 | F14: MA | G14: ARPAJON | H14: MA | I14: DRAVEIL | J14: MA
C15: ETRECHY | E15: MASSY | G15: MORANGIS1 | I15: VIGNEUX1
A16: 6 | B16: =INDEX(Dates,A16) -> 2026-01-06 | C16: VIGNEUX1 | D16: MA | E16: ARPAJON | F16: MA | G16: ETRECHY | H16: MA | I16: MORANGIS2 | J16: MA
C17: MORANGIS1 | E17: VIGNEUX2 | G17: DRAVEIL | I17: MASSY
A18: 7 | B18: =INDEX(Dates,A18) -> 2026-01-13 | C18: MORANGIS1 | D18: MA | E18: MASSY | F18: MA | G18: VIGNEUX1 | H18: MA | I18: ARPAJON | J18: MA
C19: VIGNEUX2 | E19: DRAVEIL | G19: ETRECHY | I19: MORANGIS2
A20: En gras l'équipe qui reçoit - MA = mardi - ME = mercredi
A21: Matchs Retour
K22: Exempt de la journée
A23: 8 | B23: =INDEX(Dates,A23) -> 2026-01-20 | C23: MORANGIS2 | D23: MA | E23: VIGNEUX2 | F23: MA | G23: MASSY | H23: MA | I23: ARPAJON | J23: MA
C24: MORANGIS1 | E24: VIGNEUX1 | G24: ETRECHY | I24: DRAVEIL
A25: 9 | B25: =INDEX(Dates,A25) -> 2026-01-27 | C25: MORANGIS1 | D25: MA | E25: ETRECHY | F25: MA | G25: VIGNEUX1 | H25: MA | I25: MORANGIS2 | J25: ME
C26: DRAVEIL | E26: ARPAJON | G26: MASSY | I26: VIGNEUX2
A27: 10 | B27: =INDEX(Dates,A27) -> 2026-02-03 | C27: ARPAJON | D27: MA | E27: VIGNEUX1 | F27: MA | G27: DRAVEIL | H27: MA | I27: MORANGIS1 | J27: MA
C28: MASSY | E28: MORANGIS2 | G28: VIGNEUX2 | I28: ETRECHY
A29: 11 | B29: =INDEX(Dates,A29) -> 2026-02-10 | C29: MORANGIS2 | D29: MA | E29: ARPAJON | F29: MA | G29: VIGNEUX2 | H29: MA | I29: MASSY | J29: MA
C30: DRAVEIL | E30: VIGNEUX1 | G30: ETRECHY | I30: MORANGIS1
A31: 12 | B31: =INDEX(Dates,A31) -> 2026-02-17 | C31: ETRECHY | D31: MA | E31: MASSY | F31: MA | G31: MORANGIS1 | H31: MA | I31: VIGNEUX1 | J31: MA
C32: MORANGIS2 | E32: VIGNEUX2 | G32: ARPAJON | I32: DRAVEIL
A33: 13 | B33: =INDEX(Dates,A33) -> 2026-03-10 | C33: MORANGIS1 | D33: MA | E33: VIGNEUX2 | F33: MA | G33: DRAVEIL | H33: MA | I33: MASSY | J33: MA
C34: VIGNEUX1 | E34: ARPAJON | G34: ETRECHY | I34: MORANGIS2
A35: 14 | B35: =INDEX(Dates,A35) -> 2026-03-17 | C35: VIGNEUX2 | D35: MA | E35: DRAVEIL | F35: MA | G35: ETRECHY | H35: MA | I35: MORANGIS2 | J35: MA
C36: MORANGIS1 | E36: MASSY | G36: VIGNEUX1 | I36: ARPAJON
A37: envoi des résultats sur : veteran@cdbebillard91.fr
A38: Rencontres le mardi, rendez vous à 14 h 00 début des matchs à 14 h 30

Sheet moyennes CDBE
A1: moyennes vétérans en tournoi CDBE 2025/2026
A2: Noms | B2: Prénoms | C2: Libre | E2: 1 Bande | G2: 3bandes | I2: 5 Quilles
I3: faits | J3: subis
A4: ALEXANDRE | B4: michel | E4: 10 | F4: 27 | G4: 10 | H4: 36
E5: 25 | F5: 35 | G5: 9 | H5: 40
E6: 48 | F6: 32 | G6: 6 | H6: 40
G7: 9 | H7: 25
C9: moyenne | E9: moyenne | G9: moyenne
A10: ANNE | B10: Eric
C15: moyenne | E15: moyenne | G15: moyenne
A16: AIRAULT | B16: Jean Michel
C20: moyenne | E20: moyenne | G20: moyenne
A21: BELINGARD | B21: éric | C21: 35 | D21: 23 | E21: 25 | F21: 21
C22: 48 | D22: 35 | E22: 29 | F22: 34
C23: 42 | D23: 35 | E23: 30 | F23: 25
C25: =C21+C22+C23 -> 125 | D25: =D21+D22+D23 -> 93 | E25: =E21+E22+E23 -> 84 | F25: =F21+F22+F23 -> 80 | G25: moyenne
A26: BRIOIT | B26: bernard | E26: 11 | F26: 30 | G26: 8 | H26: 35
E27: 28 | F27: 40 | G27: 6 | H27: 30
E28: 14 | F28: 25 | G28: 6 | H28: 40
C29: moyenne | E29: moyenne | G29: moyenne
A30: CARLE | B30: jean paul | E30: 13 | F30: 29
E31: 20 | F31: 40
E32: 13 | F32: 40
C33: moyenne | E33: moyenne | G33: moyenne
A34: CHAMPAGNE | B34: jean pierre | G34: 12 | H34: 45
G35: 10 | H35: 30
G36: 15 | H36: 44
C37: moyenne | E37: moyenne | G37: moyenne
A38: DANIAU | B38: Christian | E38: 35 | F38: 35
E39: 50 | F39: 35
E40: 14 | F40: 35
E41: 45 | F41: 35
A42: DEVILLEBICHOT | B42: jean claude | C42: 51 | D42: 33 | E42: 30 | F42: 21 | G42: 15 | H42: 22
C43: 55 | D43: 32 | E43: 30 | F43: 29 | G43: 10 | H43: 45
C44: 60 | D44: 32 | E44: 30 | F44: 17 | G44: 11 | H44: 37
E45: 19 | F45: 22 | G45: 15 | H45: 45
A46: FAYT | B46: bernard | C46: 16 | D46: 12 | E46: 30 | F46: 23
C47: 60 | D47: 30 | E47: 22 | F47: 31
C48: 39 | D48: 35 | E48: 21 | F48: 40
C49: moyenne | E49: moyenne | G49: moyenne
A50: FERON | B50: jean
C53: moyenne | E53: moyenne | G53: moyenne
A54: FLEURY | B54: gérard | C54: 20 | D54: 22 | G54: 9 | H54: 38
C55: 28 | D55: 30 | G55: 8 | H55: 45
C56: 39 | D56: 35 | G56: 12 | H56: 45
C57: moyenne | E57: moyenne | G57: moyenne
A58: FREYSZ | B58: jean claude | G58: 15 | H58: 38
G59: 15 | H59: 37
G60: 15 | H60: 24
G61: 8 | H61: 35
A64: GODFIN | B64: daniel | G64: 8 | H64: 40
G65: 6 | H65: 40
G66: 7 | H66: 40
G67: 10 | H67: 31
A68: HOUPLAIN | B68: michel | E68: 60 | F68: 17
E69: 40 | F69: 23
E70: 48 | F70: 21
C71: moyenne | E71: moyenne | G71: moyenne
A72: JOYEZ | B72: patrick | C72: 75 | D72: 25 | E72: 60 | F72: 26 | G72: 20 | H72: 38
C73: 80 | D73: 21 | E73: 59 | F73: 27 | G73: 20 | H73: 45
C74: 80 | D74: 13 | E74: 43 | F74: 17 | G74: 13 | H74: 31
C75: 80 | D75: 25 | G75: 20 | H75: 30
C76: moyenne | E76: moyenne | G76: moyenne
A77: JULLIEN | B77: claude | E77: 40 | F77: 35
E78: 39 | F78: 34
E79: 50 | F79: 30
C80: moyenne | E80: moyenne | G80: moyenne
A81: LABLANCHE | B81: Gérard
C84: moyenne | E84: moyenne | G84: moyenne
A85: LEBROT | B85: guy
C88: moyenne | E88: moyenne | G88: moyenne
A89: LESAGE | B89: jean | C89: 110 | D89: 25 | E89: 39 | F89: 26 | G89: 20 | H89: 42
C90: 75 | D90: 16 | E90: 44 | F90: 23 | G90: 18 | H90: 45
C91: 114 | D91: 25 | E91: 60 | F91: 23 | G91: 18 | H91: 30
C92: 101 | D92: 25 | G92: 12 | H92: 30
A93: LHOMME | B93: éric | C93: 47 | D93: 24 | E93: 25 | F93: 26
C94: 45 | D94: 25 | E94: 30 | F94: 35
C95: 26 | D95: 17 | E95: 48 | F95: 35
C96: moyenne | E96: moyenne | G96: moyenne
A97: LILLO ARAYA | B97: Sergio
C100: moyenne | E100: moyenne | G100: moyenne
A101: LIOTARD | B101: gilles | C101: 60 | D101: 33 | E101: 20 | F101: 31
C102: 60 | D102: 32 | E102: 23 | F102: 35
C103: 37 | D103: 26 | E103: 27 | F103: 35
C104: 31 | D104: 19
C105: moyenne | E105: moyenne | G105: moyenne
A106: MIRLAUD | B106: maurice
C109: moyenne | E109: moyenne | G109: moyenne
A110: MIRMAN | B110: stéphane | C110: 64 | D110: 25 | E110: 45 | F110: 35
C111: 35 | D111: 25 | E111: 23 | F111: 35
C112: 58 | D112: 25 | E112: 36 | F112: 30
C113: 69 | D113: 25
A114: MOREAU | B114: jean louis
C118: moyenne | E118: moyenne | G118: moyenne
A119: MOREL | B119: pierre yves
C122: moyenne | E122: moyenne | G122: moyenne
A123: MOULAY | B123: didier
C127: moyenne | E127: moyenne | G127: moyenne
A128: PAIS | B128: manuel
C131: moyenne | E131: moyenne | G131: moyenne
A132: PINTO MONTEIRO | B132: manuel | G132: 7 | H132: 37
G133: 11 | H133: 45
G134: 7 | H134: 45
C135: moyenne | E135: moyenne | G135: moyenne
A136: PORCU | B136: frédéric | E136: 13 | F136: 29
E137: 30 | F137: 34
E138: 17 | F138: 29
C139: moyenne | E139: moyenne | G139: moyenne
A140: PRIEUR | B140: jacques | E140: 21 | F140: 31
E141: 29 | F141: 40
E142: 15 | F142: 34
C143: moyenne | E143: moyenne | G143: moyenne
A144: ROUX | B144: Olivier
C148: moyenne | E148: moyenne | G148: moyenne
A149: SERRA | B149: didier | C149: 71 | D149: 19 | E149: 38 | F149: 35 | G149: 10 | H149: 30
C150: 80 | D150: 21 | E150: 44 | F150: 35 | G150: 10 | H150: 29
C151: 29 | D151: 13 | E151: 32 | F151: 35 | G151: 10 | H151: 21
C152: 72 | D152: 25 | E152: 50 | F152: 32 | G152: 12 | H152: 31
A153: TAVERNIER | B153: éric
C156: moyenne | E156: moyenne | G156: moyenne
A157: THENOT | B157: max | C157: 67 | D157: 21 | E157: 36 | F157: 35
C158: 58 | D158: 25 | E158: 33 | F158: 35
C159: 68 | D159: 20 | E159: 29 | F159: 30
C160: 68 | D160: 25
C161: moyenne | E161: moyenne | G161: moyenne
A162: TRUFFAUT | B162: Gérald
C165: moyenne | E165: moyenne | G165: moyenne
A166: VERLEY | B166: nicolas | C166: 52 | D166: 35 | E166: 26 | F166: 35 | G166: 10 | H166: 38
C167: 60 | D167: 30 | E167: 47 | F167: 35 | G167: 20 | H167: 36
C168: 35 | D168: 35 | E168: 50 | F168: 30 | G168: 20 | H168: 31
G169: 16 | H169: 25
A170: VINGUEASSALOM | B170: éric | C170: 27 | D170: 25 | E170: 42 | F170: 35 | G170: 15 | H170: 36
C171: 57 | D171: 25 | E171: 43 | F171: 35 | G171: 20 | H171: 29
C172: 80 | D172: 17 | E172: 38 | F172: 35 | G172: 9 | H172: 45
E173: 39 | F173: 35 | G173: 19 | H173: 36

Sheet Moyennes
A1: =CONCATENATE("Moyennes et distances pour la journée N°",Journee_classement+1) -> Moyennes et distances pour la journée N°8
D2: 2 | M2: 4 | V2: 6 | AE2: 30
A3: Club | B3: NOM | D3: LIBRE | M3: BANDE | V3: 3 BANDES | AE3: 5 Quilles
D4: =CONCATENATE("Ranking J",Journee_classement+1) -> Ranking J8 | F4: Ranking initial | I4: Résultat vétérants | M4: =CONCATENATE("Ranking J",Journee_classement+1) -> Ranking J8 | O4: Ranking initial | R4: Résultat vétérants | V4: =CONCATENATE("Ranking J",Journee_classement+1) -> Ranking J8 | X4: Ranking initial | AA4: Résultat vétérants | AE4: =CONCATENATE("Ranking J",Journee_classement+1) -> Ranking J8 | AF4: Ranking initial | AJ4: Résultat vétérants
D5: moyenne | E5: distance | F5: Source | G5: Nbr match | H5: moyenne | I5: Nbr matchs | J5: points | K5: reprises | L5: moyenne | M5: moyenne | N5: distance | O5: Source | P5: Nbr match | Q5: moyenne | R5: Nbr matchs | S5: points | T5: reprises | U5: moyenne | V5: moyenne | W5: distance | X5: Source | Y5: Nbr match | Z5: moyenne | AA5: Nbr matchs | AB5: points | AC5: reprises | AD5: moyenne | AE5: distance | AF5: Source | AG5: Points joueur | AH5: Points adversaires | AI5: Distance | AJ5: Nbr matchs | AK5: Points joueur | AL5: Points adversaires | AM5: moyenne | AN5: distance
A6: VIG | B6: ABITBOL | D6: =IF(I6>0,IF(F6="ESTIMEE",L6,(H6*G6+I6*L6)/(G6+I6)),H6) -> NC | E6: =IFERROR(DISTANCELIBRE(D6,table),"") ->  | H6: NC | I6: =IFERROR(GETPIVOTDATA("Nb parties",Moyennes_libre,"Joueur ",$B6),0) -> 0 | J6: =IFERROR(GETPIVOTDATA("Total points",Moyennes_libre,"Joueur ",$B6),0) -> 0 | K6: =IFERROR(GETPIVOTDATA("Total reprises",Moyennes_libre,"Joueur ",$B6),0) -> 0 | L6: =IFERROR(J6/K6,"") ->  | M6: =IF(R6>0,IF(O6="ESTIMEE",U6,(Q6*P6+R6*U6)/(P6+R6)),Q6) -> 0.96 | N6: =IFERROR(DISTANCEBANDE(M6,distance),"") -> 42 | O6: OFFICIELLE | P6: 1 | Q6: 0.96 | R6: =IFERROR(GETPIVOTDATA("Nb parties",Moyennes_bande,"Joueur ",$B6),0) -> 0 | S6: =IFERROR(GETPIVOTDATA("Total points",Moyennes_bande,"Joueur ",$B6),0) -> 0 | T6: =IFERROR(GETPIVOTDATA("Total reprises",Moyennes_bande,"Joueur ",$B6),0) -> 0 | U6: =IFERROR(S6/T6,"") ->  | V6: =IF(AA6>0,IF(X6="ESTIMEE",AD6,(Z6*Y6+AA6*AD6)/(Y6+AA6)),Z6) -> 0.21 | W6: =IFERROR(DISTANCE3BANDES(V6,distance),"") -> 14 | X6: CDBE | Y6: 1 | Z6: 0.21 | AA6: =IFERROR(GETPIVOTDATA("Nb parties",Moyennes_3bandes,"Joueur ",$B6),0) -> 0 | AB6: =IFERROR(GETPIVOTDATA("Total points",Moyennes_3bandes,"Joueur ",$B6),0) -> 0 | AC6: =IFERROR(GETPIVOTDATA("Total reprises",Moyennes_3bandes,"Joueur ",$B6),0) -> 0 | AD6: =IFERROR(AB6/AC6,"") ->  | AE6: =IF(AJ6>0,IF(AF6="ESTIMEE",AN6,DISTANCE5Q((AG6+AK6)/(AH6+AL6),distance)),AI6) -> 79 | AF6: ESTIMEE | AG6: 78 | AI6: =IF(AH6="",AG6,DISTANCE5Q(AG6/AH6,distance)) -> 78 | AJ6: =IFERROR(GETPIVOTDATA("Nb parties",Moyennes_5quilles,"Joueur ",$B6),0) -> 5 | AK6: =IFERROR(GETPIVOTDATA("Total points joueur",Moyennes_5quilles,"Joueur ",$B6),0) -> 799 | AL6: =IFERROR(GETPIVOTDATA("Total points adversaire",Moyennes_5quilles,"Joueur ",$B6),0) -> 782 | AM6: =IFERROR(AK6/AL6,"") -> 1.02173913 | AN6: =IFERROR(DISTANCE5Q(AM6,distance),"") -> 79
A7: MAS | B7: AGUEFF | C7: nouveau joueur | D7: =IF(I7>0,IF(F7="ESTIMEE",L7,(H7*G7+I7*L7)/(G7+I7)),H7) -> 0.3 | E7: =IFERROR(DISTANCELIBRE(D7,table),"") -> 31 | F7: OFFICIELLE | G7: 1 | H7: 0.3 | M7: 0 | N7: =IFERROR(DISTANCEBANDE(M7,distance),"") -> 23 | O7: OFFICIELLE | P7: 1 | Q7: 0 | V7: 0.07 | W7: =IFERROR(DISTANCE3BANDES(V7,distance),"") -> 10 | X7: CDBE | Y7: 1 | Z7: 0.07 | AA7: 0 | AB7: 0 | AC7: 0 | AD7: =IFERROR(AB7/AC7,"") ->  | AE7: =IF(AJ7>0,IF(AF7="ESTIMEE",AN7,DISTANCE5Q((AG7+AK7)/(AH7+AL7),distance)),AI7) -> 60 | AF7: ESTIMEE | AG7: 60 | AI7: =IF(AH7="",AG7,DISTANCE5Q(AG7/AH7,distance)) -> 60
A8: MOR | B8: AIRAULT | D8: NC | E8: =IFERROR(DISTANCELIBRE(D8,table),"") ->  | H8: NC | I8: 0 | J8: 0 | K8: 0 | L8: =IFERROR(J8/K8,"") ->  | M8: 1.1 | N8: =IFERROR(DISTANCEBANDE(M8,distance),"") -> 45 | O8: OFFICIELLE | P8: 1 | Q8: 1.1 | R8: 0 | S8: 0 | T8: 0 | U8: =IFERROR(S8/T8,"") ->  | V8: 0.4453197279 | W8: =IFERROR(DISTANCE3BANDES(V8,distance),"") -> 24 | X8: OFFICIELLE | Y8: 1 | Z8: 0.438 | AA8: 2 | AB8: 44 | AC8: 98 | AD8: =IFERROR(AB8/AC8,"") -> 0.4489795918 | AE8: =IF(AJ8>0,IF(AF8="ESTIMEE",AN8,DISTANCE5Q((AG8+AK8)/(AH8+AL8),distance)),AI8) -> 108 | AF8: ESTIMEE | AG8: 92 | AI8: =IF(AH8="",AG8,DISTANCE5Q(AG8/AH8,distance)) -> 92 | AJ8: 1 | AK8: 184 | AL8: 110 | AM8: =IFERROR(AK8/AL8,"") -> 1.672727273 | AN8: =IFERROR(DISTANCE5Q(AM8,distance),"") -> 108
A9: DRA | B9: ANNE | D9: 1.76 | E9: =IFERROR(DISTANCELIBRE(D9,table),"") -> 71 | F9: OFFICIELLE | G9: 1 | H9: 1.76 | I9: 0 | J9: 0 | K9: 0 | M9: 1.15 | N9: =IFERROR(DISTANCEBANDE(M9,distance),"") -> 46 | O9: ESTIMEE | P9: 1 | Q9: 1.15 | R9: 0 | S9: 0 | T9: 0 | V9: 0.25 | W9: =IFERROR(DISTANCE3BANDES(V9,distance),"") -> 16 | X9: CDBE | Y9: 1 | Z9: 0.25 | AA9: 0 | AB9: 0 | AC9: 0 | AE9: =IF(AJ9>0,IF(AF9="ESTIMEE",AN9,DISTANCE5Q((AG9+AK9)/(AH9+AL9),distance)),AI9) -> 85 | AF9: ESTIMEE | AG9: 68 | AI9: =IF(AH9="",AG9,DISTANCE5Q(AG9/AH9,distance)) -> 68 | AJ9: 2 | AK9: 298 | AL9: 256 | AM9: 1.1640625 | AN9: =IFERROR(DISTANCE5Q(AM9,distance),"") -> 85
A10: MOR | B10: ALEXANDRE | D10: 0.93 | E10: =IFERROR(DISTANCELIBRE(D10,table),"") -> 49 | F10: OFFICIELLE | G10: 1 | H10: 0.93 | I10: 0 | J10: 0 | K10: 0 | M10: 1.2 | N10: =IFERROR(DISTANCEBANDE(M10,distance),"") -> 47 | O10: ESTIMEE | P10: 1 | Q10: 1.2 | R10: 0 | S10: 0 | T10: 0 | U10: =IFERROR(S10/T10,"") ->  | V10: 0.15 | W10: =IFERROR(DISTANCE3BANDES(V10,distance),"") -> 12 | X10: OFFICIELLE | Y10: 1 | Z10: 0.15 | AA10: 0 | AB10: 0 | AC10: 0 | AE10: =IF(AJ10>0,IF(AF10="ESTIMEE",AN10,DISTANCE5Q((AG10+AK10)/(AH10+AL10),distance)),AI10) -> 95 | AF10: ESTIMEE | AG10: 64 | AI10: =IF(AH10="",AG10,DISTANCE5Q(AG10/AH10,distance)) -> 64 | AJ10: 5 | AK10: 798 | AL10: 577 | AM10: 1.383015598 | AN10: =IFERROR(DISTANCE5Q(AM10,distance),"") -> 95
A11: VIG | B11: ANNERON | D11: 1.296304348 | E11: =IFERROR(DISTANCELIBRE(D11,table),"") -> 59 | F11: OFFICIELLE | G11: 1 | H11: 1.31 | I11: 1 | J11: 59 | K11: 46 | L11: 1.282608696 | M11: 0.56 | N11: =IFERROR(DISTANCEBANDE(M11,distance),"") -> 34 | O11: OFFICIELLE | P11: 1 | Q11: 0.56 | R11: 0 | S11: 0 | T11: 0 | V11: 0.138 | W11: =IFERROR(DISTANCE3BANDES(V11,distance),"") -> 12 | X11: CDBE | Y11: 1 | Z11: 0.138 | AA11: 0 | AB11: 0 | AC11: 0 | AE11: =IF(AJ11>0,IF(AF11="ESTIMEE",AN11,DISTANCE5Q((AG11+AK11)/(AH11+AL11),distance)),AI11) -> 66 | AF11: ESTIMEE | AG11: 66 | AI11: =IF(AH11="",AG11,DISTANCE5Q(AG11/AH11,distance)) -> 66 | AJ11: 0 | AK11: 0 | AL11: 0 | AN11: =IFERROR(DISTANCE5Q(AM11,distance),"") -> 
A12: DRA | B12: AUBOUET | C12: =IFERROR(IF(MATCH(Moyennes!B12,'nouveaux joueurs'!B:B,0) >1,"nouveau joueur",""),"") ->  | D12: 0.6 | E12: =IFERROR(DISTANCELIBRE(D12,table),"") -> 40 | F12: OFFICIELLE | G12: 1 | H12: 0.6 | I12: 0 | J12: 0 | K12: 0 | M12: 0.3 | N12: =IFERROR(DISTANCEBANDE(M12,distance),"") -> 29 | O12: OFFICIELLE | P12: 1 | Q12: 0.3 | R12: 0 | S12: 0 | T12: 0 | U12: =IFERROR(S12/T12,"") ->  | V12: 0.27 | W12: =IFERROR(DISTANCE3BANDES(V12,distance),"") -> 16 | X12: CDBE | Y12: 1 | Z12: 0.27 | AA12: 0 | AB12: 0 | AC12: 0 | AE12: =IF(AJ12>0,IF(AF12="ESTIMEE",AN12,DISTANCE5Q((AG12+AK12)/(AH12+AL12),distance)),AI12) -> 63 | AF12: ESTIMEE | AG12: 63 | AI12: =IF(AH12="",AG12,DISTANCE5Q(AG12/AH12,distance)) -> 63 | AJ12: 0 | AK12: 0 | AL12: 0 | AN12: =IFERROR(DISTANCE5Q(AM12,distance),"") -> 
A13: COR | B13: BAJEUX | C13: =IFERROR(IF(MATCH(Moyennes!B13,'nouveaux joueurs'!B:B,0) >1,"nouveau joueur",""),"") ->  | D13: 0.98 | E13: =IFERROR(DISTANCELIBRE(D13,table),"") -> 50 | F13: CDBE | G13: 1 | H13: 0.98 | I13: 0 | J13: 0 | K13: 0 | M13: 0.5 | N13: =IFERROR(DISTANCEBANDE(M13,distance),"") -> 33 | O13: CDBE | P13: 1 | Q13: 0.5 | R13: 0 | S13: 0 | T13: 0 | V13: 0.12 | W13: =IFERROR(DISTANCE3BANDES(V13,distance),"") -> 11 | X13: CDBE | Y13: 1 | Z13: 0.12 | AA13: 0 | AB13: 0 | AC13: 0 | AE13: =IF(AJ13>0,IF(AF13="ESTIMEE",AN13,DISTANCE5Q((AG13+AK13)/(AH13+AL13),distance)),AI13) -> 54 | AF13: ESTIMEE | AG13: 54 | AI13: =IF(AH13="",AG13,DISTANCE5Q(AG13/AH13,distance)) -> 54 | AJ13: 0 | AK13: 0 | AL13: 0 | AN13: =IFERROR(DISTANCE5Q(AM13,distance),"") -> 
A14: ETR | B14: BELINGARD | C14: =IFERROR(IF(MATCH(Moyennes!B14,'nouveaux joueurs'!B:B,0) >1,"nouveau joueur",""),"") ->  | D14: 1.29 | E14: =IFERROR(DISTANCELIBRE(D14,table),"") -> 58 | F14: OFFICIELLE | G14: 1 | H14: 1.29 | I14: 0 | J14: 0 | K14: 0 | M14: 0.79 | N14: =IFERROR(DISTANCEBANDE(M14,distance),"") -> 39 | O14: OFFICIELLE | P14: 1 | Q14: 0.79 | R14: 0 | S14: 0 | T14: 0 | V14: 0.243 | W14: =IFERROR(DISTANCE3BANDES(V14,distance),"") -> 15 | X14: OFFICIELLE | Y14: 1 | Z14: 0.243 | AA14: 0 | AB14: 0 | AC14: 0 | AE14: =IF(AJ14>0,IF(AF14="ESTIMEE",AN14,DISTANCE5Q((AG14+AK14)/(AH14+AL14),distance)),AI14) -> 66 | AF14: ESTIMEE | AG14: 66 | AI14: =IF(AH14="",AG14,DISTANCE5Q(AG14/AH14,distance)) -> 66 | AJ14: 0 | AK14: 0 | AL14: 0 | AN14: =IFERROR(DISTANCE5Q(AM14,distance),"") -> 
A15: ETR | B15: BENOIT | C15: =IFERROR(IF(MATCH(Moyennes!B15,'nouveaux joueurs'!B:B,0) >1,"nouveau joueur",""),"") -> nouveau joueur | D15: =IF(I15>0,IF(F15="ESTIMEE",L15,(H15*G15+I15*L15)/(G15+I15)),H15) -> 1.654761905 | E15: =IFERROR(DISTANCELIBRE(D15,table),"") -> 68 | F15: ESTIMEE | G15: 1 | H15: 1.3 | I15: 3 | J15: 139 | K15: 84 | L15: =IFERROR(J15/K15,"") -> 1.654761905 | M15: =IF(R15>0,IF(O15="ESTIMEE",U15,(Q15*P15+R15*U15)/(P15+R15)),Q15) -> 0.6 | N15: =IFERROR(DISTANCEBANDE(M15,distance),"") -> 35 | O15: ESTIMEE | P15: 1 | Q15: 0.6 | R15: 0 | S15: 0 | T15: 0 | U15: =IFERROR(S15/T15,"") ->  | V15: =IF(AA15>0,IF(X15="ESTIMEE",AD15,(Z15*Y15+AA15*AD15)/(Y15+AA15)),Z15) -> 0.2 | W15: =IFERROR(DISTANCE3BANDES(V15,distance),"") -> 14 | X15: ESTIMEE | Y15: 1 | Z15: 0.2 | AA15: 0 | AB15: 0 | AC15: 0 | AD15: =IFERROR(AB15/AC15,"") ->  | AE15: =IF(AJ15>0,IF(AF15="ESTIMEE",AN15,DISTANCE5Q((AG15+AK15)/(AH15+AL15),distance)),AI15) -> 66 | AF15: ESTIMEE | AG15: 66 | AI15: =IF(AH15="",AG15,DISTANCE5Q(AG15/AH15,distance)) -> 66 | AJ15: 0 | AK15: 0 | AL15: 0 | AM15: =IFERROR(AK15/AL15,"") ->  | AN15: =IFERROR(DISTANCE5Q(AM15,distance),"") -> 
A16: ARP | B16: BERTRAND | C16: =IFERROR(IF(MATCH(Moyennes!B16,'nouveaux joueurs'!B:B,0) >1,"nouveau joueur",""),"") ->  | D16: 1.5 | E16: =IFERROR(DISTANCELIBRE(D16,table),"") -> 64 | F16: CDBE | G16: 1 | H16: 1.5 | I16: 0 | J16: 0 | K16: 0 | M16: 0.75 | N16: =IFERROR(DISTANCEBANDE(M16,distance),"") -> 38 | O16: CDBE | P16: 1 | Q16: 0.75 | R16: 0 | S16: 0 | T16: 0 | V16: 0.324 | W16: =IFERROR(DISTANCE3BANDES(V16,distance),"") -> 19 | X16: CDBE | Y16: 1 | Z16: 0.324 | AA16: 0 | AB16: 0 | AC16: 0 | AE16: =IF(AJ16>0,IF(AF16="ESTIMEE",AN16,DISTANCE5Q((AG16+AK16)/(AH16+AL16),distance)),AI16) -> 75 | AF16: ESTIMEE | AG16: 75 | AI16: =IF(AH16="",AG16,DISTANCE5Q(AG16/AH16,distance)) -> 75 | AJ16: 0 | AK16: 0 | AL16: 0 | AN16: =IFERROR(DISTANCE5Q(AM16,distance),"") -> 
A17: VIG | B17: BIDE | C17: =IFERROR(IF(MATCH(Moyennes!B17,'nouveaux joueurs'!B:B,0) >1,"nouveau joueur",""),"") ->  | D17: 1.81 | E17: =IFERROR(DISTANCELIBRE(D17,table),"") -> 72 | F17: OFFICIELLE | G17: 1 | H17: 1.81 | I17: 0 | J17: 0 | K17: 0 | M17: 0.8930088496 | N17: =IFERROR(DISTANCEBANDE(M17,distance),"") -> 41 | O17: OFFICIELLE | P17: 1 | Q17: 1.21 | R17: 2 | S17: 83 | T17: 113 | U17: 0.7345132743 | V17: 0.324 | W17: =IFERROR(DISTANCE3BANDES(V17,distance),"") -> 19 | X17: CDBE | Y17: 1 | Z17: 0.324 | AA17: 0 | AB17: 0 | AC17: 0 | AE17: =IF(AJ17>0,IF(AF17="ESTIMEE",AN17,DISTANCE5Q((AG17+AK17)/(AH17+AL17),distance)),AI17) -> 68 | AF17: ESTIMEE | AG17: 68 | AI17: =IF(AH17="",AG17,DISTANCE5Q(AG17/AH17,distance)) -> 68 | AJ17: 0 | AK17: 0 | AL17: 0 | AN17: =IFERROR(DISTANCE5Q(AM17,distance),"") -> 
A18: VIG | B18: BORDIER | C18: =IFERROR(IF(MATCH(Moyennes!B18,'nouveaux joueurs'!B:B,0) >1,"nouveau joueur",""),"") ->  | D18: 2 | E18: =IFERROR(DISTANCELIBRE(D18,table),"") -> 77 | F18: OFFICIELLE | G18: 1 | H18: 2 | I18: 0 | J18: 0 | K18: 0 | M18: 1.144594595 | N18: =IFERROR(DISTANCEBANDE(M18,distance),"") -> 46 | O18: CDBE | P18: 1 | Q18: 1.1 | R18: 1 | S18: 44 | T18: 37 | U18: 1.189189189 | V18: 0.2855175364 | W18: =IFERROR(DISTANCE3BANDES(V18,distance),"") -> 17 | X18: CDBE | Y18: 1 | Z18: 0.31 | AA18: 6 | AB18: 94 | AC18: 334 | AD18: 0.2814371257 | AE18: =IF(AJ18>0,IF(AF18="ESTIMEE",AN18,DISTANCE5Q((AG18+AK18)/(AH18+AL18),distance)),AI18) -> 69 | AF18: ESTIMEE | AG18: 69 | AI18: =IF(AH18="",AG18,DISTANCE5Q(AG18/AH18,distance)) -> 69 | AJ18: 0 | AK18: 0 | AL18: 0 | AN18: =IFERROR(DISTANCE5Q(AM18,distance),"") -> 
A19: ETR | B19: BRILLAUD | C19: =IFERROR(IF(MATCH(Moyennes!B19,'nouveaux joueurs'!B:B,0) >1,"nouveau joueur",""),"") ->  | D19: 0.5 | E19: =IFERROR(DISTANCELIBRE(D19,table),"") -> 37 | F19: OFFICIELLE | G19: 1 | H19: 0.5 | I19: 0 | J19: 0 | K19: 0 | L19: =IFERROR(J19/K19,"") ->  | M19: 0.3 | N19: =IFERROR(DISTANCEBANDE(M19,distance),"") -> 29 | O19: ESTIMEE | P19: 1 | Q19: 0.3 | R19: 0 | S19: 0 | T19: 0 | V19: 0.1 | W19: =IFERROR(DISTANCE3BANDES(V19,distance),"") -> 11 | X19: CDBE | Y19: 1 | Z19: 0.1 | AA19: 0 | AB19: 0 | AC19: 0 | AE19: =IF(AJ19>0,IF(AF19="ESTIMEE",AN19,DISTANCE5Q((AG19+AK19)/(AH19+AL19),distance)),AI19) -> 62 | AF19: ESTIMEE | AG19: 62 | AI19: =IF(AH19="",AG19,DISTANCE5Q(AG19/AH19,distance)) -> 62 | AJ19: 0 | AK19: 0 | AL19: 0 | AN19: =IFERROR(DISTANCE5Q(AM19,distance),"") -> 
A20: MAS | B20: BRIOIT | C20: =IFERROR(IF(MATCH(Moyennes!B20,'nouveaux joueurs'!B:B,0) >1,"nouveau joueur",""),"") ->  | D20: 1.563145161 | E20: =IFERROR(DISTANCELIBRE(D20,table),"") -> 66 | F20: OFFICIELLE | G20: 1 | H20: 1.68 | I20: 3 | J20: 189 | K20: 124 | L20: 1.524193548 | M20: 0.83 | N20: =IFERROR(DISTANCEBANDE(M20,distance),"") -> 40 | O20: OFFICIELLE | P20: 1 | Q20: 0.83 | R20: 0 | S20: 0 | T20: 0 | V20: 0.18 | W20: =IFERROR(DISTANCE3BANDES(V20,distance),"") -> 13 | X20: OFFICIELLE | Y20: 1 | Z20: 0.18 | AA20: 0 | AB20: 0 | AC20: 0 | AE20: =IF(AJ20>0,IF(AF20="ESTIMEE",AN20,DISTANCE5Q((AG20+AK20)/(AH20+AL20),distance)),AI20) -> 68 | AF20: ESTIMEE | AG20: 68 | AI20: =IF(AH20="",AG20,DISTANCE5Q(AG20/AH20,distance)) -> 68 | AJ20: 0 | AK20: 0 | AL20: 0 | AN20: =IFERROR(DISTANCE5Q(AM20,distance),"") -> 
A21: MAS | B21: CARLE | C21: =IFERROR(IF(MATCH(Moyennes!B21,'nouveaux joueurs'!B:B,0) >1,"nouveau joueur",""),"") ->  | D21: 0.81 | E21: =IFERROR(DISTANCELIBRE(D21,table),"") -> 45 | F21: OFFICIELLE | G21: 1 | H21: 0.81 | I21: 0 | J21: 0 | K21: 0 | M21: 0.43 | N21: =IFERROR(DISTANCEBANDE(M21,distance),"") -> 32 | O21: OFFICIELLE | P21: 1 | Q21: 0.43 | R21: 0 | S21: 0 | T21: 0 | V21: 0.106 | W21: =IFERROR(DISTANCE3BANDES(V21,distance),"") -> 11 | X21: CDBE | Y21: 1 | Z21: 0.106 | AA21: 0 | AB21: 0 | AC21: 0 | AE21: =IF(AJ21>0,IF(AF21="ESTIMEE",AN21,DISTANCE5Q((AG21+AK21)/(AH21+AL21),distance)),AI21) -> 74 | AF21: ESTIMEE | AG21: 64 | AI21: =IF(AH21="",AG21,DISTANCE5Q(AG21/AH21,distance)) -> 64 | AJ21: 6 | AK21: 761 | AL21: 833 | AM21: 0.9135654262 | AN21: =IFERROR(DISTANCE5Q(AM21,distance),"") -> 74
A22: MAS | B22: CARON | C22: =IFERROR(IF(MATCH(Moyennes!B22,'nouveaux joueurs'!B:B,0) >1,"nouveau joueur",""),"") ->  | D22: 3.44 | E22: =IFERROR(DISTANCELIBRE(D22,table),"") -> 109 | F22: OFFICIELLE | G22: 1 | H22: 3.44 | I22: 0 | J22: 0 | K22: 0 | M22: 1.69 | N22: =IFERROR(DISTANCEBANDE(M22,distance),"") -> 56 | O22: ESTIMEE | P22: 1 | Q22: 1.69 | R22: 0 | S22: 0 | T22: 0 | V22: 0.3523793103 | W22: =IFERROR(DISTANCE3BANDES(V22,distance),"") -> 20 | X22: CDBE | Y22: 1 | Z22: 0.377 | AA22: 6 | AB22: 101 | AC22: 290 | AD22: 0.3482758621 | AE22: =IF(AJ22>0,IF(AF22="ESTIMEE",AN22,DISTANCE5Q((AG22+AK22)/(AH22+AL22),distance)),AI22) -> 75 | AF22: ESTIMEE | AG22: 75 | AI22: =IF(AH22="",AG22,DISTANCE5Q(AG22/AH22,distance)) -> 75 | AJ22: 0 | AK22: 0 | AL22: 0 | AN22: =IFERROR(DISTANCE5Q(AM22,distance),"") -> 
A23: MAS | B23: CASTAINGS | C23: =IFERROR(IF(MATCH(Moyennes!B23,'nouveaux joueurs'!B:B,0) >1,"nouveau joueur",""),"") ->  | D23: 7.05 | E23: =IFERROR(DISTANCELIBRE(D23,table),"") -> 167 | F23: OFFICIELLE | G23: 1 | H23: 7.05 | I23: 0 | J23: 0 | K23: 0 | M23: 1.95 | N23: =IFERROR(DISTANCEBANDE(M23,distance),"") -> 61 | O23: OFFICIELLE | P23: 1 | Q23: 1.95 | R23: 0 | S23: 0 | T23: 0 | V23: 0.381 | W23: =IFERROR(DISTANCE3BANDES(V23,distance),"") -> 21 | X23: CDBE | Y23: 1 | Z23: 0.381 | AA23: 0 | AB23: 0 | AC23: 0 | AE23: =IF(AJ23>0,IF(AF23="ESTIMEE",AN23,DISTANCE5Q((AG23+AK23)/(AH23+AL23),distance)),AI23) -> 92 | AF23: ESTIMEE | AG23: 92 | AI23: =IF(AH23="",AG23,DISTANCE5Q(AG23/AH23,distance)) -> 92 | AJ23: 0 | AK23: 0 | AL23: 0 | AN23: =IFERROR(DISTANCE5Q(AM23,distance),"") -> 
A24: VIG | B24: CATALLO | C24: =IFERROR(IF(MATCH(Moyennes!B24,'nouveaux joueurs'!B:B,0) >1,"nouveau joueur",""),"") ->  | D24: 0.4 | E24: =IFERROR(DISTANCELIBRE(D24,table),"") -> 34 | F24: OFFICIELLE | G24: 1 | H24: 0.4 | I24: 0 | J24: 0 | K24: 0 | M24: 0.2 | N24: =IFERROR(DISTANCEBANDE(M24,distance),"") -> 27 | O24: ESTIMEE | P24: 1 | Q24: 0.2 | R24: 0 | S24: 0 | T24: 0 | V24: 0.14 | W24: =IFERROR(DISTANCE3BANDES(V24,distance),"") -> 12 | X24: CDBE | Y24: 1 | Z24: 0.14 | AA24: 0 | AB24: 0 | AC24: 0 | AE24: =IF(AJ24>0,IF(AF24="ESTIMEE",AN24,DISTANCE5Q((AG24+AK24)/(AH24+AL24),distance)),AI24) -> 79 | AF24: ESTIMEE | AG24: 62 | AI24: =IF(AH24="",AG24,DISTANCE5Q(AG24/AH24,distance)) -> 62 | AJ24: 4 | AK24: 510 | AL24: 494 | AM24: 1.032388664 | AN24: =IFERROR(DISTANCE5Q(AM24,distance),"") -> 79
A25: MOR | B25: CHAMPAGNE | C25: =IFERROR(IF(MATCH(Moyennes!B25,'nouveaux joueurs'!B:B,0) >1,"nouveau joueur",""),"") ->  | D25: 1.6 | E25: =IFERROR(DISTANCELIBRE(D25,table),"") -> 67 | F25: OFFICIELLE | G25: 1 | H25: 1.6 | I25: 0 | J25: 0 | K25: 0 | M25: 0.8 | N25: =IFERROR(DISTANCEBANDE(M25,distance),"") -> 39 | O25: ESTIMEE | P25: 1 | Q25: 0.8 | R25: 0 | S25: 0 | T25: 0 | V25: 0.3231289308 | W25: =IFERROR(DISTANCE3BANDES(V25,distance),"") -> 19 | X25: OFFICIELLE | Y25: 1 | Z25: 0.335 | AA25: 5 | AB25: 68 | AC25: 212 | AD25: 0.320754717 | AE25: =IF(AJ25>0,IF(AF25="ESTIMEE",AN25,DISTANCE5Q((AG25+AK25)/(AH25+AL25),distance)),AI25) -> 67 | AF25: ESTIMEE | AG25: 67 | AI25: =IF(AH25="",AG25,DISTANCE5Q(AG25/AH25,distance)) -> 67 | AJ25: 0 | AK25: 0 | AL25: 0 | AN25: =IFERROR(DISTANCE5Q(AM25,distance),"") -> 
A26: MOR | B26: CHARLES | C26: =IFERROR(IF(MATCH(Moyennes!B26,'nouveaux joueurs'!B:B,0) >1,"nouveau joueur",""),"") ->  | D26: 1.44 | E26: =IFERROR(DISTANCELIBRE(D26,table),"") -> 62 | F26: CDBE | G26: 1 | H26: 1.44 | I26: 0 | J26: 0 | K26: 0 | M26: 1.06 | N26: =IFERROR(DISTANCEBANDE(M26,distance),"") -> 44 | O26: CDBE | P26: 1 | Q26: 1.06 | R26: 0 | S26: 0 | T26: 0 | V26: 0.33 | W26: =IFERROR(DISTANCE3BANDES(V26,distance),"") -> 19 | X26: CDBE | Y26: 1 | Z26: 0.33 | AA26: 0 | AB26: 0 | AC26: 0 | AE26: =IF(AJ26>0,IF(AF26="ESTIMEE",AN26,DISTANCE5Q((AG26+AK26)/(AH26+AL26),distance)),AI26) -> 70 | AF26: ESTIMEE | AG26: 70 | AI26: =IF(AH26="",AG26,DISTANCE5Q(AG26/AH26,distance)) -> 70 | AJ26: 0 | AK26: 0 | AL26: 0 | AN26: =IFERROR(DISTANCE5Q(AM26,distance),"") -> 
A27: VIG | B27: COSOLETO | C27: =IFERROR(IF(MATCH(Moyennes!B27,'nouveaux joueurs'!B:B,0) >1,"nouveau joueur",""),"") -> nouveau joueur | D27: =IF(I27>0,IF(F27="ESTIMEE",L27,(H27*G27+I27*L27)/(G27+I27)),H27) -> 2 | E27: =IFERROR(DISTANCELIBRE(D27,table),"") -> 77 | F27: OFFICIELLE | G27: 1 | H27: 2 | I27: 0 | J27: 0 | K27: 0 | L27: =IFERROR(J27/K27,"") ->  | M27: =IF(R27>0,IF(O27="ESTIMEE",U27,(Q27*P27+R27*U27)/(P27+R27)),Q27) -> 0.8784810127 | N27: =IFERROR(DISTANCEBANDE(M27,distance),"") -> 41 | O27: OFFICIELLE | P27: 1 | Q27: 1 | R27: 4 | S27: 134 | T27: 158 | U27: =IFERROR(S27/T27,"") -> 0.8481012658 | V27: =IF(AA27>0,IF(X27="ESTIMEE",AD27,(Z27*Y27+AA27*AD27)/(Y27+AA27)),Z27) -> 0.3375 | W27: =IFERROR(DISTANCE3BANDES(V27,distance),"") -> 19 | X27: CDBE | Y27: 1 | Z27: 0.3 | AA27: 1 | AB27: 18 | AC27: 48 | AD27: =IFERROR(AB27/AC27,"") -> 0.375 | AE27: =IF(AJ27>0,IF(AF27="ESTIMEE",AN27,DISTANCE5Q((AG27+AK27)/(AH27+AL27),distance)),AI27) -> 69 | AF27: ESTIMEE | AG27: 69 | AI27: =IF(AH27="",AG27,DISTANCE5Q(AG27/AH27,distance)) -> 69 | AJ27: 0 | AK27: 0 | AL27: 0 | AM27: =IFERROR(AK27/AL27,"") ->  | AN27: =IFERROR(DISTANCE5Q(AM27,distance),"") -> 
A28: MOR | B28: COTILLARD | C28: =IFERROR(IF(MATCH(Moyennes!B28,'nouveaux joueurs'!B:B,0) >1,"nouveau joueur",""),"") ->  | D28: 2.26 | E28: =IFERROR(DISTANCELIBRE(D28,table),"") -> 83 | F28: OFFICIELLE | G28: 1 | H28: 2.26 | I28: 0 | J28: 0 | K28: 0 | M28: 1.098803419 | N28: =IFERROR(DISTANCEBANDE(M28,distance),"") -> 45 | O28: OFFICIELLE | P28: 1 | Q28: 1.04 | R28: 2 | S28: 88 | T28: 78 | U28: 1.128205128 | V28: 0.271 | W28: =IFERROR(DISTANCE3BANDES(V28,distance),"") -> 16 | X28: CDBE | Y28: 1 | Z28: 0.271 | AA28: 0 | AB28: 0 | AC28: 0 | AE28: =IF(AJ28>0,IF(AF28="ESTIMEE",AN28,DISTANCE5Q((AG28+AK28)/(AH28+AL28),distance)),AI28) -> 70 | AF28: ESTIMEE | AG28: 70 | AI28: =IF(AH28="",AG28,DISTANCE5Q(AG28/AH28,distance)) -> 70 | AJ28: 0 | AK28: 0 | AL28: 0 | AN28: =IFERROR(DISTANCE5Q(AM28,distance),"") -> 
A29: ARP | B29: CUILLERAT | C29: =IFERROR(IF(MATCH(Moyennes!B29,'nouveaux joueurs'!B:B,0) >1,"nouveau joueur",""),"") -> nouveau joueur | D29: =IF(I29>0,IF(F29="ESTIMEE",L29,(H29*G29+I29*L29)/(G29+I29)),H29) -> 0.8693877551 | E29: =IFERROR(DISTANCELIBRE(D29,table),"") -> 47 | F29: OFFICIELLE | G29: 1 | H29: 0.6 | I29: 3 | J29: 94 | K29: 98 | L29: =IFERROR(J29/K29,"") -> 0.9591836735 | M29: =IF(R29>0,IF(O29="ESTIMEE",U29,(Q29*P29+R29*U29)/(P29+R29)),Q29) -> 0.45 | N29: =IFERROR(DISTANCEBANDE(M29,distance),"") -> 32 | O29: OFFICIELLE | P29: 1 | Q29: 0.45 | R29: 0 | S29: 0 | T29: 0 | U29: =IFERROR(S29/T29,"") ->  | V29: =IF(AA29>0,IF(X29="ESTIMEE",AD29,(Z29*Y29+AA29*AD29)/(Y29+AA29)),Z29) -> 0.18 | W29: =IFERROR(DISTANCE3BANDES(V29,distance),"") -> 13 | X29: CDBE | Y29: 1 | Z29: 0.18 | AA29: 0 | AB29: 0 | AC29: 0 | AD29: =IFERROR(AB29/AC29,"") ->  | AE29: =IF(AJ29>0,IF(AF29="ESTIMEE",AN29,DISTANCE5Q((AG29+AK29)/(AH29+AL29),distance)),AI29) -> 63 | AF29: ESTIMEE | AG29: 63 | AI29: =IF(AH29="",AG29,DISTANCE5Q(AG29/AH29,distance)) -> 63 | AJ29: 0 | AK29: 0 | AL29: 0 | AM29: =IFERROR(AK29/AL29,"") ->  | AN29: =IFERROR(DISTANCE5Q(AM29,distance),"") -> 
A30: MAS | B30: DANIAU | C30: =IFERROR(IF(MATCH(Moyennes!B30,'nouveaux joueurs'!B:B,0) >1,"nouveau joueur",""),"") ->  | D30: 1.62 | E30: =IFERROR(DISTANCELIBRE(D30,table),"") -> 67 | F30: OFFICIELLE | G30: 1 | H30: 1.62 | I30: 0 | J30: 0 | K30: 0 | M30: 0.936556962 | N30: =IFERROR(DISTANCEBANDE(M30,distance),"") -> 42 | O30: OFFICIELLE | P30: 1 | Q30: 0.86 | R30: 4 | S30: 151 | T30: 158 | U30: 0.9556962025 | V30: 0.3651842105 | W30: =IFERROR(DISTANCE3BANDES(V30,distance),"") -> 20 | X30: CDBE | Y30: 1 | Z30: 0.283 | AA30: 1 | AB30: 17 | AC30: 38 | AD30: 0.4473684211 | AE30: =IF(AJ30>0,IF(AF30="ESTIMEE",AN30,DISTANCE5Q((AG30+AK30)/(AH30+AL30),distance)),AI30) -> 95 | AF30: ESTIMEE | AG30: 67 | AI30: =IF(AH30="",AG30,DISTANCE5Q(AG30/AH30,distance)) -> 67 | AJ30: 1 | AK30: 134 | AL30: 98 | AM30: 1.367346939 | AN30: =IFERROR(DISTANCE5Q(AM30,distance),"") -> 95
A31: DRA | B31: DELOBEL | C31: =IFERROR(IF(MATCH(Moyennes!B31,'nouveaux joueurs'!B:B,0) >1,"nouveau joueur",""),"") ->  | D31: 1.678571429 | E31: =IFERROR(DISTANCELIBRE(D31,table),"") -> 69 | F31: OFFICIELLE | G31: 1 | H31: 1.5 | I31: 1 | J31: 52 | K31: 28 | L31: 1.857142857 | M31: 0.83 | N31: =IFERROR(DISTANCEBANDE(M31,distance),"") -> 40 | O31: OFFICIELLE | P31: 1 | Q31: 0.83 | R31: 0 | S31: 0 | T31: 0 | V31: 0.244 | W31: =IFERROR(DISTANCE3BANDES(V31,distance),"") -> 15 | X31: CDBE | Y31: 1 | Z31: 0.244 | AA31: 0 | AB31: 0 | AC31: 0 | AE31: =IF(AJ31>0,IF(AF31="ESTIMEE",AN31,DISTANCE5Q((AG31+AK31)/(AH31+AL31),distance)),AI31) -> 67 | AF31: ESTIMEE | AG31: 67 | AI31: =IF(AH31="",AG31,DISTANCE5Q(AG31/AH31,distance)) -> 67 | AJ31: 0 | AK31: 0 | AL31: 0 | AN31: =IFERROR(DISTANCE5Q(AM31,distance),"") -> 
A32: MOR | B32: DEPARDIEU | C32: =IFERROR(IF(MATCH(Moyennes!B32,'nouveaux joueurs'!B:B,0) >1,"nouveau joueur",""),"") ->  | D32: 2 | E32: =IFERROR(DISTANCELIBRE(D32,table),"") -> 77 | F32: OFFICIELLE | G32: 1 | H32: 2 | I32: 0 | J32: 0 | K32: 0 | M32: 0.61 | N32: =IFERROR(DISTANCEBANDE(M32,distance),"") -> 35 | O32: OFFICIELLE | P32: 1 | Q32: 0.61 | R32: 0 | S32: 0 | T32: 0 | V32: 0.29 | W32: =IFERROR(DISTANCE3BANDES(V32,distance),"") -> 17 | X32: CDBE | Y32: 1 | Z32: 0.29 | AA32: 0 | AB32: 0 | AC32: 0 | AE32: =IF(AJ32>0,IF(AF32="ESTIMEE",AN32,DISTANCE5Q((AG32+AK32)/(AH32+AL32),distance)),AI32) -> 69 | AF32: ESTIMEE | AG32: 69 | AI32: =IF(AH32="",AG32,DISTANCE5Q(AG32/AH32,distance)) -> 69 | AJ32: 0 | AK32: 0 | AL32: 0 | AN32: =IFERROR(DISTANCE5Q(AM32,distance),"") -> 
A33: DRA | B33: DESHAYES | C33: =IFERROR(IF(MATCH(Moyennes!B33,'nouveaux joueurs'!B:B,0) >1,"nouveau joueur",""),"") ->  | D33: 0.66 | E33: =IFERROR(DISTANCELIBRE(D33,table),"") -> 41 | F33: OFFICIELLE | G33: 1 | H33: 0.66 | I33: 0 | J33: 0 | K33: 0 | M33: 0.5 | N33: =IFERROR(DISTANCEBANDE(M33,distance),"") -> 33 | O33: ESTIMEE | P33: 1 | Q33: 0.5 | R33: 0 | S33: 0 | T33: 0 | V33: 0.1583333333 | W33: =IFERROR(DISTANCE3BANDES(V33,distance),"") -> 12 | X33: CDBE | Y33: 1 | Z33: 0.15 | AA33: 1 | AB33: 8 | AC33: 48 | AD33: 0.1666666667 | AE33: =IF(AJ33>0,IF(AF33="ESTIMEE",AN33,DISTANCE5Q((AG33+AK33)/(AH33+AL33),distance)),AI33) -> 72 | AF33: ESTIMEE | AG33: 68 | AI33: =IF(AH33="",AG33,DISTANCE5Q(AG33/AH33,distance)) -> 68 | AJ33: 1 | AK33: 104 | AL33: 120 | AM33: 0.8666666667 | AN33: =IFERROR(DISTANCE5Q(AM33,distance),"") -> 72
A34: ARP | B34: DEVILLEBICHOT | C34: =IFERROR(IF(MATCH(Moyennes!B34,'nouveaux joueurs'!B:B,0) >1,"nouveau joueur",""),"") ->  | D34: 1.55 | E34: =IFERROR(DISTANCELIBRE(D34,table),"") -> 65 | F34: OFFICIELLE | G34: 1 | H34: 1.55 | I34: 0 | J34: 0 | K34: 0 | M34: 1.07 | N34: =IFERROR(DISTANCEBANDE(M34,distance),"") -> 45 | O34: OFFICIELLE | P34: 1 | Q34: 1.07 | R34: 0 | S34: 0 | T34: 0 | V34: 0.3737765957 | W34: =IFERROR(DISTANCE3BANDES(V34,distance),"") -> 21 | X34: OFFICIELLE | Y34: 1 | Z34: 0.41 | AA34: 3 | AB34: 68 | AC34: 188 | AD34: 0.3617021277 | AE34: =IF(AJ34>0,IF(AF34="ESTIMEE",AN34,DISTANCE5Q((AG34+AK34)/(AH34+AL34),distance)),AI34) -> 67 | AF34: ESTIMEE | AG34: 67 | AI34: =IF(AH34="",AG34,DISTANCE5Q(AG34/AH34,distance)) -> 67 | AJ34: 0 | AK34: 0 | AL34: 0 | AN34: =IFERROR(DISTANCE5Q(AM34,distance),"") -> 
A35: MOR | B35: FAYT | C35: =IFERROR(IF(MATCH(Moyennes!B35,'nouveaux joueurs'!B:B,0) >1,"nouveau joueur",""),"") ->  | D35: 1.36 | E35: =IFERROR(DISTANCELIBRE(D35,table),"") -> 60 | F35: OFFICIELLE | G35: 1 | H35: 1.36 | I35: 0 | J35: 0 | K35: 0 | M35: 0.7661181435 | N35: =IFERROR(DISTANCEBANDE(M35,distance),"") -> 39 | O35: OFFICIELLE | P35: 1 | Q35: 0.83 | R35: 2 | S35: 58 | T35: 79 | U35: 0.7341772152 | V35: 0.199 | W35: =IFERROR(DISTANCE3BANDES(V35,distance),"") -> 14 | X35: CDBE | Y35: 1 | Z35: 0.199 | AA35: 0 | AB35: 0 | AC35: 0 | AE35: =IF(AJ35>0,IF(AF35="ESTIMEE",AN35,DISTANCE5Q((AG35+AK35)/(AH35+AL35),distance)),AI35) -> 66 | AF35: ESTIMEE | AG35: 66 | AI35: =IF(AH35="",AG35,DISTANCE5Q(AG35/AH35,distance)) -> 66 | AJ35: 0 | AK35: 0 | AL35: 0 | AN35: =IFERROR(DISTANCE5Q(AM35,distance),"") -> 
A36: ARP | B36: FERON | C36: =IFERROR(IF(MATCH(Moyennes!B36,'nouveaux joueurs'!B:B,0) >1,"nouveau joueur",""),"") ->  | D36: 1.39 | E36: =IFERROR(DISTANCELIBRE(D36,table),"") -> 61 | F36: CDBE | G36: 1 | H36: 1.39 | I36: 0 | J36: 0 | K36: 0 | M36: 0.6 | N36: =IFERROR(DISTANCEBANDE(M36,distance),"") -> 35 | O36: ESTIMEE | P36: 1 | Q36: 0.6 | R36: 0 | S36: 0 | T36: 0 | V36: 0.333 | W36: =IFERROR(DISTANCE3BANDES(V36,distance),"") -> 19 | X36: OFFICIELLE | Y36: 1 | Z36: 0.333 | AA36: 0 | AB36: 0 | AC36: 0 | AE36: =IF(AJ36>0,IF(AF36="ESTIMEE",AN36,DISTANCE5Q((AG36+AK36)/(AH36+AL36),distance)),AI36) -> 66 | AF36: ESTIMEE | AG36: 66 | AI36: =IF(AH36="",AG36,DISTANCE5Q(AG36/AH36,distance)) -> 66 | AJ36: 0 | AK36: 0 | AL36: 0 | AN36: =IFERROR(DISTANCE5Q(AM36,distance),"") -> 
A37: VIG | B37: FEVER | C37: =IFERROR(IF(MATCH(Moyennes!B37,'nouveaux joueurs'!B:B,0) >1,"nouveau joueur",""),"") ->  | D37: 3.15 | E37: =IFERROR(DISTANCELIBRE(D37,table),"") -> 103 | F37: OFFICIELLE | G37: 1 | H37: 3.15 | I37: 0 | J37: 0 | K37: 0 | M37: NC | N37: =IFERROR(DISTANCEBANDE(M37,distance),"") ->  | P37: 1 | Q37: NC | R37: =IFERROR(GETPIVOTDATA("Nb parties",Moyennes_bande,"Joueur ",$B37),0) -> 0 | S37: =IFERROR(GETPIVOTDATA("Total points",Moyennes_bande,"Joueur ",$B37),0) -> 0 | T37: =IFERROR(GETPIVOTDATA("Total reprises",Moyennes_bande,"Joueur ",$B37),0) -> 0 | V37: 0.41 | W37: =IFERROR(DISTANCE3BANDES(V37,distance),"") -> 22 | X37: OFFICIELLE | Y37: 1 | Z37: 0.41 | AA37: =IFERROR(GETPIVOTDATA("Nb parties",Moyennes_3bandes,"Joueur ",$B37),0) -> 0 | AB37: =IFERROR(GETPIVOTDATA("Total points",Moyennes_3bandes,"Joueur ",$B37),0) -> 0 | AC37: =IFERROR(GETPIVOTDATA("Total reprises",Moyennes_3bandes,"Joueur ",$B37),0) -> 0 | AE37: =IF(AJ37>0,IF(AF37="ESTIMEE",AN37,DISTANCE5Q((AG37+AK37)/(AH37+AL37),distance)),AI37) -> 89 | AF37: ESTIMEE | AG37: 89 | AI37: =IF(AH37="",AG37,DISTANCE5Q(AG37/AH37,distance)) -> 89 | AJ37: =IFERROR(GETPIVOTDATA("Nb parties",Moyennes_5quilles,"Joueur ",$B37),0) -> 0 | AK37: =IFERROR(GETPIVOTDATA("Total points joueur",Moyennes_5quilles,"Joueur ",$B37),0) -> 0 | AL37: =IFERROR(GETPIVOTDATA("Total points adversaire",Moyennes_5quilles,"Joueur ",$B37),0) -> 0 | AN37: =IFERROR(DISTANCE5Q(AM37,distance),"") -> 
A38: DRA | B38: FLAIRE | C38: =IFERROR(IF(MATCH(Moyennes!B38,'nouveaux joueurs'!B:B,0) >1,"nouveau joueur",""),"") ->  | D38: 1 | E38: =IFERROR(DISTANCELIBRE(D38,table),"") -> 51 | F38: CDBE | G38: 1 | H38: 1 | I38: 0 | J38: 0 | K38: 0 | M38: 1 | N38: =IFERROR(DISTANCEBANDE(M38,distance),"") -> 43 | O38: CDBE | P38: 1 | Q38: 1 | R38: 0 | S38: 0 | T38: 0 | V38: 0.25 | W38: =IFERROR(DISTANCE3BANDES(V38,distance),"") -> 16 | X38: CDBE | Y38: 1 | Z38: 0.25 | AA38: 0 | AB38: 0 | AC38: 0 | AE38: =IF(AJ38>0,IF(AF38="ESTIMEE",AN38,DISTANCE5Q((AG38+AK38)/(AH38+AL38),distance)),AI38) -> 60 | AF38: ESTIMEE | AG38: 60 | AI38: =IF(AH38="",AG38,DISTANCE5Q(AG38/AH38,distance)) -> 60 | AJ38: 0 | AK38: 0 | AL38: 0 | AN38: =IFERROR(DISTANCE5Q(AM38,distance),"") -> 
A39: ETR | B39: FLEURY | C39: =IFERROR(IF(MATCH(Moyennes!B39,'nouveaux joueurs'!B:B,0) >1,"nouveau joueur",""),"") ->  | D39: 1.14 | E39: =IFERROR(DISTANCELIBRE(D39,table),"") -> 54 | F39: OFFICIELLE | G39: 1 | H39: 1.14 | I39: 0 | J39: 0 | K39: 0 | M39: 0.6666666667 | N39: =IFERROR(DISTANCEBANDE(M39,distance),"") -> 37 | O39: ESTIMEE | P39: 1 | Q39: 0.4 | R39: 1 | S39: 20 | T39: 30 | U39: 0.6666666667 | V39: 0.295 | W39: =IFERROR(DISTANCE3BANDES(V39,distance),"") -> 17 | X39: OFFICIELLE | Y39: 1 | Z39: 0.295 | AA39: 0 | AB39: 0 | AC39: 0 | AE39: =IF(AJ39>0,IF(AF39="ESTIMEE",AN39,DISTANCE5Q((AG39+AK39)/(AH39+AL39),distance)),AI39) -> 60 | AF39: ESTIMEE | AG39: 65 | AI39: =IF(AH39="",AG39,DISTANCE5Q(AG39/AH39,distance)) -> 65 | AJ39: 1 | AK39: 47 | AL39: 130 | AM39: 0.3615384615 | AN39: =IFERROR(DISTANCE5Q(AM39,distance),"") -> 60
A40: ARP | B40: FOURNIER | C40: =IFERROR(IF(MATCH(Moyennes!B40,'nouveaux joueurs'!B:B,0) >1,"nouveau joueur",""),"") ->  | D40: 0.75 | E40: =IFERROR(DISTANCELIBRE(D40,table),"") -> 44 | F40: CDBE | G40: 1 | H40: 0.75 | I40: 0 | J40: 0 | K40: 0 | M40: 0.47 | N40: =IFERROR(DISTANCEBANDE(M40,distance),"") -> 33 | O40: CDBE | P40: 1 | Q40: 0.47 | R40: 0 | S40: 0 | T40: 0 | V40: 0.13 | W40: =IFERROR(DISTANCE3BANDES(V40,distance),"") -> 11 | X40: CDBE | Y40: 1 | Z40: 0.13 | AA40: 0 | AB40: 0 | AC40: 0 | AE40: =IF(AJ40>0,IF(AF40="ESTIMEE",AN40,DISTANCE5Q((AG40+AK40)/(AH40+AL40),distance)),AI40) -> 60 | AF40: ESTIMEE | AG40: 60 | AI40: =IF(AH40="",AG40,DISTANCE5Q(AG40/AH40,distance)) -> 60 | AJ40: 0 | AK40: 0 | AL40: 0 | AN40: =IFERROR(DISTANCE5Q(AM40,distance),"") -> 
A41: MOR | B41: FREYSZ | C41: =IFERROR(IF(MATCH(Moyennes!B41,'nouveaux joueurs'!B:B,0) >1,"nouveau joueur",""),"") ->  | D41: 0.6 | E41: =IFERROR(DISTANCELIBRE(D41,table),"") -> 40 | F41: CDBE | G41: 1 | H41: 0.6 | I41: 0 | J41: 0 | K41: 0 | M41: 0.5 | N41: =IFERROR(DISTANCEBANDE(M41,distance),"") -> 33 | O41: CDBE | P41: 1 | Q41: 0.5 | R41: 0 | S41: 0 | T41: 0 | V41: 0.401 | W41: =IFERROR(DISTANCE3BANDES(V41,distance),"") -> 22 | X41: OFFICIELLE | Y41: 1 | Z41: 0.401 | AA41: 0 | AB41: 0 | AC41: 0 | AE41: =IF(AJ41>0,IF(AF41="ESTIMEE",AN41,DISTANCE5Q((AG41+AK41)/(AH41+AL41),distance)),AI41) -> 81 | AF41: ESTIMEE | AG41: 81 | AI41: =IF(AH41="",AG41,DISTANCE5Q(AG41/AH41,distance)) -> 81 | AJ41: 0 | AK41: 0 | AL41: 0 | AN41: =IFERROR(DISTANCE5Q(AM41,distance),"") -> 
A42: MOR | B42: GAROIS | C42: =IFERROR(IF(MATCH(Moyennes!B42,'nouveaux joueurs'!B:B,0) >1,"nouveau joueur",""),"") ->  | D42: 0.58 | E42: =IFERROR(DISTANCELIBRE(D42,table),"") -> 39 | F42: OFFICIELLE | G42: 1 | H42: 0.58 | I42: 0 | J42: 0 | K42: 0 | M42: 0.3 | N42: =IFERROR(DISTANCEBANDE(M42,distance),"") -> 29 | O42: ESTIMEE | P42: 1 | Q42: 0.3 | R42: 0 | S42: 0 | T42: 0 | V42: 0.2 | W42: =IFERROR(DISTANCE3BANDES(V42,distance),"") -> 14 | X42: CDBE | Y42: 1 | Z42: 0.2 | AA42: 0 | AB42: 0 | AC42: 0 | AE42: =IF(AJ42>0,IF(AF42="ESTIMEE",AN42,DISTANCE5Q((AG42+AK42)/(AH42+AL42),distance)),AI42) -> 69 | AF42: ESTIMEE | AG42: 69 | AI42: =IF(AH42="",AG42,DISTANCE5Q(AG42/AH42,distance)) -> 69 | AJ42: 0 | AK42: 0 | AL42: 0 | AN42: =IFERROR(DISTANCE5Q(AM42,distance),"") -> 
A43: ARP | B43: GESLIN | C43: =IFERROR(IF(MATCH(Moyennes!B43,'nouveaux joueurs'!B:B,0) >1,"nouveau joueur",""),"") ->  | D43: 1.72 | E43: =IFERROR(DISTANCELIBRE(D43,table),"") -> 70 | F43: CDBE | G43: 1 | H43: 1.72 | I43: 0 | J43: 0 | K43: 0 | M43: 0.8663636364 | N43: =IFERROR(DISTANCEBANDE(M43,distance),"") -> 41 | O43: CDBE | P43: 1 | Q43: 0.96 | R43: 1 | S43: 34 | T43: 44 | U43: 0.7727272727 | V43: 0.384 | W43: =IFERROR(DISTANCE3BANDES(V43,distance),"") -> 21 | X43: CDBE | Y43: 1 | Z43: 0.384 | AA43: 0 | AB43: 0 | AC43: 0 | AE43: =IF(AJ43>0,IF(AF43="ESTIMEE",AN43,DISTANCE5Q((AG43+AK43)/(AH43+AL43),distance)),AI43) -> 85 | AF43: ESTIMEE | AG43: 60 | AI43: =IF(AH43="",AG43,DISTANCE5Q(AG43/AH43,distance)) -> 60 | AJ43: 1 | AK43: 120 | AL43: 104 | AM43: 1.153846154 | AN43: =IFERROR(DISTANCE5Q(AM43,distance),"") -> 85
A44: MAS | B44: GOLDMANN | C44: =IFERROR(IF(MATCH(Moyennes!B44,'nouveaux joueurs'!B:B,0) >1,"nouveau joueur",""),"") ->  | D44: 1.8 | E44: =IFERROR(DISTANCELIBRE(D44,table),"") -> 72 | F44: CDBE | G44: 1 | H44: 1.8 | I44: 0 | J44: 0 | K44: 0 | M44: 1.27 | N44: =IFERROR(DISTANCEBANDE(M44,distance),"") -> 48 | O44: CDBE | P44: 1 | Q44: 1.27 | R44: 0 | S44: 0 | T44: 0 | V44: 0.38 | W44: =IFERROR(DISTANCE3BANDES(V44,distance),"") -> 21 | X44: CDBE | Y44: 1 | Z44: 0.38 | AA44: 0 | AB44: 0 | AC44: 0 | AE44: =IF(AJ44>0,IF(AF44="ESTIMEE",AN44,DISTANCE5Q((AG44+AK44)/(AH44+AL44),distance)),AI44) -> 61 | AF44: ESTIMEE | AG44: 61 | AI44: =IF(AH44="",AG44,DISTANCE5Q(AG44/AH44,distance)) -> 61 | AJ44: 0 | AK44: 0 | AL44: 0 | AN44: =IFERROR(DISTANCE5Q(AM44,distance),"") -> 
A45: ARP | B45: GODFIN | C45: =IFERROR(IF(MATCH(Moyennes!B45,'nouveaux joueurs'!B:B,0) >1,"nouveau joueur",""),"") ->  | D45: 0.99 | E45: =IFERROR(DISTANCELIBRE(D45,table),"") -> 50 | F45: CDBE | G45: 1 | H45: 0.99 | I45: 0 | J45: 0 | K45: 0 | M45: 0.6325704225 | N45: =IFERROR(DISTANCEBANDE(M45,distance),"") -> 36 | O45: OFFICIELLE | P45: 1 | Q45: 0.65 | R45: 3 | S45: 89 | T45: 142 | U45: 0.6267605634 | V45: 0.1109968847 | W45: =IFERROR(DISTANCE3BANDES(V45,distance),"") -> 11 | X45: CDBE | Y45: 1 | Z45: 0.09 | AA45: 2 | AB45: 13 | AC45: 107 | AD45: 0.1214953271 | AE45: =IF(AJ45>0,IF(AF45="ESTIMEE",AN45,DISTANCE5Q((AG45+AK45)/(AH45+AL45),distance)),AI45) -> 60 | AF45: ESTIMEE | AG45: 60 | AI45: =IF(AH45="",AG45,DISTANCE5Q(AG45/AH45,distance)) -> 60 | AJ45: 0 | AK45: 0 | AL45: 0 | AN45: =IFERROR(DISTANCE5Q(AM45,distance),"") -> 
A46: MOR | B46: GOT | C46: =IFERROR(IF(MATCH(Moyennes!B46,'nouveaux joueurs'!B:B,0) >1,"nouveau joueur",""),"") ->  | D46: =IF(I46>0,IF(F46="ESTIMEE",L46,(H46*G46+I46*L46)/(G46+I46)),H46) -> 0.5 | E46: =IFERROR(DISTANCELIBRE(D46,table),"") -> 37 | F46: OFFICIELLE | G46: 1 | H46: 0.5 | I46: 0 | J46: 0 | K46: 0 | L46: =IFERROR(J46/K46,"") ->  | M46: =IF(R46>0,IF(O46="ESTIMEE",U46,(Q46*P46+R46*U46)/(P46+R46)),Q46) -> 0.3026315789 | N46: =IFERROR(DISTANCEBANDE(M46,distance),"") -> 29 | O46: CDBE | P46: 1 | R46: 1 | S46: 23 | T46: 38 | U46: =IFERROR(S46/T46,"") -> 0.6052631579 | V46: =IF(AA46>0,IF(X46="ESTIMEE",AD46,(Z46*Y46+AA46*AD46)/(Y46+AA46)),Z46) -> 0.25 | W46: =IFERROR(DISTANCE3BANDES(V46,distance),"") -> 16 | X46: OFFICIELLE | Y46: 1 | Z46: 0.25 | AA46: 0 | AB46: 0 | AC46: 0 | AD46: =IFERROR(AB46/AC46,"") ->  | AE46: =IF(AJ46>0,IF(AF46="ESTIMEE",AN46,DISTANCE5Q((AG46+AK46)/(AH46+AL46),distance)),AI46) -> 72 | AF46: ESTIMEE | AG46: 60 | AI46: =IF(AH46="",AG46,DISTANCE5Q(AG46/AH46,distance)) -> 60 | AJ46: 4 | AK46: 414 | AL46: 471 | AM46: =IFERROR(AK46/AL46,"") -> 0.8789808917 | AN46: =IFERROR(DISTANCE5Q(AM46,distance),"") -> 72
A47: MOR | B47: GUERIN | C47: =IFERROR(IF(MATCH(Moyennes!B47,'nouveaux joueurs'!B:B,0) >1,"nouveau joueur",""),"") ->  | D47: 8.87 | E47: =IFERROR(DISTANCELIBRE(D47,table),"") -> 183 | F47: OFFICIELLE | G47: 1 | H47: 8.87 | I47: 0 | J47: 0 | K47: 0 | M47: NC | N47: =IFERROR(DISTANCEBANDE(M47,distance),"") ->  | O47: CDBE | P47: 1 | Q47: NC | R47: 0 | S47: 0 | T47: 0 | V47: 0.65 | W47: =IFERROR(DISTANCE3BANDES(V47,distance),"") -> 36 | X47: OFFICIELLE | Y47: 1 | Z47: 0.65 | AA47: 0 | AB47: 0 | AC47: 0 | AE47: =IF(AJ47>0,IF(AF47="ESTIMEE",AN47,DISTANCE5Q((AG47+AK47)/(AH47+AL47),distance)),AI47) -> NC | AF47: ESTIMEE | AG47: NC | AI47: =IF(AH47="",AG47,DISTANCE5Q(AG47/AH47,distance)) -> NC | AJ47: 0 | AK47: 0 | AL47: 0 | AN47: =IFERROR(DISTANCE5Q(AM47,distance),"") -> 
A48: ARP | B48: GUILLOT | C48: =IFERROR(IF(MATCH(Moyennes!B48,'nouveaux joueurs'!B:B,0) >1,"nouveau joueur",""),"") ->  | D48: 1 | E48: =IFERROR(DISTANCELIBRE(D48,table),"") -> 51 | F48: CDBE | G48: 1 | H48: 1 | I48: 0 | J48: 0 | K48: 0 | M48: 0.5 | N48: =IFERROR(DISTANCEBANDE(M48,distance),"") -> 33 | O48: ESTIMEE | P48: 1 | Q48: 0.5 | R48: 0 | S48: 0 | T48: 0 | V48: 0.25 | W48: =IFERROR(DISTANCE3BANDES(V48,distance),"") -> 16 | X48: CDBE | Y48: 1 | Z48: 0.25 | AA48: 0 | AB48: 0 | AC48: 0 | AE48: =IF(AJ48>0,IF(AF48="ESTIMEE",AN48,DISTANCE5Q((AG48+AK48)/(AH48+AL48),distance)),AI48) -> 60 | AF48: ESTIMEE | AG48: 60 | AI48: =IF(AH48="",AG48,DISTANCE5Q(AG48/AH48,distance)) -> 60 | AJ48: 0 | AK48: 0 | AL48: 0 | AN48: =IFERROR(DISTANCE5Q(AM48,distance),"") -> 
A49: VIG | B49: HELLEU | C49: =IFERROR(IF(MATCH(Moyennes!B49,'nouveaux joueurs'!B:B,0) >1,"nouveau joueur",""),"") ->  | D49: 1.615365687 | E49: =IFERROR(DISTANCELIBRE(D49,table),"") -> 67 | F49: OFFICIELLE | G49: 1 | H49: 1.92 | I49: 6 | J49: 327 | K49: 209 | L49: 1.564593301 | M49: 0.8 | N49: =IFERROR(DISTANCEBANDE(M49,distance),"") -> 39 | O49: ESTIMEE | P49: 1 | Q49: 0.8 | R49: 0 | S49: 0 | T49: 0 | V49: 0.25 | W49: =IFERROR(DISTANCE3BANDES(V49,distance),"") -> 16 | X49: CDBE | Y49: 1 | Z49: 0.25 | AA49: 0 | AB49: 0 | AC49: 0 | AE49: =IF(AJ49>0,IF(AF49="ESTIMEE",AN49,DISTANCE5Q((AG49+AK49)/(AH49+AL49),distance)),AI49) -> 65 | AF49: ESTIMEE | AG49: 65 | AI49: =IF(AH49="",AG49,DISTANCE5Q(AG49/AH49,distance)) -> 65 | AJ49: 0 | AK49: 0 | AL49: 0 | AN49: =IFERROR(DISTANCE5Q(AM49,distance),"") -> 
A50: DRA | B50: HOUDOU | C50: =IFERROR(IF(MATCH(Moyennes!B50,'nouveaux joueurs'!B:B,0) >1,"nouveau joueur",""),"") -> nouveau joueur | D50: =IF(I50>0,IF(F50="ESTIMEE",L50,(H50*G50+I50*L50)/(G50+I50)),H50) -> 0.5 | E50: =IFERROR(DISTANCELIBRE(D50,table),"") -> 37 | F50: OFFICIELLE | G50: 1 | H50: 0.5 | I50: 0 | J50: 0 | K50: 0 | L50: =IFERROR(J50/K50,"") ->  | M50: =IF(R50>0,IF(O50="ESTIMEE",U50,(Q50*P50+R50*U50)/(P50+R50)),Q50) -> 0.5 | N50: =IFERROR(DISTANCEBANDE(M50,distance),"") -> 33 | O50: OFFICIELLE | P50: 1 | Q50: 0.5 | R50: 0 | S50: 0 | T50: 0 | U50: =IFERROR(S50/T50,"") ->  | V50: =IF(AA50>0,IF(X50="ESTIMEE",AD50,(Z50*Y50+AA50*AD50)/(Y50+AA50)),Z50) -> 0.2 | W50: =IFERROR(DISTANCE3BANDES(V50,distance),"") -> 14 | X50: OFFICIELLE | Y50: 1 | Z50: 0.2 | AA50: 0 | AB50: 0 | AC50: 0 | AD50: =IFERROR(AB50/AC50,"") ->  | AE50: =IF(AJ50>0,IF(AF50="ESTIMEE",AN50,DISTANCE5Q((AG50+AK50)/(AH50+AL50),distance)),AI50) -> 62 | AF50: ESTIMEE | AG50: 62 | AI50: =IF(AH50="",AG50,DISTANCE5Q(AG50/AH50,distance)) -> 62 | AJ50: 0 | AK50: 0 | AL50: 0 | AM50: =IFERROR(AK50/AL50,"") ->  | AN50: =IFERROR(DISTANCE5Q(AM50,distance),"") -> 
A51: ETR | B51: HOUPLAIN | C51: =IFERROR(IF(MATCH(Moyennes!B51,'nouveaux joueurs'!B:B,0) >1,"nouveau joueur",""),"") ->  | D51: 5 | E51: =IFERROR(DISTANCELIBRE(D51,table),"") -> 138 | F51: OFFICIELLE | G51: 1 | H51: 5 | I51: 0 | J51: 0 | K51: 0 | M51: 1.514036697 | N51: =IFERROR(DISTANCEBANDE(M51,distance),"") -> 53 | O51: OFFICIELLE | P51: 1 | Q51: 1.68 | R51: 3 | S51: 159 | T51: 109 | U51: 1.458715596 | V51: 0.395 | W51: =IFERROR(DISTANCE3BANDES(V51,distance),"") -> 22 | X51: OFFICIELLE | Y51: 1 | Z51: 0.395 | AA51: 0 | AB51: 0 | AC51: 0 | AE51: =IF(AJ51>0,IF(AF51="ESTIMEE",AN51,DISTANCE5Q((AG51+AK51)/(AH51+AL51),distance)),AI51) -> 83 | AF51: ESTIMEE | AG51: 83 | AI51: =IF(AH51="",AG51,DISTANCE5Q(AG51/AH51,distance)) -> 83 | AJ51: 0 | AK51: 0 | AL51: 0 | AN51: =IFERROR(DISTANCE5Q(AM51,distance),"") -> 
A52: DRA | B52: HUE | C52: =IFERROR(IF(MATCH(Moyennes!B52,'nouveaux joueurs'!B:B,0) >1,"nouveau joueur",""),"") -> nouveau joueur | D52: =IF(I52>0,IF(F52="ESTIMEE",L52,(H52*G52+I52*L52)/(G52+I52)),H52) -> 0.5 | E52: =IFERROR(DISTANCELIBRE(D52,table),"") -> 37 | F52: CDBE | G52: 1 | H52: 0.5 | I52: 0 | J52: 0 | K52: 0 | L52: =IFERROR(J52/K52,"") ->  | M52: =IF(R52>0,IF(O52="ESTIMEE",U52,(Q52*P52+R52*U52)/(P52+R52)),Q52) -> 0.5 | N52: =IFERROR(DISTANCEBANDE(M52,distance),"") -> 33 | O52: CDBE | P52: 1 | Q52: 0.5 | R52: 0 | S52: 0 | T52: 0 | U52: =IFERROR(S52/T52,"") ->  | V52: =IF(AA52>0,IF(X52="ESTIMEE",AD52,(Z52*Y52+AA52*AD52)/(Y52+AA52)),Z52) -> 0.2627906977 | W52: =IFERROR(DISTANCE3BANDES(V52,distance),"") -> 16 | X52: CDBE | Y52: 1 | Z52: 0.2 | AA52: 1 | AB52: 14 | AC52: 43 | AD52: =IFERROR(AB52/AC52,"") -> 0.3255813953 | AE52: =IF(AJ52>0,IF(AF52="ESTIMEE",AN52,DISTANCE5Q((AG52+AK52)/(AH52+AL52),distance)),AI52) -> 74 | AF52: ESTIMEE | AG52: 60 | AI52: =IF(AH52="",AG52,DISTANCE5Q(AG52/AH52,distance)) -> 60 | AJ52: 2 | AK52: 213 | AL52: 234 | AM52: =IFERROR(AK52/AL52,"") -> 0.9102564103 | AN52: =IFERROR(DISTANCE5Q(AM52,distance),"") -> 74
A53: DRA | B53: HUIBAN | C53: =IFERROR(IF(MATCH(Moyennes!B53,'nouveaux joueurs'!B:B,0) >1,"nouveau joueur",""),"") ->  | D53: 0.5 | E53: =IFERROR(DISTANCELIBRE(D53,table),"") -> 37 | F53: CDBE | G53: 1 | H53: 0.5 | I53: 0 | J53: 0 | K53: 0 | M53: 0.5 | N53: =IFERROR(DISTANCEBANDE(M53,distance),"") -> 33 | O53: CDBE | P53: 1 | Q53: 0.5 | R53: 0 | S53: 0 | T53: 0 | V53: 0.2 | W53: =IFERROR(DISTANCE3BANDES(V53,distance),"") -> 14 | X53: CDBE | Y53: 1 | Z53: 0.2 | AA53: 0 | AB53: 0 | AC53: 0 | AE53: =IF(AJ53>0,IF(AF53="ESTIMEE",AN53,DISTANCE5Q((AG53+AK53)/(AH53+AL53),distance)),AI53) -> 62 | AF53: ESTIMEE | AG53: 62 | AI53: =IF(AH53="",AG53,DISTANCE5Q(AG53/AH53,distance)) -> 62 | AJ53: 0 | AK53: 0 | AL53: 0 | AN53: =IFERROR(DISTANCE5Q(AM53,distance),"") -> 
A54: ETR | B54: IZNEROWICZ | C54: =IFERROR(IF(MATCH(Moyennes!B54,'nouveaux joueurs'!B:B,0) >1,"nouveau joueur",""),"") ->  | D54: 1.9 | E54: =IFERROR(DISTANCELIBRE(D54,table),"") -> 74 | F54: OFFICIELLE | G54: 1 | H54: 1.9 | I54: 0 | J54: 0 | K54: 0 | M54: 1.03 | N54: =IFERROR(DISTANCEBANDE(M54,distance),"") -> 44 | O54: OFFICIELLE | P54: 1 | Q54: 1.03 | R54: 0 | S54: 0 | T54: 0 | V54: 0.15 | W54: =IFERROR(DISTANCE3BANDES(V54,distance),"") -> 12 | X54: CDBE | Y54: 1 | Z54: 0.15 | AA54: 0 | AB54: 0 | AC54: 0 | AE54: =IF(AJ54>0,IF(AF54="ESTIMEE",AN54,DISTANCE5Q((AG54+AK54)/(AH54+AL54),distance)),AI54) -> 60 | AF54: ESTIMEE | AG54: 60 | AI54: =IF(AH54="",AG54,DISTANCE5Q(AG54/AH54,distance)) -> 60 | AJ54: 0 | AK54: 0 | AL54: 0 | AN54: =IFERROR(DISTANCE5Q(AM54,distance),"") -> 
A55: ARP | B55: JACQUIN | C55: =IFERROR(IF(MATCH(Moyennes!B55,'nouveaux joueurs'!B:B,0) >1,"nouveau joueur",""),"") ->  | D55: 0.8 | E55: =IFERROR(DISTANCELIBRE(D55,table),"") -> 45 | F55: CDBE | G55: 1 | H55: 0.8 | I55: 0 | J55: 0 | K55: 0 | M55: 0.4520833333 | N55: =IFERROR(DISTANCEBANDE(M55,distance),"") -> 32 | O55: CDBE | P55: 1 | Q55: 0.3 | R55: 1 | S55: 29 | T55: 48 | U55: 0.6041666667 | V55: 0.1 | W55: =IFERROR(DISTANCE3BANDES(V55,distance),"") -> 11 | X55: CDBE | Y55: 1 | Z55: 0.1 | AA55: 0 | AB55: 0 | AC55: 0 | AE55: =IF(AJ55>0,IF(AF55="ESTIMEE",AN55,DISTANCE5Q((AG55+AK55)/(AH55+AL55),distance)),AI55) -> 86 | AF55: ESTIMEE | AG55: 64 | AI55: 64 | AJ55: 2 | AK55: 251 | AL55: 214 | AM55: 1.172897196 | AN55: =IFERROR(DISTANCE5Q(AM55,distance),"") -> 86
A56: DRA | B56: JOREAU | C56: =IFERROR(IF(MATCH(Moyennes!B56,'nouveaux joueurs'!B:B,0) >1,"nouveau joueur",""),"") ->  | D56: 0.8090909091 | E56: =IFERROR(DISTANCELIBRE(D56,table),"") -> 45 | F56: CDBE | G56: 1 | H56: 0.8 | I56: 1 | J56: 18 | K56: 22 | L56: 0.8181818182 | M56: 0.5 | N56: =IFERROR(DISTANCEBANDE(M56,distance),"") -> 33 | O56: CDBE | P56: 1 | Q56: 0.5 | R56: 0 | S56: 0 | T56: 0 | V56: 0.15 | W56: =IFERROR(DISTANCE3BANDES(V56,distance),"") -> 12 | X56: CDBE | Y56: 1 | Z56: 0.15 | AA56: 0 | AB56: 0 | AC56: 0 | AE56: =IF(AJ56>0,IF(AF56="ESTIMEE",AN56,DISTANCE5Q((AG56+AK56)/(AH56+AL56),distance)),AI56) -> 65 | AF56: ESTIMEE | AG56: 60 | AI56: =IF(AH56="",AG56,DISTANCE5Q(AG56/AH56,distance)) -> 60 | AJ56: 2 | AK56: 205 | AL56: 281 | AM56: 0.7295373665 | AN56: =IFERROR(DISTANCE5Q(AM56,distance),"") -> 65
A57: MAS | B57: JOYEZ | C57: =IFERROR(IF(MATCH(Moyennes!B57,'nouveaux joueurs'!B:B,0) >1,"nouveau joueur",""),"") ->  | D57: 4.69 | E57: =IFERROR(DISTANCELIBRE(D57,table),"") -> 133 | F57: OFFICIELLE | G57: 1 | H57: 4.69 | I57: 0 | J57: 0 | K57: 0 | M57: 2.12 | N57: =IFERROR(DISTANCEBANDE(M57,distance),"") -> 64 | O57: OFFICIELLE | P57: 1 | Q57: 2.12 | R57: 0 | S57: 0 | T57: 0 | V57: 0.496 | W57: =IFERROR(DISTANCE3BANDES(V57,distance),"") -> 27 | X57: OFFICIELLE | Y57: 1 | Z57: 0.496 | AA57: 0 | AB57: 0 | AC57: 0 | AE57: =IF(AJ57>0,IF(AF57="ESTIMEE",AN57,DISTANCE5Q((AG57+AK57)/(AH57+AL57),distance)),AI57) -> 96 | AF57: ESTIMEE | AG57: 96 | AI57: =IF(AH57="",AG57,DISTANCE5Q(AG57/AH57,distance)) -> 96 | AJ57: 0 | AK57: 0 | AL57: 0 | AN57: =IFERROR(DISTANCE5Q(AM57,distance),"") -> 
A58: MOR | B58: JULLIEN | C58: =IFERROR(IF(MATCH(Moyennes!B58,'nouveaux joueurs'!B:B,0) >1,"nouveau joueur",""),"") ->  | D58: 2 | E58: =IFERROR(DISTANCELIBRE(D58,table),"") -> 77 | F58: ESTIMEE | G58: 1 | H58: 2 | I58: 0 | J58: 0 | K58: 0 | M58: 1.47 | N58: =IFERROR(DISTANCEBANDE(M58,distance),"") -> 52 | O58: OFFICIELLE | P58: 1 | Q58: 1.47 | R58: 0 | S58: 0 | T58: 0 | V58: 0.473 | W58: =IFERROR(DISTANCE3BANDES(V58,distance),"") -> 26 | X58: OFFICIELLE | Y58: 1 | Z58: 0.473 | AA58: 0 | AB58: 0 | AC58: 0 | AE58: =IF(AJ58>0,IF(AF58="ESTIMEE",AN58,DISTANCE5Q((AG58+AK58)/(AH58+AL58),distance)),AI58) -> 63 | AF58: ESTIMEE | AG58: 63 | AI58: =IF(AH58="",AG58,DISTANCE5Q(AG58/AH58,distance)) -> 63 | AJ58: 0 | AK58: 0 | AL58: 0 | AN58: =IFERROR(DISTANCE5Q(AM58,distance),"") -> 
A59: MOR | B59: LABLANCHE | C59: =IFERROR(IF(MATCH(Moyennes!B59,'nouveaux joueurs'!B:B,0) >1,"nouveau joueur",""),"") ->  | D59: 1.2 | E59: =IFERROR(DISTANCELIBRE(D59,table),"") -> 56 | F59: ESTIMEE | G59: 1 | H59: 1.2 | I59: 0 | J59: 0 | K59: 0 | M59: 0.54 | N59: =IFERROR(DISTANCEBANDE(M59,distance),"") -> 34 | O59: OFFICIELLE | P59: 1 | Q59: 0.54 | R59: 0 | S59: 0 | T59: 0 | V59: 0.25 | W59: =IFERROR(DISTANCE3BANDES(V59,distance),"") -> 16 | X59: CDBE | Y59: 1 | Z59: 0.25 | AA59: 0 | AB59: 0 | AC59: 0 | AE59: =IF(AJ59>0,IF(AF59="ESTIMEE",AN59,DISTANCE5Q((AG59+AK59)/(AH59+AL59),distance)),AI59) -> 68 | AF59: ESTIMEE | AG59: 68 | AI59: =IF(AH59="",AG59,DISTANCE5Q(AG59/AH59,distance)) -> 68 | AJ59: 0 | AK59: 0 | AL59: 0 | AN59: =IFERROR(DISTANCE5Q(AM59,distance),"") -> 
A60: DRA | B60: LAMPLE | C60: =IFERROR(IF(MATCH(Moyennes!B60,'nouveaux joueurs'!B:B,0) >1,"nouveau joueur",""),"") ->  | D60: 2.744074074 | E60: =IFERROR(DISTANCELIBRE(D60,table),"") -> 94 | F60: OFFICIELLE | G60: 1 | H60: 2.34 | I60: 1 | J60: 85 | K60: 27 | L60: 3.148148148 | M60: 1.1 | N60: =IFERROR(DISTANCEBANDE(M60,distance),"") -> 45 | O60: ESTIMEE | P60: 1 | Q60: 1.1 | R60: 0 | S60: 0 | T60: 0 | V60: 0.2016949153 | W60: =IFERROR(DISTANCE3BANDES(V60,distance),"") -> 14 | X60: CDBE | Y60: 1 | Z60: 0.2 | AA60: 1 | AB60: 12 | AC60: 59 | AD60: 0.2033898305 | AE60: =IF(AJ60>0,IF(AF60="ESTIMEE",AN60,DISTANCE5Q((AG60+AK60)/(AH60+AL60),distance)),AI60) -> 71 | AF60: ESTIMEE | AG60: 71 | AI60: =IF(AH60="",AG60,DISTANCE5Q(AG60/AH60,distance)) -> 71 | AJ60: 0 | AK60: 0 | AL60: 0 | AN60: =IFERROR(DISTANCE5Q(AM60,distance),"") -> 
A61: MOR | B61: LANGLAIS | C61: =IFERROR(IF(MATCH(Moyennes!B61,'nouveaux joueurs'!B:B,0) >1,"nouveau joueur",""),"") ->  | D61: NC | E61: =IFERROR(DISTANCELIBRE(D61,table),"") ->  | F61: CDBE | G61: 1 | H61: NC | I61: 0 | J61: 0 | K61: 0 | M61: 1.39 | N61: =IFERROR(DISTANCEBANDE(M61,distance),"") -> 51 | O61: CDBE | P61: 1 | Q61: 1.39 | R61: 0 | S61: 0 | T61: 0 | V61: 0.49 | W61: =IFERROR(DISTANCE3BANDES(V61,distance),"") -> 26 | X61: CDBE | Y61: 1 | Z61: 0.49 | AA61: 0 | AB61: 0 | AC61: 0 | AE61: =IF(AJ61>0,IF(AF61="ESTIMEE",AN61,DISTANCE5Q((AG61+AK61)/(AH61+AL61),distance)),AI61) -> 70 | AF61: ESTIMEE | AG61: 70 | AI61: =IF(AH61="",AG61,DISTANCE5Q(AG61/AH61,distance)) -> 70 | AJ61: 0 | AK61: 0 | AL61: 0 | AN61: =IFERROR(DISTANCE5Q(AM61,distance),"") -> 
A62: DRA | B62: LAUTI | C62: =IFERROR(IF(MATCH(Moyennes!B62,'nouveaux joueurs'!B:B,0) >1,"nouveau joueur",""),"") ->  | D62: 1.3 | E62: =IFERROR(DISTANCELIBRE(D62,table),"") -> 59 | F62: CDBE | G62: 1 | H62: 1.3 | I62: 0 | J62: 0 | K62: 0 | M62: 0.8 | N62: =IFERROR(DISTANCEBANDE(M62,distance),"") -> 39 | O62: OFFICIELLE | P62: 1 | Q62: 0.8 | R62: 0 | S62: 0 | T62: 0 | V62: 0.2 | W62: =IFERROR(DISTANCE3BANDES(V62,distance),"") -> 14 | X62: CDBE | Y62: 1 | Z62: 0.2 | AA62: 0 | AB62: 0 | AC62: 0 | AE62: =IF(AJ62>0,IF(AF62="ESTIMEE",AN62,DISTANCE5Q((AG62+AK62)/(AH62+AL62),distance)),AI62) -> 60 | AF62: ESTIMEE | AG62: 60 | AI62: =IF(AH62="",AG62,DISTANCE5Q(AG62/AH62,distance)) -> 60 | AJ62: 0 | AK62: 0 | AL62: 0 | AN62: =IFERROR(DISTANCE5Q(AM62,distance),"") -> 
A63: DRA | B63: LE SAGE | C63: =IFERROR(IF(MATCH(Moyennes!B63,'nouveaux joueurs'!B:B,0) >1,"nouveau joueur",""),"") ->  | D63: 4.39 | E63: =IFERROR(DISTANCELIBRE(D63,table),"") -> 128 | F63: CDBE | G63: 1 | H63: 4.39 | I63: 0 | J63: 0 | K63: 0 | M63: 1.98 | N63: =IFERROR(DISTANCEBANDE(M63,distance),"") -> 61 | O63: CDBE | P63: 1 | Q63: 1.98 | R63: 0 | S63: 0 | T63: 0 | V63: 0.462 | W63: =IFERROR(DISTANCE3BANDES(V63,distance),"") -> 25 | X63: CDBE | Y63: 1 | Z63: 0.462 | AA63: 0 | AB63: 0 | AC63: 0 | AE63: =IF(AJ63>0,IF(AF63="ESTIMEE",AN63,DISTANCE5Q((AG63+AK63)/(AH63+AL63),distance)),AI63) -> 80 | AF63: ESTIMEE | AG63: 80 | AI63: =IF(AH63="",AG63,DISTANCE5Q(AG63/AH63,distance)) -> 80 | AJ63: 0 | AK63: 0 | AL63: 0 | AN63: =IFERROR(DISTANCE5Q(AM63,distance),"") -> 
A64: ETR | B64: LEBROT | C64: =IFERROR(IF(MATCH(Moyennes!B64,'nouveaux joueurs'!B:B,0) >1,"nouveau joueur",""),"") -> nouveau joueur | D64: 0.8079787234 | E64: =IFERROR(DISTANCELIBRE(D64,table),"") -> 45 | F64: OFFICIELLE | G64: 1 | H64: 0.85 | I64: 1 | J64: 36 | K64: 47 | L64: 0.7659574468 | M64: 0.4 | N64: =IFERROR(DISTANCEBANDE(M64,distance),"") -> 31 | O64: ESTIMEE | P64: 1 | Q64: 0.4 | R64: 0 | S64: 0 | T64: 0 | V64: 0.15 | W64: =IFERROR(DISTANCE3BANDES(V64,distance),"") -> 12 | X64: CDBE | Y64: 1 | Z64: 0.15 | AA64: 0 | AB64: 0 | AC64: 0 | AE64: =IF(AJ64>0,IF(AF64="ESTIMEE",AN64,DISTANCE5Q((AG64+AK64)/(AH64+AL64),distance)),AI64) -> 60 | AF64: ESTIMEE | AG64: 60 | AI64: =IF(AH64="",AG64,DISTANCE5Q(AG64/AH64,distance)) -> 60 | AJ64: 0 | AK64: 0 | AL64: 0 | AN64: =IFERROR(DISTANCE5Q(AM64,distance),"") -> 
A65: MOR | B65: LEBRUN | C65: =IFERROR(IF(MATCH(Moyennes!B65,'nouveaux joueurs'!B:B,0) >1,"nouveau joueur",""),"") ->  | D65: 0.96 | E65: =IFERROR(DISTANCELIBRE(D65,table),"") -> 50 | F65: OFFICIELLE | G65: 1 | H65: 0.96 | I65: 0 | J65: 0 | K65: 0 | M65: 0.63 | N65: =IFERROR(DISTANCEBANDE(M65,distance),"") -> 36 | O65: OFFICIELLE | P65: 1 | Q65: 0.63 | R65: 0 | S65: 0 | T65: 0 | V65: 0.245 | W65: =IFERROR(DISTANCE3BANDES(V65,distance),"") -> 15 | X65: CDBE | Y65: 1 | Z65: 0.245 | AA65: 0 | AB65: 0 | AC65: 0 | AE65: =IF(AJ65>0,IF(AF65="ESTIMEE",AN65,DISTANCE5Q((AG65+AK65)/(AH65+AL65),distance)),AI65) -> 65 | AF65: ESTIMEE | AG65: 65 | AI65: =IF(AH65="",AG65,DISTANCE5Q(AG65/AH65,distance)) -> 65 | AJ65: 0 | AL65: 0 | AN65: =IFERROR(DISTANCE5Q(AM65,distance),"") -> 
A66: MAS | B66: LECUGY | C66: =IFERROR(IF(MATCH(Moyennes!B66,'nouveaux joueurs'!B:B,0) >1,"nouveau joueur",""),"") ->  | D66: 3.13 | E66: =IFERROR(DISTANCELIBRE(D66,table),"") -> 103 | F66: OFFICIELLE | G66: 1 | H66: 3.13 | I66: 0 | J66: 0 | K66: 0 | M66: 1.35 | N66: =IFERROR(DISTANCEBANDE(M66,distance),"") -> 50 | O66: ESTIMEE | P66: 1 | Q66: 1.35 | R66: 0 | S66: 0 | T66: 0 | V66: 0.37 | W66: =IFERROR(DISTANCE3BANDES(V66,distance),"") -> 21 | X66: OFFICIELLE | Y66: 1 | Z66: 0.37 | AA66: 0 | AB66: 0 | AC66: 0 | AE66: =IF(AJ66>0,IF(AF66="ESTIMEE",AN66,DISTANCE5Q((AG66+AK66)/(AH66+AL66),distance)),AI66) -> 74 | AF66: ESTIMEE | AG66: 74 | AI66: =IF(AH66="",AG66,DISTANCE5Q(AG66/AH66,distance)) -> 74 | AJ66: 0 | AK66: 0 | AL66: 0 | AN66: =IFERROR(DISTANCE5Q(AM66,distance),"") -> 
A67: COR | B67: LEGRAND | C67: =IFERROR(IF(MATCH(Moyennes!B67,'nouveaux joueurs'!B:B,0) >1,"nouveau joueur",""),"") ->  | D67: 1.36 | E67: =IFERROR(DISTANCELIBRE(D67,table),"") -> 60 | F67: OFFICIELLE | G67: 1 | H67: 1.36 | I67: 0 | J67: 0 | K67: 0 | M67: 0.65 | N67: =IFERROR(DISTANCEBANDE(M67,distance),"") -> 36 | O67: ESTIMEE | P67: 1 | Q67: 0.65 | R67: 0 | S67: 0 | T67: 0 | V67: 0.22 | W67: =IFERROR(DISTANCE3BANDES(V67,distance),"") -> 15 | X67: OFFICIELLE | Y67: 1 | Z67: 0.22 | AA67: 0 | AB67: 0 | AC67: 0 | AE67: =IF(AJ67>0,IF(AF67="ESTIMEE",AN67,DISTANCE5Q((AG67+AK67)/(AH67+AL67),distance)),AI67) -> 66 | AF67: ESTIMEE | AG67: 66 | AI67: =IF(AH67="",AG67,DISTANCE5Q(AG67/AH67,distance)) -> 66 | AJ67: 0 | AK67: 0 | AL67: 0 | AN67: =IFERROR(DISTANCE5Q(AM67,distance),"") -> 
A68: MAS | B68: LEVANIER | D68: 0.3 | E68: =IFERROR(DISTANCELIBRE(D68,table),"") -> 31 | F68: OFFICIELLE | G68: 1 | H68: 0.3 | M68: =IF(R68>0,IF(O68="ESTIMEE",U68,(Q68*P68+R68*U68)/(P68+R68)),Q68) -> 0 | N68: =IFERROR(DISTANCEBANDE(M68,distance),"") -> 23 | O68: OFFICIELLE | P68: 1 | Q68: 0 | V68: =IF(AA68>0,IF(X68="ESTIMEE",AD68,(Z68*Y68+AA68*AD68)/(Y68+AA68)),Z68) -> 0.07 | W68: =IFERROR(DISTANCE3BANDES(V68,distance),"") -> 10 | X68: CDBE | Y68: 1 | Z68: 0.07 | AA68: 0 | AB68: 0 | AC68: 0 | AD68: =IFERROR(AB68/AC68,"") ->  | AE68: =IF(AJ68>0,IF(AF68="ESTIMEE",AN68,DISTANCE5Q((AG68+AK68)/(AH68+AL68),distance)),AI68) -> 60 | AF68: ESTIMEE | AG68: 60 | AI68: =IF(AH68="",AG68,DISTANCE5Q(AG68/AH68,distance)) -> 60
A69: DRA | B69: LEVOIVENEL | C69: =IFERROR(IF(MATCH(Moyennes!B69,'nouveaux joueurs'!B:B,0) >1,"nouveau joueur",""),"") ->  | D69: 1.55 | E69: =IFERROR(DISTANCELIBRE(D69,table),"") -> 65 | F69: OFFICIELLE | G69: 1 | H69: 1.55 | I69: 0 | J69: 0 | K69: 0 | M69: 0 | N69: =IFERROR(DISTANCEBANDE(M69,distance),"") -> 23 | O69: OFFICIELLE | P69: 1 | Q69: 0 | R69: 0 | S69: 0 | T69: 0 | V69: 0.169 | W69: =IFERROR(DISTANCE3BANDES(V69,distance),"") -> 13 | X69: CDBE | Y69: 1 | Z69: 0.169 | AA69: 0 | AB69: 0 | AC69: 0 | AE69: =IF(AJ69>0,IF(AF69="ESTIMEE",AN69,DISTANCE5Q((AG69+AK69)/(AH69+AL69),distance)),AI69) -> 67 | AF69: ESTIMEE | AG69: 67 | AI69: =IF(AH69="",AG69,DISTANCE5Q(AG69/AH69,distance)) -> 67 | AJ69: 0 | AK69: 0 | AL69: 0 | AN69: =IFERROR(DISTANCE5Q(AM69,distance),"") -> 
A70: ETR | B70: LHOMME | C70: =IFERROR(IF(MATCH(Moyennes!B70,'nouveaux joueurs'!B:B,0) >1,"nouveau joueur",""),"") ->  | D70: =IF(I70>0,IF(F70="ESTIMEE",L70,(H70*G70+I70*L70)/(G70+I70)),H70) -> 1.73 | E70: =IFERROR(DISTANCELIBRE(D70,table),"") -> 70 | F70: OFFICIELLE | G70: 1 | H70: 1.73 | I70: =IFERROR(GETPIVOTDATA("Nb parties",Moyennes_libre,"Joueur ",$B70),0) -> 0 | J70: =IFERROR(GETPIVOTDATA("Total points",Moyennes_libre,"Joueur ",$B70),0) -> 0 | K70: =IFERROR(GETPIVOTDATA("Total reprises",Moyennes_libre,"Joueur ",$B70),0) -> 0 | M70: =IF(R70>0,IF(O70="ESTIMEE",U70,(Q70*P70+R70*U70)/(P70+R70)),Q70) -> 0.9611627907 | N70: =IFERROR(DISTANCEBANDE(M70,distance),"") -> 42 | O70: OFFICIELLE | P70: 1 | Q70: 0.93 | R70: =IFERROR(GETPIVOTDATA("Nb parties",Moyennes_bande,"Joueur ",$B70),0) -> 2 | S70: =IFERROR(GETPIVOTDATA("Total points",Moyennes_bande,"Joueur ",$B70),0) -> 84 | T70: =IFERROR(GETPIVOTDATA("Total reprises",Moyennes_bande,"Joueur ",$B70),0) -> 86 | U70: 0.976744186 | V70: =IF(AA70>0,IF(X70="ESTIMEE",AD70,(Z70*Y70+AA70*AD70)/(Y70+AA70)),Z70) -> 0.2 | W70: =IFERROR(DISTANCE3BANDES(V70,distance),"") -> 14 | X70: CDBE | Y70: 1 | Z70: 0.2 | AA70: =IFERROR(GETPIVOTDATA("Nb parties",Moyennes_3bandes,"Joueur ",$B70),0) -> 0 | AB70: =IFERROR(GETPIVOTDATA("Total points",Moyennes_3bandes,"Joueur ",$B70),0) -> 0 | AC70: =IFERROR(GETPIVOTDATA("Total reprises",Moyennes_3bandes,"Joueur ",$B70),0) -> 0 | AE70: =IF(AJ70>0,IF(AF70="ESTIMEE",AN70,DISTANCE5Q((AG70+AK70)/(AH70+AL70),distance)),AI70) -> 67 | AF70: ESTIMEE | AG70: 68 | AI70: =IF(AH70="",AG70,DISTANCE5Q(AG70/AH70,distance)) -> 68 | AJ70: =IFERROR(GETPIVOTDATA("Nb parties",Moyennes_5quilles,"Joueur ",$B70),0) -> 3 | AK70: =IFERROR(GETPIVOTDATA("Total points joueur",Moyennes_5quilles,"Joueur ",$B70),0) -> 325 | AL70: =IFERROR(GETPIVOTDATA("Total points adversaire",Moyennes_5quilles,"Joueur ",$B70),0) -> 427 | AM70: 0.7611241218 | AN70: =IFERROR(DISTANCE5Q(AM70,distance),"") -> 67
A71: MOR | B71: LILLO | C71: =IFERROR(IF(MATCH(Moyennes!B71,'nouveaux joueurs'!B:B,0) >1,"nouveau joueur",""),"") ->  | D71: 2 | E71: =IFERROR(DISTANCELIBRE(D71,table),"") -> 77 | F71: CDBE | G71: 1 | H71: 2 | I71: 0 | J71: 0 | K71: 0 | M71: 0.5 | N71: =IFERROR(DISTANCEBANDE(M71,distance),"") -> 33 | O71: CDBE | P71: 1 | Q71: 0.5 | R71: 0 | S71: 0 | T71: 0 | U71: =IFERROR(S71/T71,"") ->  | V71: 0.25 | W71: =IFERROR(DISTANCE3BANDES(V71,distance),"") -> 16 | X71: CDBE | Y71: 1 | Z71: 0.25 | AA71: 0 | AB71: 0 | AC71: 0 | AD71: =IFERROR(AB71/AC71,"") ->  | AE71: =IF(AJ71>0,IF(AF71="ESTIMEE",AN71,DISTANCE5Q((AG71+AK71)/(AH71+AL71),distance)),AI71) -> 91 | AF71: ESTIMEE | AG71: 69 | AI71: =IF(AH71="",AG71,DISTANCE5Q(AG71/AH71,distance)) -> 69 | AJ71: 2 | AK71: 285 | AL71: 220 | AM71: =IFERROR(AK71/AL71,"") -> 1.295454545 | AN71: =IFERROR(DISTANCE5Q(AM71,distance),"") -> 91
A72: MOR | B72: LIOTARD | C72: =IFERROR(IF(MATCH(Moyennes!B72,'nouveaux joueurs'!B:B,0) >1,"nouveau joueur",""),"") ->  | D72: 1.6 | E72: =IFERROR(DISTANCELIBRE(D72,table),"") -> 67 | F72: OFFICIELLE | G72: 1 | H72: 1.6 | I72: 0 | J72: 0 | K72: 0 | M72: 0.84 | N72: =IFERROR(DISTANCEBANDE(M72,distance),"") -> 40 | O72: OFFICIELLE | P72: 1 | Q72: 0.84 | R72: 0 | S72: 0 | T72: 0 | V72: 0.165 | W72: =IFERROR(DISTANCE3BANDES(V72,distance),"") -> 13 | X72: CDBE | Y72: 1 | Z72: 0.165 | AA72: 0 | AB72: 0 | AC72: 0 | AE72: =IF(AJ72>0,IF(AF72="ESTIMEE",AN72,DISTANCE5Q((AG72+AK72)/(AH72+AL72),distance)),AI72) -> 67 | AF72: ESTIMEE | AG72: 67 | AI72: =IF(AH72="",AG72,DISTANCE5Q(AG72/AH72,distance)) -> 67 | AJ72: 0 | AK72: 0 | AL72: 0 | AN72: =IFERROR(DISTANCE5Q(AM72,distance),"") -> 
A73: COR | B73: LLAMEDO | C73: =IFERROR(IF(MATCH(Moyennes!B73,'nouveaux joueurs'!B:B,0) >1,"nouveau joueur",""),"") ->  | D73: 3.57 | E73: =IFERROR(DISTANCELIBRE(D73,table),"") -> 112 | F73: CDBE | G73: 1 | H73: 3.57 | I73: 0 | J73: 0 | K73: 0 | M73: 1.75 | N73: =IFERROR(DISTANCEBANDE(M73,distance),"") -> 57 | O73: CDBE | P73: 1 | Q73: 1.75 | R73: 0 | S73: 0 | T73: 0 | V73: 0.418 | W73: =IFERROR(DISTANCE3BANDES(V73,distance),"") -> 23 | X73: CDBE | Y73: 1 | Z73: 0.418 | AA73: 0 | AB73: 0 | AC73: 0 | AE73: =IF(AJ73>0,IF(AF73="ESTIMEE",AN73,DISTANCE5Q((AG73+AK73)/(AH73+AL73),distance)),AI73) -> 77 | AF73: ESTIMEE | AG73: 77 | AI73: =IF(AH73="",AG73,DISTANCE5Q(AG73/AH73,distance)) -> 77 | AJ73: 0 | AK73: 0 | AL73: 0 | AN73: =IFERROR(DISTANCE5Q(AM73,distance),"") -> 
A74: ARP | B74: LORENZI | C74: =IFERROR(IF(MATCH(Moyennes!B74,'nouveaux joueurs'!B:B,0) >1,"nouveau joueur",""),"") -> nouveau joueur | D74: =IF(I74>0,IF(F74="ESTIMEE",L74,(H74*G74+I74*L74)/(G74+I74)),H74) -> 0.6724919094 | E74: =IFERROR(DISTANCELIBRE(D74,table),"") -> 42 | F74: OFFICIELLE | G74: 1 | H74: 0.6 | I74: 2 | J74: 73 | K74: 103 | L74: =IFERROR(J74/K74,"") -> 0.7087378641 | M74: =IF(R74>0,IF(O74="ESTIMEE",U74,(Q74*P74+R74*U74)/(P74+R74)),Q74) -> 0.45 | N74: =IFERROR(DISTANCEBANDE(M74,distance),"") -> 32 | O74: OFFICIELLE | P74: 1 | Q74: 0.45 | R74: 0 | S74: 0 | T74: 0 | U74: =IFERROR(S74/T74,"") ->  | V74: =IF(AA74>0,IF(X74="ESTIMEE",AD74,(Z74*Y74+AA74*AD74)/(Y74+AA74)),Z74) -> 0.18 | W74: =IFERROR(DISTANCE3BANDES(V74,distance),"") -> 13 | X74: CDBE | Y74: 1 | Z74: 0.18 | AA74: 0 | AB74: 0 | AC74: 0 | AD74: =IFERROR(AB74/AC74,"") ->  | AE74: =IF(AJ74>0,IF(AF74="ESTIMEE",AN74,DISTANCE5Q((AG74+AK74)/(AH74+AL74),distance)),AI74) -> 63 | AF74: ESTIMEE | AG74: 63 | AI74: =IF(AH74="",AG74,DISTANCE5Q(AG74/AH74,distance)) -> 63 | AJ74: 0 | AK74: 0 | AL74: 0 | AM74: =IFERROR(AK74/AL74,"") ->  | AN74: =IFERROR(DISTANCE5Q(AM74,distance),"") -> 
A75: ETR | B75: LOUBIGNAC | C75: =IFERROR(IF(MATCH(Moyennes!B75,'nouveaux joueurs'!B:B,0) >1,"nouveau joueur",""),"") ->  | D75: 0.95 | E75: =IFERROR(DISTANCELIBRE(D75,table),"") -> 49 | F75: OFFICIELLE | G75: 1 | H75: 0.85 | I75: 2 | J75: 81 | K75: 81 | L75: 1 | M75: 0.41 | N75: =IFERROR(DISTANCEBANDE(M75,distance),"") -> 31 | O75: OFFICIELLE | P75: 1 | Q75: 0.41 | R75: 0 | S75: 0 | T75: 0 | V75: 0.15 | W75: =IFERROR(DISTANCE3BANDES(V75,distance),"") -> 12 | X75: CDBE | Y75: 1 | Z75: 0.15 | AA75: 0 | AB75: 0 | AC75: 0 | AE75: =IF(AJ75>0,IF(AF75="ESTIMEE",AN75,DISTANCE5Q((AG75+AK75)/(AH75+AL75),distance)),AI75) -> 64 | AF75: ESTIMEE | AG75: 64 | AI75: =IF(AH75="",AG75,DISTANCE5Q(AG75/AH75,distance)) -> 64 | AJ75: 0 | AK75: 0 | AL75: 0 | AN75: =IFERROR(DISTANCE5Q(AM75,distance),"") -> 
A76: MOR | B76: MAILLARD | C76: =IFERROR(IF(MATCH(Moyennes!B76,'nouveaux joueurs'!B:B,0) >1,"nouveau joueur",""),"") ->  | D76: 1.365 | E76: =IFERROR(DISTANCELIBRE(D76,table),"") -> 60 | F76: OFFICIELLE | G76: 1 | H76: 0.85 | I76: 1 | J76: 47 | K76: 25 | L76: 1.88 | M76: 1 | N76: =IFERROR(DISTANCEBANDE(M76,distance),"") -> 43 | O76: ESTIMEE | P76: 1 | Q76: 0.4 | R76: 2 | S76: 70 | T76: 70 | U76: 1 | V76: 0.25 | W76: =IFERROR(DISTANCE3BANDES(V76,distance),"") -> 16 | X76: CDBE | Y76: 1 | Z76: 0.25 | AA76: 0 | AB76: 0 | AC76: 0 | AE76: =IF(AJ76>0,IF(AF76="ESTIMEE",AN76,DISTANCE5Q((AG76+AK76)/(AH76+AL76),distance)),AI76) -> 64 | AF76: ESTIMEE | AG76: 64 | AI76: =IF(AH76="",AG76,DISTANCE5Q(AG76/AH76,distance)) -> 64 | AJ76: 0 | AK76: 0 | AL76: 0 | AN76: =IFERROR(DISTANCE5Q(AM76,distance),"") -> 
A77: DRA | B77: MARTINEZ | C77: =IFERROR(IF(MATCH(Moyennes!B77,'nouveaux joueurs'!B:B,0) >1,"nouveau joueur",""),"") ->  | D77: 1 | E77: =IFERROR(DISTANCELIBRE(D77,table),"") -> 51 | F77: OFFICIELLE | G77: 1 | H77: 1 | I77: 0 | J77: 0 | K77: 0 | M77: 0.5 | N77: =IFERROR(DISTANCEBANDE(M77,distance),"") -> 33 | O77: ESTIMEE | P77: 1 | Q77: 0.5 | R77: 0 | S77: 0 | T77: 0 | V77: 0.2 | W77: =IFERROR(DISTANCE3BANDES(V77,distance),"") -> 14 | X77: CDBE | Y77: 1 | Z77: 0.2 | AA77: 0 | AB77: 0 | AC77: 0 | AE77: =IF(AJ77>0,IF(AF77="ESTIMEE",AN77,DISTANCE5Q((AG77+AK77)/(AH77+AL77),distance)),AI77) -> 65 | AF77: ESTIMEE | AG77: 65 | AI77: =IF(AH77="",AG77,DISTANCE5Q(AG77/AH77,distance)) -> 65 | AJ77: 0 | AK77: 0 | AL77: 0 | AN77: =IFERROR(DISTANCE5Q(AM77,distance),"") -> 
A78: DRA | B78: MERCIER | C78: =IFERROR(IF(MATCH(Moyennes!B78,'nouveaux joueurs'!B:B,0) >1,"nouveau joueur",""),"") ->  | D78: 0.9 | E78: =IFERROR(DISTANCELIBRE(D78,table),"") -> 48 | F78: CDBE | G78: 1 | H78: 0.9 | I78: 0 | J78: 0 | K78: 0 | M78: 0.5 | N78: =IFERROR(DISTANCEBANDE(M78,distance),"") -> 33 | O78: CDBE | P78: 1 | Q78: 0.5 | R78: 0 | S78: 0 | T78: 0 | V78: 0.13 | W78: =IFERROR(DISTANCE3BANDES(V78,distance),"") -> 11 | X78: CDBE | Y78: 1 | Z78: 0.13 | AA78: 0 | AB78: 0 | AC78: 0 | AE78: =IF(AJ78>0,IF(AF78="ESTIMEE",AN78,DISTANCE5Q((AG78+AK78)/(AH78+AL78),distance)),AI78) -> 60 | AF78: ESTIMEE | AG78: 60 | AI78: =IF(AH78="",AG78,DISTANCE5Q(AG78/AH78,distance)) -> 60 | AJ78: 0 | AK78: 0 | AL78: 0 | AN78: =IFERROR(DISTANCE5Q(AM78,distance),"") -> 
A79: DRA | B79: MESNY | C79: =IFERROR(IF(MATCH(Moyennes!B79,'nouveaux joueurs'!B:B,0) >1,"nouveau joueur",""),"") ->  | D79: 0.64 | E79: =IFERROR(DISTANCELIBRE(D79,table),"") -> 41 | F79: OFFICIELLE | G79: 1 | H79: 0.64 | I79: 0 | J79: 0 | K79: 0 | M79: 0.3 | N79: =IFERROR(DISTANCEBANDE(M79,distance),"") -> 29 | O79: ESTIMEE | P79: 1 | Q79: 0.3 | R79: 0 | S79: 0 | T79: 0 | V79: 0.201 | W79: =IFERROR(DISTANCE3BANDES(V79,distance),"") -> 14 | X79: CDBE | Y79: 1 | Z79: 0.201 | AA79: 0 | AB79: 0 | AC79: 0 | AE79: =IF(AJ79>0,IF(AF79="ESTIMEE",AN79,DISTANCE5Q((AG79+AK79)/(AH79+AL79),distance)),AI79) -> 68 | AF79: ESTIMEE | AG79: 62 | AI79: =IF(AH79="",AG79,DISTANCE5Q(AG79/AH79,distance)) -> 62 | AJ79: 1 | AK79: 98 | AL79: 125 | AM79: 0.784 | AN79: =IFERROR(DISTANCE5Q(AM79,distance),"") -> 68
A80: MAS | B80: MICHEL Louis | C80: =IFERROR(IF(MATCH(Moyennes!B80,'nouveaux joueurs'!B:B,0) >1,"nouveau joueur",""),"") ->  | D80: 3 | E80: =IFERROR(DISTANCELIBRE(D80,table),"") -> 100 | F80: CDBE | G80: 1 | H80: 3 | I80: 0 | J80: 0 | K80: 0 | M80: 1.6 | N80: =IFERROR(DISTANCEBANDE(M80,distance),"") -> 54 | O80: CDBE | P80: 1 | Q80: 1.6 | R80: 0 | S80: 0 | T80: 0 | V80: 0.472 | W80: =IFERROR(DISTANCE3BANDES(V80,distance),"") -> 26 | X80: CDBE | Y80: 1 | Z80: 0.472 | AA80: 0 | AB80: 0 | AC80: 0 | AE80: =IF(AJ80>0,IF(AF80="ESTIMEE",AN80,DISTANCE5Q((AG80+AK80)/(AH80+AL80),distance)),AI80) -> 87 | AF80: ESTIMEE | AG80: 87 | AI80: =IF(AH80="",AG80,DISTANCE5Q(AG80/AH80,distance)) -> 87 | AJ80: 0 | AK80: 0 | AL80: 0 | AN80: =IFERROR(DISTANCE5Q(AM80,distance),"") -> 
A81: VIG | B81: MICHELET | C81: =IFERROR(IF(MATCH(Moyennes!B81,'nouveaux joueurs'!B:B,0) >1,"nouveau joueur",""),"") ->  | D81: 1.050167785 | E81: =IFERROR(DISTANCELIBRE(D81,table),"") -> 52 | F81: CDBE | G81: 1 | H81: 1.1 | I81: 3 | J81: 154 | K81: 149 | L81: 1.033557047 | M81: 0.6058490566 | N81: =IFERROR(DISTANCEBANDE(M81,distance),"") -> 35 | O81: OFFICIELLE | P81: 1 | Q81: 0.61 | R81: 2 | S81: 64 | T81: 106 | U81: 0.6037735849 | V81: 0.2 | W81: =IFERROR(DISTANCE3BANDES(V81,distance),"") -> 14 | X81: CDBE | Y81: 1 | Z81: 0.2 | AA81: 0 | AB81: 0 | AC81: 0 | AE81: =IF(AJ81>0,IF(AF81="ESTIMEE",AN81,DISTANCE5Q((AG81+AK81)/(AH81+AL81),distance)),AI81) -> 65 | AF81: ESTIMEE | AG81: 65 | AI81: =IF(AH81="",AG81,DISTANCE5Q(AG81/AH81,distance)) -> 65 | AJ81: 0 | AK81: 0 | AL81: 0 | AN81: =IFERROR(DISTANCE5Q(AM81,distance),"") -> 
A82: DRA | B82: MIRLAUD | C82: =IFERROR(IF(MATCH(Moyennes!B82,'nouveaux joueurs'!B:B,0) >1,"nouveau joueur",""),"") ->  | D82: 1.764343434 | E82: =IFERROR(DISTANCELIBRE(D82,table),"") -> 71 | F82: OFFICIELLE | G82: 1 | H82: 1.99 | I82: 2 | J82: 109 | K82: 66 | L82: 1.651515152 | M82: 1.12 | N82: =IFERROR(DISTANCEBANDE(M82,distance),"") -> 45 | O82: CDBE | P82: 1 | Q82: 1.12 | R82: 0 | S82: 0 | T82: 0 | V82: 0.2268515406 | W82: =IFERROR(DISTANCE3BANDES(V82,distance),"") -> 15 | X82: OFFICIELLE | Y82: 1 | Z82: 0.294 | AA82: 2 | AB82: 23 | AC82: 119 | AD82: 0.1932773109 | AE82: =IF(AJ82>0,IF(AF82="ESTIMEE",AN82,DISTANCE5Q((AG82+AK82)/(AH82+AL82),distance)),AI82) -> 69 | AF82: ESTIMEE | AG82: 69 | AI82: =IF(AH82="",AG82,DISTANCE5Q(AG82/AH82,distance)) -> 69 | AJ82: 0 | AK82: 0 | AL82: 0 | AN82: =IFERROR(DISTANCE5Q(AM82,distance),"") -> 
A83: MOR | B83: MIRMAN | C83: =IFERROR(IF(MATCH(Moyennes!B83,'nouveaux joueurs'!B:B,0) >1,"nouveau joueur",""),"") ->  | D83: 2.968387097 | E83: =IFERROR(DISTANCELIBRE(D83,table),"") -> 99 | F83: OFFICIELLE | G83: 1 | H83: 2.84 | I83: 1 | J83: 96 | K83: 31 | L83: =IFERROR(J83/K83,"") -> 3.096774194 | M83: 1.238947368 | N83: =IFERROR(DISTANCEBANDE(M83,distance),"") -> 48 | O83: OFFICIELLE | P83: 1 | Q83: 1.32 | R83: 1 | S83: 44 | T83: 38 | U83: 1.157894737 | V83: 0.328 | W83: =IFERROR(DISTANCE3BANDES(V83,distance),"") -> 19 | X83: OFFICIELLE | Y83: 1 | Z83: 0.328 | AA83: 0 | AB83: 0 | AC83: 0 | AE83: =IF(AJ83>0,IF(AF83="ESTIMEE",AN83,DISTANCE5Q((AG83+AK83)/(AH83+AL83),distance)),AI83) -> 84 | AF83: ESTIMEE | AG83: 73 | AI83: =IF(AH83="",AG83,DISTANCE5Q(AG83/AH83,distance)) -> 73 | AJ83: 1 | AK83: 146 | AL83: 129 | AM83: 1.131782946 | AN83: =IFERROR(DISTANCE5Q(AM83,distance),"") -> 84
A84: VIG | B84: MOINDREAU | C84: =IFERROR(IF(MATCH(Moyennes!B84,'nouveaux joueurs'!B:B,0) >1,"nouveau joueur",""),"") ->  | D84: =IF(I84>0,IF(F84="ESTIMEE",L84,(H84*G84+I84*L84)/(G84+I84)),H84) -> 1.448017241 | E84: =IFERROR(DISTANCELIBRE(D84,table),"") -> 63 | F84: OFFICIELLE | G84: 1 | H84: 1.68 | I84: 3 | J84: 159 | K84: 116 | L84: =IFERROR(J84/K84,"") -> 1.370689655 | M84: =IF(R84>0,IF(O84="ESTIMEE",U84,(Q84*P84+R84*U84)/(P84+R84)),Q84) -> 0.6508433735 | N84: =IFERROR(DISTANCEBANDE(M84,distance),"") -> 36 | O84: OFFICIELLE | P84: 1 | Q84: 0.7 | R84: 4 | S84: 106 | T84: 166 | U84: =IFERROR(S84/T84,"") -> 0.6385542169 | V84: =IF(AA84>0,IF(X84="ESTIMEE",AD84,(Z84*Y84+AA84*AD84)/(Y84+AA84)),Z84) -> 0.2 | W84: =IFERROR(DISTANCE3BANDES(V84,distance),"") -> 14 | X84: CDBE | Y84: 1 | Z84: 0.2 | AA84: 0 | AB84: 0 | AC84: 0 | AD84: =IFERROR(AB84/AC84,"") ->  | AE84: =IF(AJ84>0,IF(AF84="ESTIMEE",AN84,DISTANCE5Q((AG84+AK84)/(AH84+AL84),distance)),AI84) -> 68 | AF84: ESTIMEE | AG84: 68 | AI84: =IF(AH84="",AG84,DISTANCE5Q(AG84/AH84,distance)) -> 68 | AJ84: 0 | AK84: 0 | AL84: 0 | AM84: =IFERROR(AK84/AL84,"") ->  | AN84: =IFERROR(DISTANCE5Q(AM84,distance),"") -> 
A85: MAS | B85: MOREAU | C85: =IFERROR(IF(MATCH(Moyennes!B85,'nouveaux joueurs'!B:B,0) >1,"nouveau joueur",""),"") ->  | D85: 1.23 | E85: =IFERROR(DISTANCELIBRE(D85,table),"") -> 57 | F85: OFFICIELLE | G85: 1 | H85: 1.23 | I85: 0 | J85: 0 | K85: 0 | M85: 0.49 | N85: =IFERROR(DISTANCEBANDE(M85,distance),"") -> 33 | O85: OFFICIELLE | P85: 1 | Q85: 0.49 | R85: 0 | S85: 0 | T85: 0 | V85: 0.2 | W85: =IFERROR(DISTANCE3BANDES(V85,distance),"") -> 14 | X85: CDBE | Y85: 1 | Z85: 0.2 | AA85: 0 | AB85: 0 | AC85: 0 | AE85: =IF(AJ85>0,IF(AF85="ESTIMEE",AN85,DISTANCE5Q((AG85+AK85)/(AH85+AL85),distance)),AI85) -> 65 | AF85: ESTIMEE | AG85: 65 | AI85: =IF(AH85="",AG85,DISTANCE5Q(AG85/AH85,distance)) -> 65 | AJ85: 0 | AK85: 0 | AL85: 0 | AN85: =IFERROR(DISTANCE5Q(AM85,distance),"") -> 
A86: MOR | B86: MOREL | C86: =IFERROR(IF(MATCH(Moyennes!B86,'nouveaux joueurs'!B:B,0) >1,"nouveau joueur",""),"") ->  | D86: 2.6 | E86: =IFERROR(DISTANCELIBRE(D86,table),"") -> 91 | F86: OFFICIELLE | G86: 1 | H86: 2.6 | I86: 0 | J86: 0 | K86: 0 | M86: 1.18 | N86: =IFERROR(DISTANCEBANDE(M86,distance),"") -> 47 | O86: OFFICIELLE | P86: 1 | Q86: 1.18 | R86: 0 | S86: 0 | T86: 0 | V86: 0.642 | W86: =IFERROR(DISTANCE3BANDES(V86,distance),"") -> 35 | X86: OFFICIELLE | Y86: 1 | Z86: 0.642 | AA86: 0 | AB86: 0 | AC86: 0 | AE86: =IF(AJ86>0,IF(AF86="ESTIMEE",AN86,DISTANCE5Q((AG86+AK86)/(AH86+AL86),distance)),AI86) -> 72 | AF86: ESTIMEE | AG86: 72 | AI86: =IF(AH86="",AG86,DISTANCE5Q(AG86/AH86,distance)) -> 72 | AJ86: 0 | AK86: 0 | AL86: 0 | AN86: =IFERROR(DISTANCE5Q(AM86,distance),"") -> 
A87: DRA | B87: MOULAY | C87: =IFERROR(IF(MATCH(Moyennes!B87,'nouveaux joueurs'!B:B,0) >1,"nouveau joueur",""),"") ->  | D87: 2.538333333 | E87: =IFERROR(DISTANCELIBRE(D87,table),"") -> 90 | F87: OFFICIELLE | G87: 1 | H87: 2.89 | I87: 2 | J87: 189 | K87: 80 | L87: 2.3625 | M87: 1.5 | N87: =IFERROR(DISTANCEBANDE(M87,distance),"") -> 53 | O87: CDBE | P87: 1 | Q87: 1.5 | R87: 0 | S87: 0 | T87: 0 | V87: 0.4873636364 | W87: =IFERROR(DISTANCE3BANDES(V87,distance),"") -> 26 | X87: OFFICIELLE | Y87: 1 | Z87: 0.452 | AA87: 1 | AB87: 23 | AC87: 44 | AD87: 0.5227272727 | AE87: =IF(AJ87>0,IF(AF87="ESTIMEE",AN87,DISTANCE5Q((AG87+AK87)/(AH87+AL87),distance)),AI87) -> 73 | AF87: ESTIMEE | AG87: 73 | AI87: =IF(AH87="",AG87,DISTANCE5Q(AG87/AH87,distance)) -> 73 | AJ87: 0 | AK87: 0 | AL87: 0 | AN87: =IFERROR(DISTANCE5Q(AM87,distance),"") -> 
A88: ARP | B88: NGUYEN | C88: =IFERROR(IF(MATCH(Moyennes!B88,'nouveaux joueurs'!B:B,0) >1,"nouveau joueur",""),"") -> nouveau joueur | D88: =IF(I88>0,IF(F88="ESTIMEE",L88,(H88*G88+I88*L88)/(G88+I88)),H88) -> 2.91 | E88: =IFERROR(DISTANCELIBRE(D88,table),"") -> 98 | F88: OFFICIELLE | G88: 1 | H88: 2.91 | I88: 0 | J88: 0 | K88: 0 | L88: =IFERROR(J88/K88,"") ->  | M88: =IF(R88>0,IF(O88="ESTIMEE",U88,(Q88*P88+R88*U88)/(P88+R88)),Q88) -> 1.31 | N88: =IFERROR(DISTANCEBANDE(M88,distance),"") -> 49 | O88: CDBE | P88: 1 | Q88: 1.31 | R88: 0 | S88: 0 | T88: 0 | U88: =IFERROR(S88/T88,"") ->  | V88: =IF(AA88>0,IF(X88="ESTIMEE",AD88,(Z88*Y88+AA88*AD88)/(Y88+AA88)),Z88) -> 0.3 | W88: =IFERROR(DISTANCE3BANDES(V88,distance),"") -> 18 | X88: CDBE | Y88: 1 | Z88: 0.3 | AA88: 0 | AB88: 0 | AC88: 0 | AD88: =IFERROR(AB88/AC88,"") ->  | AE88: =IF(AJ88>0,IF(AF88="ESTIMEE",AN88,DISTANCE5Q((AG88+AK88)/(AH88+AL88),distance)),AI88) -> 73 | AF88: ESTIMEE | AG88: 73 | AI88: =IF(AH88="",AG88,DISTANCE5Q(AG88/AH88,distance)) -> 73 | AJ88: 0 | AK88: 0 | AL88: 0 | AM88: =IFERROR(AK88/AL88,"") ->  | AN88: =IFERROR(DISTANCE5Q(AM88,distance),"") -> 
A89: COR | B89: NOE A.M. | C89: =IFERROR(IF(MATCH(Moyennes!B89,'nouveaux joueurs'!B:B,0) >1,"nouveau joueur",""),"") ->  | D89: 1.18 | E89: =IFERROR(DISTANCELIBRE(D89,table),"") -> 56 | F89: OFFICIELLE | G89: 1 | H89: 1.18 | I89: 0 | J89: 0 | K89: 0 | M89: 0.66 | N89: =IFERROR(DISTANCEBANDE(M89,distance),"") -> 36 | O89: CDBE | P89: 1 | Q89: 0.66 | R89: 0 | S89: 0 | T89: 0 | V89: 0.16 | W89: =IFERROR(DISTANCE3BANDES(V89,distance),"") -> 12 | X89: CDBE | Y89: 1 | Z89: 0.16 | AA89: 0 | AB89: 0 | AC89: 0 | AE89: =IF(AJ89>0,IF(AF89="ESTIMEE",AN89,DISTANCE5Q((AG89+AK89)/(AH89+AL89),distance)),AI89) -> 65 | AF89: ESTIMEE | AG89: 65 | AI89: =IF(AH89="",AG89,DISTANCE5Q(AG89/AH89,distance)) -> 65 | AJ89: 0 | AK89: 0 | AL89: 0 | AN89: =IFERROR(DISTANCE5Q(AM89,distance),"") -> 
A90: COR | B90: NOE L | C90: =IFERROR(IF(MATCH(Moyennes!B90,'nouveaux joueurs'!B:B,0) >1,"nouveau joueur",""),"") ->  | D90: 2 | E90: =IFERROR(DISTANCELIBRE(D90,table),"") -> 77 | F90: CDBE | G90: 1 | H90: 2 | I90: 0 | J90: 0 | K90: 0 | M90: 1.03 | N90: =IFERROR(DISTANCEBANDE(M90,distance),"") -> 44 | O90: CDBE | P90: 1 | Q90: 1.03 | R90: 0 | S90: 0 | T90: 0 | V90: 0.2 | W90: =IFERROR(DISTANCE3BANDES(V90,distance),"") -> 14 | X90: CDBE | Y90: 1 | Z90: 0.2 | AA90: 0 | AB90: 0 | AC90: 0 | AE90: =IF(AJ90>0,IF(AF90="ESTIMEE",AN90,DISTANCE5Q((AG90+AK90)/(AH90+AL90),distance)),AI90) -> 63 | AF90: ESTIMEE | AG90: 63 | AI90: =IF(AH90="",AG90,DISTANCE5Q(AG90/AH90,distance)) -> 63 | AJ90: 0 | AK90: 0 | AL90: 0 | AN90: =IFERROR(DISTANCE5Q(AM90,distance),"") -> 
A91: ARP | B91: NURISSO | C91: =IFERROR(IF(MATCH(Moyennes!B91,'nouveaux joueurs'!B:B,0) >1,"nouveau joueur",""),"") ->  | D91: 2.6 | E91: =IFERROR(DISTANCELIBRE(D91,table),"") -> 91 | F91: CDBE | G91: 1 | H91: 2.6 | I91: 0 | J91: 0 | K91: 0 | M91: 1.45 | N91: =IFERROR(DISTANCEBANDE(M91,distance),"") -> 52 | O91: CDBE | P91: 1 | Q91: 1.45 | R91: 0 | S91: 0 | T91: 0 | V91: 0.39 | W91: =IFERROR(DISTANCE3BANDES(V91,distance),"") -> 22 | X91: CDBE | Y91: 1 | Z91: 0.39 | AA91: 0 | AB91: 0 | AC91: 0 | AE91: =IF(AJ91>0,IF(AF91="ESTIMEE",AN91,DISTANCE5Q((AG91+AK91)/(AH91+AL91),distance)),AI91) -> 68 | AF91: ESTIMEE | AG91: 68 | AI91: =IF(AH91="",AG91,DISTANCE5Q(AG91/AH91,distance)) -> 68 | AJ91: 0 | AK91: 0 | AL91: 0 | AN91: =IFERROR(DISTANCE5Q(AM91,distance),"") -> 
A92: COR | B92: OUVRARD | C92: =IFERROR(IF(MATCH(Moyennes!B92,'nouveaux joueurs'!B:B,0) >1,"nouveau joueur",""),"") ->  | D92: 1.74 | E92: =IFERROR(DISTANCELIBRE(D92,table),"") -> 70 | F92: OFFICIELLE | G92: 1 | H92: 1.74 | I92: 0 | J92: 0 | K92: 0 | M92: 0.81 | N92: =IFERROR(DISTANCEBANDE(M92,distance),"") -> 39 | O92: OFFICIELLE | P92: 1 | Q92: 0.81 | R92: 0 | S92: 0 | T92: 0 | V92: 0.42 | W92: =IFERROR(DISTANCE3BANDES(V92,distance),"") -> 23 | X92: OFFICIELLE | Y92: 1 | Z92: 0.42 | AA92: 0 | AB92: 0 | AC92: 0 | AE92: =IF(AJ92>0,IF(AF92="ESTIMEE",AN92,DISTANCE5Q((AG92+AK92)/(AH92+AL92),distance)),AI92) -> 68 | AF92: ESTIMEE | AG92: 68 | AI92: =IF(AH92="",AG92,DISTANCE5Q(AG92/AH92,distance)) -> 68 | AJ92: 0 | AK92: 0 | AL92: 0 | AN92: =IFERROR(DISTANCE5Q(AM92,distance),"") -> 
A93: MOR | B93: PAIS | C93: =IFERROR(IF(MATCH(Moyennes!B93,'nouveaux joueurs'!B:B,0) >1,"nouveau joueur",""),"") ->  | D93: 3 | E93: =IFERROR(DISTANCELIBRE(D93,table),"") -> 100 | F93: CDBE | G93: 1 | H93: 3 | I93: 0 | J93: 0 | K93: 0 | M93: 1.2 | N93: =IFERROR(DISTANCEBANDE(M93,distance),"") -> 47 | O93: OFFICIELLE | P93: 1 | Q93: 1.2 | R93: 0 | S93: 0 | T93: 0 | V93: 0.4135026596 | W93: =IFERROR(DISTANCE3BANDES(V93,distance),"") -> 23 | X93: OFFICIELLE | Y93: 1 | Z93: 0.441 | AA93: 7 | AB93: 154 | AC93: 376 | AD93: 0.4095744681 | AE93: =IF(AJ93>0,IF(AF93="ESTIMEE",AN93,DISTANCE5Q((AG93+AK93)/(AH93+AL93),distance)),AI93) -> 74 | AF93: ESTIMEE | AG93: 74 | AI93: =IF(AH93="",AG93,DISTANCE5Q(AG93/AH93,distance)) -> 74 | AJ93: 0 | AK93: 0 | AL93: 0 | AN93: =IFERROR(DISTANCE5Q(AM93,distance),"") -> 
A94: ETR | B94: PAPELARD | C94: =IFERROR(IF(MATCH(Moyennes!B94,'nouveaux joueurs'!B:B,0) >1,"nouveau joueur",""),"") ->  | D94: 1.5 | E94: =IFERROR(DISTANCELIBRE(D94,table),"") -> 64 | F94: ESTIMEE | G94: 1 | H94: 1.5 | I94: 0 | J94: 0 | K94: 0 | M94: 0.65 | N94: =IFERROR(DISTANCEBANDE(M94,distance),"") -> 36 | O94: OFFICIELLE | P94: 1 | Q94: 0.65 | R94: 0 | S94: 0 | T94: 0 | V94: 0.15 | W94: =IFERROR(DISTANCE3BANDES(V94,distance),"") -> 12 | X94: CDBE | Y94: 1 | Z94: 0.15 | AA94: 0 | AB94: 0 | AC94: 0 | AE94: =IF(AJ94>0,IF(AF94="ESTIMEE",AN94,DISTANCE5Q((AG94+AK94)/(AH94+AL94),distance)),AI94) -> 60 | AF94: ESTIMEE | AG94: 58 | AI94: 60 | AJ94: 0 | AK94: 0 | AL94: 0 | AN94: =IFERROR(DISTANCE5Q(AM94,distance),"") -> 
A95: ARP | B95: PARIS Philippe | C95: =IFERROR(IF(MATCH(Moyennes!B95,'nouveaux joueurs'!B:B,0) >1,"nouveau joueur",""),"") ->  | D95: 0.96 | E95: =IFERROR(DISTANCELIBRE(D95,table),"") -> 50 | F95: OFFICIELLE | G95: 1 | H95: 0.96 | I95: 0 | J95: 0 | K95: 0 | M95: 0.57 | N95: =IFERROR(DISTANCEBANDE(M95,distance),"") -> 35 | O95: CDBE | P95: 1 | Q95: 0.57 | R95: 0 | S95: 0 | T95: 0 | V95: 0.13 | W95: =IFERROR(DISTANCE3BANDES(V95,distance),"") -> 11 | X95: CDBE | Y95: 1 | Z95: 0.13 | AA95: 0 | AB95: 0 | AC95: 0 | AE95: =IF(AJ95>0,IF(AF95="ESTIMEE",AN95,DISTANCE5Q((AG95+AK95)/(AH95+AL95),distance)),AI95) -> 65 | AF95: ESTIMEE | AG95: 65 | AI95: =IF(AH95="",AG95,DISTANCE5Q(AG95/AH95,distance)) -> 65 | AJ95: 0 | AK95: 0 | AL95: 0 | AN95: =IFERROR(DISTANCE5Q(AM95,distance),"") -> 
A96: ETR | B96: PORCU | C96: =IFERROR(IF(MATCH(Moyennes!B96,'nouveaux joueurs'!B:B,0) >1,"nouveau joueur",""),"") ->  | D96: 1.23 | E96: =IFERROR(DISTANCELIBRE(D96,table),"") -> 57 | F96: OFFICIELLE | G96: 1 | H96: 1.23 | I96: 0 | J96: 0 | K96: 0 | M96: 0.75 | N96: =IFERROR(DISTANCEBANDE(M96,distance),"") -> 38 | O96: OFFICIELLE | P96: 1 | Q96: 0.75 | R96: 0 | S96: 0 | T96: 0 | V96: 0.15 | W96: =IFERROR(DISTANCE3BANDES(V96,distance),"") -> 12 | X96: CDBE | Y96: 1 | Z96: 0.15 | AA96: 0 | AB96: 0 | AC96: 0 | AE96: =IF(AJ96>0,IF(AF96="ESTIMEE",AN96,DISTANCE5Q((AG96+AK96)/(AH96+AL96),distance)),AI96) -> 70 | AF96: ESTIMEE | AG96: 65 | AI96: =IF(AH96="",AG96,DISTANCE5Q(AG96/AH96,distance)) -> 65 | AJ96: 2 | AK96: 219 | AL96: 268 | AM96: 0.8171641791 | AN96: =IFERROR(DISTANCE5Q(AM96,distance),"") -> 70
A97: ARP | B97: PINTO | C97: =IFERROR(IF(MATCH(Moyennes!B97,'nouveaux joueurs'!B:B,0) >1,"nouveau joueur",""),"") ->  | D97: 1 | E97: =IFERROR(DISTANCELIBRE(D97,table),"") -> 51 | F97: CDBE | G97: 1 | H97: 1 | I97: 0 | J97: 0 | K97: 0 | M97: 0.86 | N97: =IFERROR(DISTANCEBANDE(M97,distance),"") -> 40 | O97: OFFICIELLE | P97: 1 | Q97: 0.86 | R97: 0 | S97: 0 | T97: 0 | V97: 0.2297431694 | W97: =IFERROR(DISTANCE3BANDES(V97,distance),"") -> 15 | X97: OFFICIELLE | Y97: 1 | Z97: 0.263 | AA97: 2 | AB97: 26 | AC97: 122 | AD97: 0.2131147541 | AE97: =IF(AJ97>0,IF(AF97="ESTIMEE",AN97,DISTANCE5Q((AG97+AK97)/(AH97+AL97),distance)),AI97) -> 65 | AF97: ESTIMEE | AG97: 65 | AI97: =IF(AH97="",AG97,DISTANCE5Q(AG97/AH97,distance)) -> 65 | AJ97: 0 | AK97: 0 | AL97: 0 | AN97: =IFERROR(DISTANCE5Q(AM97,distance),"") -> 
A98: COR | B98: POUGES | C98: =IFERROR(IF(MATCH(Moyennes!B98,'nouveaux joueurs'!B:B,0) >1,"nouveau joueur",""),"") ->  | D98: 1.76 | E98: =IFERROR(DISTANCELIBRE(D98,table),"") -> 71 | F98: OFFICIELLE | G98: 1 | H98: 1.76 | I98: 0 | J98: 0 | K98: 0 | M98: 1.06 | N98: =IFERROR(DISTANCEBANDE(M98,distance),"") -> 44 | O98: OFFICIELLE | P98: 1 | Q98: 1.06 | R98: 0 | S98: 0 | T98: 0 | V98: 0.286 | W98: =IFERROR(DISTANCE3BANDES(V98,distance),"") -> 17 | X98: OFFICIELLE | Y98: 1 | Z98: 0.286 | AA98: 0 | AB98: 0 | AC98: 0 | AE98: =IF(AJ98>0,IF(AF98="ESTIMEE",AN98,DISTANCE5Q((AG98+AK98)/(AH98+AL98),distance)),AI98) -> 68 | AF98: ESTIMEE | AG98: 68 | AI98: =IF(AH98="",AG98,DISTANCE5Q(AG98/AH98,distance)) -> 68 | AJ98: 0 | AK98: 0 | AL98: 0 | AN98: =IFERROR(DISTANCE5Q(AM98,distance),"") -> 
A99: MOR | B99: PREVOT | C99: =IFERROR(IF(MATCH(Moyennes!B99,'nouveaux joueurs'!B:B,0) >1,"nouveau joueur",""),"") ->  | D99: 0.999351145 | E99: =IFERROR(DISTANCELIBRE(D99,table),"") -> 51 | F99: OFFICIELLE | G99: 1 | H99: 0.86 | I99: 3 | J99: 137 | K99: 131 | L99: 1.045801527 | M99: 0.75 | N99: =IFERROR(DISTANCEBANDE(M99,distance),"") -> 38 | O99: CDBE | P99: 1 | Q99: 0.75 | R99: 0 | S99: 0 | T99: 0 | V99: 0.2 | W99: =IFERROR(DISTANCE3BANDES(V99,distance),"") -> 14 | X99: CDBE | Y99: 1 | Z99: 0.2 | AA99: 0 | AB99: 0 | AC99: 0 | AE99: =IF(AJ99>0,IF(AF99="ESTIMEE",AN99,DISTANCE5Q((AG99+AK99)/(AH99+AL99),distance)),AI99) -> 64 | AF99: ESTIMEE | AG99: 64 | AI99: =IF(AH99="",AG99,DISTANCE5Q(AG99/AH99,distance)) -> 64 | AJ99: 0 | AK99: 0 | AL99: 0 | AN99: =IFERROR(DISTANCE5Q(AM99,distance),"") -> 
A100: MOR | B100: PRIEUR | C100: =IFERROR(IF(MATCH(Moyennes!B100,'nouveaux joueurs'!B:B,0) >1,"nouveau joueur",""),"") ->  | D100: 0.96 | E100: =IFERROR(DISTANCELIBRE(D100,table),"") -> 50 | F100: CDBE | G100: 1 | H100: 0.96 | I100: 0 | J100: 0 | K100: 0 | M100: 0.627704918 | N100: =IFERROR(DISTANCEBANDE(M100,distance),"") -> 36 | O100: OFFICIELLE | P100: 1 | Q100: 0.78 | R100: 1 | S100: 29 | T100: 61 | U100: 0.4754098361 | V100: 0.25 | W100: =IFERROR(DISTANCE3BANDES(V100,distance),"") -> 16 | X100: CDBE | Y100: 1 | Z100: 0.25 | AA100: 0 | AB100: 0 | AC100: 0 | AE100: =IF(AJ100>0,IF(AF100="ESTIMEE",AN100,DISTANCE5Q((AG100+AK100)/(AH100+AL100),distance)),AI100) -> 65 | AF100: ESTIMEE | AG100: 65 | AI100: =IF(AH100="",AG100,DISTANCE5Q(AG100/AH100,distance)) -> 65 | AJ100: 0 | AK100: 0 | AL100: 0 | AN100: =IFERROR(DISTANCE5Q(AM100,distance),"") -> 
A101: DRA | B101: RIBEYRE | C101: =IFERROR(IF(MATCH(Moyennes!B101,'nouveaux joueurs'!B:B,0) >1,"nouveau joueur",""),"") ->  | D101: 0.5 | E101: =IFERROR(DISTANCELIBRE(D101,table),"") -> 37 | F101: CDBE | G101: 1 | H101: 0.5 | I101: 0 | J101: 0 | K101: 0 | M101: 0.3 | N101: =IFERROR(DISTANCEBANDE(M101,distance),"") -> 29 | O101: CDBE | P101: 1 | Q101: 0.3 | R101: 0 | S101: 0 | T101: 0 | V101: 0.13 | W101: =IFERROR(DISTANCE3BANDES(V101,distance),"") -> 11 | X101: CDBE | Y101: 1 | Z101: 0.13 | AA101: 0 | AB101: 0 | AC101: 0 | AE101: =IF(AJ101>0,IF(AF101="ESTIMEE",AN101,DISTANCE5Q((AG101+AK101)/(AH101+AL101),distance)),AI101) -> 60 | AF101: ESTIMEE | AG101: 60 | AI101: 60 | AJ101: 0 | AK101: 0 | AL101: 0 | AN101: =IFERROR(DISTANCE5Q(AM101,distance),"") -> 
A102: VIG | B102: ROUX | C102: =IFERROR(IF(MATCH(Moyennes!B102,'nouveaux joueurs'!B:B,0) >1,"nouveau joueur",""),"") ->  | D102: 0.4 | E102: =IFERROR(DISTANCELIBRE(D102,table),"") -> 34 | F102: CDBE | G102: 1 | H102: 0.4 | I102: 0 | J102: 0 | K102: 0 | M102: 0.49 | N102: =IFERROR(DISTANCEBANDE(M102,distance),"") -> 33 | O102: OFFICIELLE | P102: 1 | Q102: 0.49 | R102: 0 | S102: 0 | T102: 0 | V102: 0.1807941595 | W102: =IFERROR(DISTANCE3BANDES(V102,distance),"") -> 13 | X102: OFFICIELLE | Y102: 1 | Z102: 0.17 | AA102: 7 | AB102: 64 | AC102: 351 | AD102: 0.1823361823 | AE102: =IF(AJ102>0,IF(AF102="ESTIMEE",AN102,DISTANCE5Q((AG102+AK102)/(AH102+AL102),distance)),AI102) -> 70 | AF102: ESTIMEE | AG102: 70 | AI102: =IF(AH102="",AG102,DISTANCE5Q(AG102/AH102,distance)) -> 70 | AJ102: 0 | AK102: 0 | AL102: 0 | AN102: =IFERROR(DISTANCE5Q(AM102,distance),"") -> 
A103: VIG | B103: SAHNOUNE | C103: =IFERROR(IF(MATCH(Moyennes!B103,'nouveaux joueurs'!B:B,0) >1,"nouveau joueur",""),"") ->  | D103: 0.7 | E103: =IFERROR(DISTANCELIBRE(D103,table),"") -> 42 | F103: ESTIMEE | G103: 1 | H103: 0.7 | I103: 0 | J103: 0 | K103: 0 | M103: 0.65 | N103: =IFERROR(DISTANCEBANDE(M103,distance),"") -> 36 | O103: ESTIMEE | P103: 1 | Q103: 0.65 | R103: =IFERROR(GETPIVOTDATA("Nb parties",Moyennes_bande,"Joueur ",$B103),0) -> 0 | S103: =IFERROR(GETPIVOTDATA("Total points",Moyennes_bande,"Joueur ",$B103),0) -> 0 | T103: =IFERROR(GETPIVOTDATA("Total reprises",Moyennes_bande,"Joueur ",$B103),0) -> 0 | V103: 0.15 | W103: =IFERROR(DISTANCE3BANDES(V103,distance),"") -> 12 | X103: ESTIMEE | Y103: 1 | Z103: 0.15 | AA103: =IFERROR(GETPIVOTDATA("Nb parties",Moyennes_3bandes,"Joueur ",$B103),0) -> 0 | AB103: =IFERROR(GETPIVOTDATA("Total points",Moyennes_3bandes,"Joueur ",$B103),0) -> 0 | AC103: =IFERROR(GETPIVOTDATA("Total reprises",Moyennes_3bandes,"Joueur ",$B103),0) -> 0 | AE103: =IF(AJ103>0,IF(AF103="ESTIMEE",AN103,DISTANCE5Q((AG103+AK103)/(AH103+AL103),distance)),AI103) -> 63 | AF103: ESTIMEE | AG103: 63 | AI103: =IF(AH103="",AG103,DISTANCE5Q(AG103/AH103,distance)) -> 63 | AJ103: =IFERROR(GETPIVOTDATA("Nb parties",Moyennes_5quilles,"Joueur ",$B103),0) -> 0 | AK103: =IFERROR(GETPIVOTDATA("Total points joueur",Moyennes_5quilles,"Joueur ",$B103),0) -> 0 | AL103: =IFERROR(GETPIVOTDATA("Total points adversaire",Moyennes_5quilles,"Joueur ",$B103),0) -> 0 | AN103: =IFERROR(DISTANCE5Q(AM103,distance),"") -> 
A104: ETR | B104: SAULE | C104: =IFERROR(IF(MATCH(Moyennes!B104,'nouveaux joueurs'!B:B,0) >1,"nouveau joueur",""),"") -> nouveau joueur | D104: =IF(I104>0,IF(F104="ESTIMEE",L104,(H104*G104+I104*L104)/(G104+I104)),H104) -> 0.6 | E104: =IFERROR(DISTANCELIBRE(D104,table),"") -> 40 | F104: ESTIMEE | G104: 1 | H104: 0.6 | I104: 0 | J104: 0 | K104: 0 | L104: =IFERROR(J104/K104,"") ->  | M104: =IF(R104>0,IF(O104="ESTIMEE",U104,(Q104*P104+R104*U104)/(P104+R104)),Q104) -> 0.3 | N104: =IFERROR(DISTANCEBANDE(M104,distance),"") -> 29 | O104: ESTIMEE | P104: 1 | Q104: 0.3 | R104: 0 | S104: 0 | T104: 0 | U104: =IFERROR(S104/T104,"") ->  | V104: =IF(AA104>0,IF(X104="ESTIMEE",AD104,(Z104*Y104+AA104*AD104)/(Y104+AA104)),Z104) -> 0.15 | W104: =IFERROR(DISTANCE3BANDES(V104,distance),"") -> 12 | X104: ESTIMEE | Y104: 1 | Z104: 0.15 | AA104: 0 | AB104: 0 | AC104: 0 | AD104: =IFERROR(AB104/AC104,"") ->  | AE104: =IF(AJ104>0,IF(AF104="ESTIMEE",AN104,DISTANCE5Q((AG104+AK104)/(AH104+AL104),distance)),AI104) -> 63 | AF104: ESTIMEE | AG104: 63 | AI104: =IF(AH104="",AG104,DISTANCE5Q(AG104/AH104,distance)) -> 63 | AJ104: 0 | AK104: 0 | AL104: 0 | AM104: =IFERROR(AK104/AL104,"") ->  | AN104: =IFERROR(DISTANCE5Q(AM104,distance),"") -> 
A105: ARP | B105: SERRA | C105: =IFERROR(IF(MATCH(Moyennes!B105,'nouveaux joueurs'!B:B,0) >1,"nouveau joueur",""),"") ->  | D105: 2.41 | E105: =IFERROR(DISTANCELIBRE(D105,table),"") -> 87 | F105: OFFICIELLE | G105: 1 | H105: 2.41 | I105: 0 | J105: 0 | K105: 0 | M105: 0.76 | N105: =IFERROR(DISTANCEBANDE(M105,distance),"") -> 38 | O105: OFFICIELLE | P105: 1 | Q105: 0.76 | R105: 0 | S105: 0 | T105: 0 | V105: 0.2 | W105: =IFERROR(DISTANCE3BANDES(V105,distance),"") -> 14 | X105: ESTIMEE | Y105: 1 | Z105: 0.2 | AA105: 0 | AB105: 0 | AC105: 0 | AE105: =IF(AJ105>0,IF(AF105="ESTIMEE",AN105,DISTANCE5Q((AG105+AK105)/(AH105+AL105),distance)),AI105) -> 71 | AF105: ESTIMEE | AG105: 71 | AI105: =IF(AH105="",AG105,DISTANCE5Q(AG105/AH105,distance)) -> 71 | AJ105: 0 | AK105: 0 | AL105: 0 | AN105: =IFERROR(DISTANCE5Q(AM105,distance),"") -> 
A106: DRA | B106: TAVERNIER | C106: =IFERROR(IF(MATCH(Moyennes!B106,'nouveaux joueurs'!B:B,0) >1,"nouveau joueur",""),"") ->  | D106: 1.5 | E106: =IFERROR(DISTANCELIBRE(D106,table),"") -> 64 | F106: ESTIMEE | G106: 1 | H106: 1.5 | I106: 0 | J106: 0 | K106: 0 | M106: 0.9949493813 | N106: =IFERROR(DISTANCEBANDE(M106,distance),"") -> 43 | O106: OFFICIELLE | P106: 1 | Q106: 1.13 | R106: 6 | S106: 247 | T106: 254 | U106: 0.9724409449 | V106: 0.3 | W106: =IFERROR(DISTANCE3BANDES(V106,distance),"") -> 18 | X106: OFFICIELLE | Y106: 1 | Z106: 0.3 | AA106: 0 | AB106: 0 | AC106: 0 | AE106: =IF(AJ106>0,IF(AF106="ESTIMEE",AN106,DISTANCE5Q((AG106+AK106)/(AH106+AL106),distance)),AI106) -> 67 | AF106: ESTIMEE | AG106: 67 | AI106: =IF(AH106="",AG106,DISTANCE5Q(AG106/AH106,distance)) -> 67 | AJ106: 0 | AK106: 0 | AL106: 0 | AN106: =IFERROR(DISTANCE5Q(AM106,distance),"") -> 
A107: ARP | B107: THENOT | C107: =IFERROR(IF(MATCH(Moyennes!B107,'nouveaux joueurs'!B:B,0) >1,"nouveau joueur",""),"") ->  | D107: 2.35 | E107: =IFERROR(DISTANCELIBRE(D107,table),"") -> 85 | F107: OFFICIELLE | G107: 1 | H107: 2.35 | I107: 0 | J107: 0 | K107: 0 | M107: 1.27 | N107: =IFERROR(DISTANCEBANDE(M107,distance),"") -> 48 | O107: ESTIMEE | P107: 1 | Q107: 1.27 | R107: 0 | S107: 0 | T107: 0 | V107: 0.312 | W107: =IFERROR(DISTANCE3BANDES(V107,distance),"") -> 18 | X107: OFFICIELLE | Y107: 1 | Z107: 0.312 | AA107: 0 | AB107: 0 | AC107: 0 | AE107: =IF(AJ107>0,IF(AF107="ESTIMEE",AN107,DISTANCE5Q((AG107+AK107)/(AH107+AL107),distance)),AI107) -> 80 | AF107: ESTIMEE | AG107: 70 | AI107: =IF(AH107="",AG107,DISTANCE5Q(AG107/AH107,distance)) -> 70 | AJ107: 3 | AK107: 435 | AL107: 421 | AM107: 1.033254157 | AN107: =IFERROR(DISTANCE5Q(AM107,distance),"") -> 80
A108: MOR | B108: TIRITILLI | C108: =IFERROR(IF(MATCH(Moyennes!B108,'nouveaux joueurs'!B:B,0) >1,"nouveau joueur",""),"") ->  | D108: 0.5 | E108: =IFERROR(DISTANCELIBRE(D108,table),"") -> 37 | F108: ESTIMEE | G108: 1 | H108: 0.5 | I108: 0 | J108: 0 | K108: 0 | M108: 0.35 | N108: =IFERROR(DISTANCEBANDE(M108,distance),"") -> 30 | O108: ESTIMEE | P108: 1 | Q108: 0.35 | R108: 0 | S108: 0 | T108: 0 | V108: 0.28 | W108: =IFERROR(DISTANCE3BANDES(V108,distance),"") -> 17 | X108: ESTIMEE | Y108: 1 | Z108: 0.28 | AA108: 0 | AB108: 0 | AC108: 0 | AE108: =IF(AJ108>0,IF(AF108="ESTIMEE",AN108,DISTANCE5Q((AG108+AK108)/(AH108+AL108),distance)),AI108) -> 62 | AF108: ESTIMEE | AG108: 62 | AI108: =IF(AH108="",AG108,DISTANCE5Q(AG108/AH108,distance)) -> 62 | AJ108: 0 | AK108: 0 | AL108: 0 | AN108: =IFERROR(DISTANCE5Q(AM108,distance),"") -> 
A109: MAS | B109: TRAN | C109: =IFERROR(IF(MATCH(Moyennes!B109,'nouveaux joueurs'!B:B,0) >1,"nouveau joueur",""),"") ->  | D109: 3.5 | E109: =IFERROR(DISTANCELIBRE(D109,table),"") -> 111 | F109: CDBE | G109: 1 | H109: 3.5 | I109: 0 | J109: 0 | K109: 0 | M109: 2.27 | N109: =IFERROR(DISTANCEBANDE(M109,distance),"") -> 66 | O109: CDBE | P109: 1 | Q109: 2.27 | R109: 0 | S109: 0 | T109: 0 | V109: 0.38 | W109: =IFERROR(DISTANCE3BANDES(V109,distance),"") -> 21 | X109: CDBE | Y109: 1 | Z109: 0.38 | AA109: 0 | AB109: 0 | AC109: 0 | AE109: =IF(AJ109>0,IF(AF109="ESTIMEE",AN109,DISTANCE5Q((AG109+AK109)/(AH109+AL109),distance)),AI109) -> 76 | AF109: ESTIMEE | AG109: 76 | AI109: =IF(AH109="",AG109,DISTANCE5Q(AG109/AH109,distance)) -> 76 | AJ109: 0 | AK109: 0 | AL109: 0 | AN109: =IFERROR(DISTANCE5Q(AM109,distance),"") -> 
A110: MOR | B110: TRUFFAUT | C110: =IFERROR(IF(MATCH(Moyennes!B110,'nouveaux joueurs'!B:B,0) >1,"nouveau joueur",""),"") ->  | D110: 1.14 | E110: =IFERROR(DISTANCELIBRE(D110,table),"") -> 54 | F110: ESTIMEE | G110: 1 | H110: 1.14 | I110: 0 | J110: 0 | K110: 0 | M110: 0.67 | N110: =IFERROR(DISTANCEBANDE(M110,distance),"") -> 37 | O110: OFFICIELLE | P110: 1 | Q110: 0.67 | R110: 0 | S110: 0 | T110: 0 | V110: 0.31 | W110: =IFERROR(DISTANCE3BANDES(V110,distance),"") -> 18 | X110: ESTIMEE | Y110: 1 | Z110: 0.31 | AA110: 0 | AB110: 0 | AC110: 0 | AE110: =IF(AJ110>0,IF(AF110="ESTIMEE",AN110,DISTANCE5Q((AG110+AK110)/(AH110+AL110),distance)),AI110) -> 110 | AF110: ESTIMEE | AG110: 65 | AI110: =IF(AH110="",AG110,DISTANCE5Q(AG110/AH110,distance)) -> 65 | AJ110: 1 | AK110: 130 | AL110: 47 | AM110: 2.765957447 | AN110: =IFERROR(DISTANCE5Q(AM110,distance),"") -> 110
A111: MOR | B111: VALLEE | C111: =IFERROR(IF(MATCH(Moyennes!B111,'nouveaux joueurs'!B:B,0) >1,"nouveau joueur",""),"") ->  | D111: 0.5425 | E111: =IFERROR(DISTANCELIBRE(D111,table),"") -> 38 | F111: OFFICIELLE | G111: 1 | H111: 0.71 | I111: 1 | J111: 15 | K111: 40 | L111: 0.375 | M111: 0.35 | N111: =IFERROR(DISTANCEBANDE(M111,distance),"") -> 30 | O111: CDBE | P111: 1 | Q111: 0.35 | R111: 0 | S111: 0 | T111: 0 | V111: 0.25 | W111: =IFERROR(DISTANCE3BANDES(V111,distance),"") -> 16 | X111: CDBE | Y111: 1 | Z111: 0.25 | AA111: 0 | AB111: 0 | AC111: 0 | AE111: =IF(AJ111>0,IF(AF111="ESTIMEE",AN111,DISTANCE5Q((AG111+AK111)/(AH111+AL111),distance)),AI111) -> 63 | AF111: ESTIMEE | AG111: 63 | AI111: =IF(AH111="",AG111,DISTANCE5Q(AG111/AH111,distance)) -> 63 | AJ111: 0 | AK111: 0 | AL111: 0 | AN111: =IFERROR(DISTANCE5Q(AM111,distance),"") -> 
A112: MAS | B112: VANHEE | C112: =IFERROR(IF(MATCH(Moyennes!B112,'nouveaux joueurs'!B:B,0) >1,"nouveau joueur",""),"") ->  | D112: 0.46 | E112: =IFERROR(DISTANCELIBRE(D112,table),"") -> 36 | F112: OFFICIELLE | G112: 1 | H112: 0.42 | I112: 1 | J112: 23 | K112: 46 | L112: 0.5 | M112: 0.2561561562 | N112: =IFERROR(DISTANCEBANDE(M112,distance),"") -> 28 | O112: CDBE | P112: 1 | Q112: 0.3 | R112: 2 | S112: 26 | T112: 111 | U112: 0.2342342342 | V112: 0.001 | W112: =IFERROR(DISTANCE3BANDES(V112,distance),"") -> 8 | X112: ESTIMEE | Y112: 1 | Z112: 0.001 | AA112: 0 | AB112: 0 | AC112: 0 | AE112: =IF(AJ112>0,IF(AF112="ESTIMEE",AN112,DISTANCE5Q((AG112+AK112)/(AH112+AL112),distance)),AI112) -> 62 | AF112: ESTIMEE | AG112: 62 | AI112: =IF(AH112="",AG112,DISTANCE5Q(AG112/AH112,distance)) -> 62 | AJ112: 0 | AK112: 0 | AL112: 0 | AN112: =IFERROR(DISTANCE5Q(AM112,distance),"") -> 
A113: VIG | B113: VENOT | C113: =IFERROR(IF(MATCH(Moyennes!B113,'nouveaux joueurs'!B:B,0) >1,"nouveau joueur",""),"") -> nouveau joueur | D113: =IF(I113>0,IF(F113="ESTIMEE",L113,(H113*G113+I113*L113)/(G113+I113)),H113) -> 1.2 | E113: =IFERROR(DISTANCELIBRE(D113,table),"") -> 56 | F113: OFFICIELLE | G113: 1 | H113: 1.2 | I113: 0 | J113: 0 | K113: 0 | L113: =IFERROR(J113/K113,"") ->  | M113: =IF(R113>0,IF(O113="ESTIMEE",U113,(Q113*P113+R113*U113)/(P113+R113)),Q113) -> 0.39 | N113: =IFERROR(DISTANCEBANDE(M113,distance),"") -> 31 | O113: OFFICIELLE | P113: 1 | Q113: 0.5 | R113: 1 | S113: 14 | T113: 50 | U113: =IFERROR(S113/T113,"") -> 0.28 | V113: =IF(AA113>0,IF(X113="ESTIMEE",AD113,(Z113*Y113+AA113*AD113)/(Y113+AA113)),Z113) -> 0.445 | W113: =IFERROR(DISTANCE3BANDES(V113,distance),"") -> 24 | X113: OFFICIELLE | Y113: 1 | Z113: 0.445 | AA113: 0 | AB113: 0 | AC113: 0 | AD113: =IFERROR(AB113/AC113,"") ->  | AE113: =IF(AJ113>0,IF(AF113="ESTIMEE",AN113,DISTANCE5Q((AG113+AK113)/(AH113+AL113),distance)),AI113) -> 66 | AF113: ESTIMEE | AG113: 65 | AI113: =IF(AH113="",AG113,DISTANCE5Q(AG113/AH113,distance)) -> 65 | AJ113: 3 | AK113: 298 | AL113: 401 | AM113: =IFERROR(AK113/AL113,"") -> 0.7431421446 | AN113: =IFERROR(DISTANCE5Q(AM113,distance),"") -> 66
A114: ETR | B114: VERLEY | C114: =IFERROR(IF(MATCH(Moyennes!B114,'nouveaux joueurs'!B:B,0) >1,"nouveau joueur",""),"") ->  | D114: 1.42 | E114: =IFERROR(DISTANCELIBRE(D114,table),"") -> 62 | F114: OFFICIELLE | G114: 1 | H114: 1.42 | I114: 0 | J114: 0 | K114: 0 | M114: 1.21 | N114: =IFERROR(DISTANCEBANDE(M114,distance),"") -> 47 | O114: OFFICIELLE | P114: 1 | Q114: 1.21 | R114: 0 | S114: 0 | T114: 0 | V114: 0.3509555662 | W114: =IFERROR(DISTANCE3BANDES(V114,distance),"") -> 20 | X114: OFFICIELLE | Y114: 1 | Z114: 0.45 | AA114: 6 | AB114: 100 | AC114: 299 | AD114: 0.3344481605 | AE114: =IF(AJ114>0,IF(AF114="ESTIMEE",AN114,DISTANCE5Q((AG114+AK114)/(AH114+AL114),distance)),AI114) -> 66 | AF114: ESTIMEE | AG114: 66 | AI114: =IF(AH114="",AG114,DISTANCE5Q(AG114/AH114,distance)) -> 66 | AJ114: 0 | AK114: 0 | AL114: 0 | AN114: =IFERROR(DISTANCE5Q(AM114,distance),"") -> 
A115: MOR | B115: VICARI | C115: =IFERROR(IF(MATCH(Moyennes!B115,'nouveaux joueurs'!B:B,0) >1,"nouveau joueur",""),"") ->  | D115: 5.496028076 | E115: =IFERROR(DISTANCELIBRE(D115,table),"") -> 146 | F115: OFFICIELLE | G115: 1 | H115: 6.53 | I115: 6 | J115: 921 | K115: 173 | L115: 5.323699422 | M115: NC | N115: =IFERROR(DISTANCEBANDE(M115,distance),"") ->  | P115: 1 | Q115: NC | R115: 0 | S115: 0 | T115: 0 | V115: NC | W115: =IFERROR(DISTANCE3BANDES(V115,distance),"") ->  | Y115: 1 | Z115: NC | AA115: 0 | AB115: 0 | AC115: 0 | AE115: =IF(AJ115>0,IF(AF115="ESTIMEE",AN115,DISTANCE5Q((AG115+AK115)/(AH115+AL115),distance)),AI115) -> NC | AF115: ESTIMEE | AG115: NC | AI115: =IF(AH115="",AG115,DISTANCE5Q(AG115/AH115,distance)) -> NC | AJ115: 0 | AK115: 0 | AL115: 0 | AN115: =IFERROR(DISTANCE5Q(AM115,distance),"") -> 
A116: ARP | B116: VIGNON | C116: =IFERROR(IF(MATCH(Moyennes!B116,'nouveaux joueurs'!B:B,0) >1,"nouveau joueur",""),"") ->  | D116: 1.672010582 | E116: =IFERROR(DISTANCELIBRE(D116,table),"") -> 68 | F116: OFFICIELLE | G116: 1 | H116: 1.27 | I116: 2 | J116: 118 | K116: 63 | L116: 1.873015873 | M116: 0.6960240964 | N116: =IFERROR(DISTANCEBANDE(M116,distance),"") -> 37 | O116: CDBE | P116: 1 | Q116: 0.57 | R116: 2 | S116: 63 | T116: 83 | U116: 0.7590361446 | V116: 0.13 | W116: =IFERROR(DISTANCE3BANDES(V116,distance),"") -> 11 | X116: CDBE | Y116: 1 | Z116: 0.13 | AA116: 0 | AB116: 0 | AC116: 0 | AE116: =IF(AJ116>0,IF(AF116="ESTIMEE",AN116,DISTANCE5Q((AG116+AK116)/(AH116+AL116),distance)),AI116) -> 68 | AF116: ESTIMEE | AG116: 60 | AI116: =IF(AH116="",AG116,DISTANCE5Q(AG116/AH116,distance)) -> 60 | AJ116: 1 | AK116: 120 | AL116: 152 | AM116: 0.7894736842 | AN116: =IFERROR(DISTANCE5Q(AM116,distance),"") -> 68
A117: MOR | B117: VILLET | C117: =IFERROR(IF(MATCH(Moyennes!B117,'nouveaux joueurs'!B:B,0) >1,"nouveau joueur",""),"") ->  | D117: =IF(I117>0,IF(F117="ESTIMEE",L117,(H117*G117+I117*L117)/(G117+I117)),H117) -> 1.4 | E117: =IFERROR(DISTANCELIBRE(D117,table),"") -> 61 | F117: OFFICIELLE | G117: 1 | H117: 1.4 | I117: 0 | J117: 0 | K117: 0 | L117: =IFERROR(J117/K117,"") ->  | M117: =IF(R117>0,IF(O117="ESTIMEE",U117,(Q117*P117+R117*U117)/(P117+R117)),Q117) -> 0.7608058608 | N117: =IFERROR(DISTANCEBANDE(M117,distance),"") -> 38 | O117: OFFICIELLE | P117: 1 | Q117: 0.7 | R117: 2 | S117: 72 | T117: 91 | U117: =IFERROR(S117/T117,"") -> 0.7912087912 | V117: =IF(AA117>0,IF(X117="ESTIMEE",AD117,(Z117*Y117+AA117*AD117)/(Y117+AA117)),Z117) -> 0.15 | W117: =IFERROR(DISTANCE3BANDES(V117,distance),"") -> 12 | X117: OFFICIELLE | Y117: 1 | Z117: 0.15 | AA117: 0 | AB117: 0 | AC117: 0 | AD117: =IFERROR(AB117/AC117,"") ->  | AE117: =IF(AJ117>0,IF(AF117="ESTIMEE",AN117,DISTANCE5Q((AG117+AK117)/(AH117+AL117),distance)),AI117) -> 66 | AF117: ESTIMEE | AG117: 66 | AI117: =IF(AH117="",AG117,DISTANCE5Q(AG117/AH117,distance)) -> 66 | AJ117: 0 | AK117: 0 | AL117: 0 | AM117: =IFERROR(AK117/AL117,"") ->  | AN117: =IFERROR(DISTANCE5Q(AM117,distance),"") -> 
A118: MOR | B118: VINGUEASSALOM | C118: =IFERROR(IF(MATCH(Moyennes!B118,'nouveaux joueurs'!B:B,0) >1,"nouveau joueur",""),"") ->  | D118: 1.932424242 | E118: =IFERROR(DISTANCELIBRE(D118,table),"") -> 75 | F118: OFFICIELLE | G118: 1 | H118: 2.32 | I118: 2 | J118: 153 | K118: 88 | L118: 1.738636364 | M118: 1.119166667 | N118: =IFERROR(DISTANCEBANDE(M118,distance),"") -> 45 | O118: OFFICIELLE | P118: 1 | Q118: 1.06 | R118: 3 | S118: 123 | T118: 108 | U118: 1.138888889 | V118: 0.36 | W118: =IFERROR(DISTANCE3BANDES(V118,distance),"") -> 20 | X118: OFFICIELLE | Y118: 1 | Z118: 0.36 | AA118: 0 | AB118: 0 | AC118: 0 | AE118: =IF(AJ118>0,IF(AF118="ESTIMEE",AN118,DISTANCE5Q((AG118+AK118)/(AH118+AL118),distance)),AI118) -> 70 | AF118: ESTIMEE | AG118: 70 | AI118: =IF(AH118="",AG118,DISTANCE5Q(AG118/AH118,distance)) -> 70 | AJ118: 0 | AK118: 0 | AL118: 0 | AN118: =IFERROR(DISTANCE5Q(AM118,distance),"") -> 
A119: DRA | B119: VIVENOT | C119: =IFERROR(IF(MATCH(Moyennes!B119,'nouveaux joueurs'!B:B,0) >1,"nouveau joueur",""),"") ->  | D119: 0.65 | E119: =IFERROR(DISTANCELIBRE(D119,table),"") -> 41 | F119: CDBE | G119: 1 | H119: 0.65 | I119: 0 | J119: 0 | K119: 0 | M119: 0.55 | N119: =IFERROR(DISTANCEBANDE(M119,distance),"") -> 34 | O119: CDBE | P119: 1 | Q119: 0.55 | R119: 0 | S119: 0 | T119: 0 | V119: 0.2 | W119: =IFERROR(DISTANCE3BANDES(V119,distance),"") -> 14 | X119: CDBE | Y119: 1 | Z119: 0.2 | AA119: 0 | AB119: 0 | AC119: 0 | AE119: =IF(AJ119>0,IF(AF119="ESTIMEE",AN119,DISTANCE5Q((AG119+AK119)/(AH119+AL119),distance)),AI119) -> 60 | AF119: ESTIMEE | AG119: 60 | AI119: =IF(AH119="",AG119,DISTANCE5Q(AG119/AH119,distance)) -> 60 | AJ119: 0 | AK119: 0 | AL119: 0 | AN119: =IFERROR(DISTANCE5Q(AM119,distance),"") -> 
A120: COR | B120: WEBER | C120: =IFERROR(IF(MATCH(Moyennes!B120,'nouveaux joueurs'!B:B,0) >1,"nouveau joueur",""),"") ->  | D120: 1.27 | E120: =IFERROR(DISTANCELIBRE(D120,table),"") -> 58 | F120: OFFICIELLE | G120: 1 | H120: 1.27 | I120: 0 | J120: 0 | K120: 0 | M120: 1.05 | N120: =IFERROR(DISTANCEBANDE(M120,distance),"") -> 44 | O120: CDBE | P120: 1 | Q120: 1.05 | R120: 0 | S120: 0 | T120: 0 | V120: 0.213 | W120: =IFERROR(DISTANCE3BANDES(V120,distance),"") -> 14 | X120: OFFICIELLE | Y120: 1 | Z120: 0.213 | AA120: 0 | AB120: 0 | AC120: 0 | AE120: =IF(AJ120>0,IF(AF120="ESTIMEE",AN120,DISTANCE5Q((AG120+AK120)/(AH120+AL120),distance)),AI120) -> 66 | AF120: ESTIMEE | AG120: 66 | AI120: =IF(AH120="",AG120,DISTANCE5Q(AG120/AH120,distance)) -> 66 | AJ120: 0 | AK120: 0 | AL120: 0 | AN120: =IFERROR(DISTANCE5Q(AM120,distance),"") -> 
A121: MAS | B121: XANH | C121: =IFERROR(IF(MATCH(Moyennes!B121,'nouveaux joueurs'!B:B,0) >1,"nouveau joueur",""),"") ->  | D121: 2.02 | E121: =IFERROR(DISTANCELIBRE(D121,table),"") -> 77 | F121: CDBE | G121: 1 | H121: 2.02 | I121: 0 | J121: 0 | K121: 0 | M121: 1 | N121: =IFERROR(DISTANCEBANDE(M121,distance),"") -> 43 | O121: CDBE | P121: 1 | Q121: 1 | R121: 0 | S121: 0 | T121: 0 | V121: 0.1 | W121: =IFERROR(DISTANCE3BANDES(V121,distance),"") -> 11 | X121: CDBE | Y121: 1 | Z121: 0.1 | AA121: 0 | AB121: 0 | AC121: 0 | AE121: =IF(AJ121>0,IF(AF121="ESTIMEE",AN121,DISTANCE5Q((AG121+AK121)/(AH121+AL121),distance)),AI121) -> 63 | AF121: ESTIMEE | AG121: 63 | AI121: =IF(AH121="",AG121,DISTANCE5Q(AG121/AH121,distance)) -> 63 | AJ121: 0 | AK121: 0 | AL121: 0 | AN121: =IFERROR(DISTANCE5Q(AM121,distance),"") -> 
B122: - | C122: =IFERROR(IF(MATCH(Moyennes!B122,'nouveaux joueurs'!B:B,0) >1,"nouveau joueur",""),"") ->  | D122: NC | E122: =IFERROR(DISTANCELIBRE(D122,table),"") ->  | H122: NC | I122: 0 | J122: 0 | K122: 0 | L122: =IFERROR(J122/K122,"") ->  | M122: NC | N122: =IFERROR(DISTANCEBANDE(M122,distance),"") ->  | Q122: NC | R122: 0 | S122: 0 | T122: 0 | U122: =IFERROR(S122/T122,"") ->  | V122: =IF(AA122>=Ponderation,AD122,IF(AA122>0,(AB122+(Ponderation-AA122)*Z122*(AC122/AA122))/(Ponderation*AC122/AA122),IF(Z122="","NC",Z122))) ->  | W122: =IFERROR(DISTANCE3BANDES(V122,distance),"") ->  | Z122: NC | AA122: 0 | AB122: 0 | AC122: 0 | AD122: =IFERROR(AB122/AC122,"") ->  | AE122: =IF(AJ122>0,IF(AF122="ESTIMEE",AN122,DISTANCE5Q((AG122+AK122)/(AH122+AL122),distance)),AI122) -> NC | AG122: NC | AI122: =IF(AH122="",AG122,DISTANCE5Q(AG122/AH122,distance)) -> NC | AJ122: 0 | AK122: 0 | AL122: 0 | AN122: =IFERROR(DISTANCE5Q(AM122,distance),"") -> 
B123: - | C123: =IFERROR(IF(MATCH(Moyennes!B123,'nouveaux joueurs'!B:B,0) >1,"nouveau joueur",""),"") ->  | D123: NC | E123: =IFERROR(DISTANCELIBRE(D123,table),"") ->  | H123: NC | I123: 0 | J123: 0 | K123: 0 | L123: =IFERROR(J123/K123,"") ->  | M123: NC | N123: =IFERROR(DISTANCEBANDE(M123,distance),"") ->  | Q123: NC | R123: 0 | S123: 0 | T123: 0 | U123: =IFERROR(S123/T123,"") ->  | V123: =IF(AA123>=Ponderation,AD123,IF(AA123>0,(AB123+(Ponderation-AA123)*Z123*(AC123/AA123))/(Ponderation*AC123/AA123),IF(Z123="","NC",Z123))) ->  | W123: =IFERROR(DISTANCE3BANDES(V123,distance),"") ->  | Z123: NC | AA123: 0 | AB123: 0 | AC123: 0 | AD123: =IFERROR(AB123/AC123,"") ->  | AE123: =IF(AJ123>0,IF(AF123="ESTIMEE",AN123,DISTANCE5Q((AG123+AK123)/(AH123+AL123),distance)),AI123) -> NC | AG123: NC | AI123: =IF(AH123="",AG123,DISTANCE5Q(AG123/AH123,distance)) -> NC | AN123: =IFERROR(DISTANCE5Q(AM123,distance),"") -> 60
B124: - | C124: =IFERROR(IF(MATCH(Moyennes!B124,'nouveaux joueurs'!B:B,0) >1,"nouveau joueur",""),"") ->  | D124: NC | E124: =IFERROR(DISTANCELIBRE(D124,table),"") ->  | H124: NC | I124: 0 | J124: 0 | K124: 0 | M124: NC | N124: =IFERROR(DISTANCEBANDE(M124,distance),"") ->  | Q124: NC | R124: 0 | S124: 0 | T124: 0 | W124: =IFERROR(DISTANCE3BANDES(V124,distance),"") ->  | Z124: NC | AA124: 0 | AB124: 0 | AC124: 0 | AE124: =IF(AJ124>0,IF(AF124="ESTIMEE",AN124,DISTANCE5Q((AG124+AK124)/(AH124+AL124),distance)),AI124) -> NC | AG124: NC | AI124: =IF(AH124="",AG124,DISTANCE5Q(AG124/AH124,distance)) -> NC | AN124: =IFERROR(DISTANCE5Q(AM124,distance),"") -> 60
B125: - | C125: =IFERROR(IF(MATCH(Moyennes!B125,'nouveaux joueurs'!B:B,0) >1,"nouveau joueur",""),"") ->  | D125: NC | E125: =IFERROR(DISTANCELIBRE(D125,table),"") ->  | H125: NC | I125: 0 | J125: 0 | K125: 0 | M125: NC | N125: =IFERROR(DISTANCEBANDE(M125,distance),"") ->  | Q125: NC | R125: 0 | S125: 0 | T125: 0 | W125: =IFERROR(DISTANCE3BANDES(V125,distance),"") ->  | Z125: NC | AA125: 0 | AB125: 0 | AC125: 0 | AE125: =IF(AJ125>0,IF(AF125="ESTIMEE",AN125,DISTANCE5Q((AG125+AK125)/(AH125+AL125),distance)),AI125) -> NC | AG125: NC | AI125: =IF(AH125="",AG125,DISTANCE5Q(AG125/AH125,distance)) -> NC | AN125: =IFERROR(DISTANCE5Q(AM125,distance),"") -> 60
B126: - | C126: =IFERROR(IF(MATCH(Moyennes!B126,'nouveaux joueurs'!B:B,0) >1,"nouveau joueur",""),"") ->  | D126: NC | E126: =IFERROR(DISTANCELIBRE(D126,table),"") ->  | H126: NC | I126: 0 | J126: 0 | K126: 0 | M126: NC | N126: =IFERROR(DISTANCEBANDE(M126,distance),"") ->  | Q126: NC | R126: 0 | S126: 0 | T126: 0 | W126: =IFERROR(DISTANCE3BANDES(V126,distance),"") ->  | Z126: NC | AA126: 0 | AB126: 0 | AC126: 0 | AE126: =IF(AJ126>0,IF(AF126="ESTIMEE",AN126,DISTANCE5Q((AG126+AK126)/(AH126+AL126),distance)),AI126) -> NC | AG126: NC | AI126: =IF(AH126="",AG126,DISTANCE5Q(AG126/AH126,distance)) -> NC | AN126: =IFERROR(DISTANCE5Q(AM126,distance),"") -> 60
B127: - | C127: =IFERROR(IF(MATCH(Moyennes!B127,'nouveaux joueurs'!B:B,0) >1,"nouveau joueur",""),"") ->  | D127: NC | E127: =IFERROR(DISTANCELIBRE(D127,table),"") ->  | H127: NC | I127: 0 | J127: 0 | K127: 0 | M127: NC | N127: =IFERROR(DISTANCEBANDE(M127,distance),"") ->  | Q127: NC | R127: 0 | S127: 0 | T127: 0 | W127: =IFERROR(DISTANCE3BANDES(V127,distance),"") ->  | Z127: NC | AA127: 0 | AB127: 0 | AC127: 0 | AE127: =IF(AJ127>0,IF(AF127="ESTIMEE",AN127,DISTANCE5Q((AG127+AK127)/(AH127+AL127),distance)),AI127) -> NC | AG127: NC | AI127: =IF(AH127="",AG127,DISTANCE5Q(AG127/AH127,distance)) -> NC | AN127: =IFERROR(DISTANCE5Q(AM127,distance),"") -> 60
B128: - | C128: =IFERROR(IF(MATCH(Moyennes!B128,'nouveaux joueurs'!B:B,0) >1,"nouveau joueur",""),"") ->  | D128: NC | E128: =IFERROR(DISTANCELIBRE(D128,table),"") ->  | H128: NC | I128: 0 | J128: 0 | K128: 0 | M128: NC | N128: =IFERROR(DISTANCEBANDE(M128,distance),"") ->  | Q128: NC | R128: 0 | S128: 0 | T128: 0 | W128: =IFERROR(DISTANCE3BANDES(V128,distance),"") ->  | Z128: NC | AA128: 0 | AB128: 0 | AC128: 0 | AE128: =IF(AJ128>0,IF(AF128="ESTIMEE",AN128,DISTANCE5Q((AG128+AK128)/(AH128+AL128),distance)),AI128) -> NC | AG128: NC | AI128: =IF(AH128="",AG128,DISTANCE5Q(AG128/AH128,distance)) -> NC | AN128: =IFERROR(DISTANCE5Q(AM128,distance),"") -> 60
B129: - | C129: =IFERROR(IF(MATCH(Moyennes!B129,'nouveaux joueurs'!B:B,0) >1,"nouveau joueur",""),"") ->  | D129: NC | E129: =IFERROR(DISTANCELIBRE(D129,table),"") ->  | H129: NC | I129: 0 | J129: 0 | K129: 0 | M129: NC | N129: =IFERROR(DISTANCEBANDE(M129,distance),"") ->  | Q129: NC | R129: 0 | S129: 0 | T129: 0 | W129: =IFERROR(DISTANCE3BANDES(V129,distance),"") ->  | Z129: NC | AA129: 0 | AB129: 0 | AC129: 0 | AE129: =IF(AJ129>0,IF(AF129="ESTIMEE",AN129,DISTANCE5Q((AG129+AK129)/(AH129+AL129),distance)),AI129) -> NC | AG129: NC | AI129: =IF(AH129="",AG129,DISTANCE5Q(AG129/AH129,distance)) -> NC | AN129: =IFERROR(DISTANCE5Q(AM129,distance),"") -> 60
B130: - | C130: =IFERROR(IF(MATCH(Moyennes!B130,'nouveaux joueurs'!B:B,0) >1,"nouveau joueur",""),"") ->  | D130: NC | E130: =IFERROR(DISTANCELIBRE(D130,table),"") ->  | H130: NC | I130: 0 | J130: 0 | K130: 0 | M130: NC | N130: =IFERROR(DISTANCEBANDE(M130,distance),"") ->  | Q130: NC | R130: 0 | S130: 0 | T130: 0 | W130: =IFERROR(DISTANCE3BANDES(V130,distance),"") ->  | Z130: NC | AA130: 0 | AB130: 0 | AC130: 0 | AE130: =IF(AJ130>0,IF(AF130="ESTIMEE",AN130,DISTANCE5Q((AG130+AK130)/(AH130+AL130),distance)),AI130) -> NC | AG130: NC | AI130: =IF(AH130="",AG130,DISTANCE5Q(AG130/AH130,distance)) -> NC | AN130: =IFERROR(DISTANCE5Q(AM130,distance),"") -> 60
B131: - | C131: =IFERROR(IF(MATCH(Moyennes!B131,'nouveaux joueurs'!B:B,0) >1,"nouveau joueur",""),"") ->  | D131: NC | E131: =IFERROR(DISTANCELIBRE(D131,table),"") ->  | H131: NC | I131: 0 | J131: 0 | K131: 0 | M131: NC | N131: =IFERROR(DISTANCEBANDE(M131,distance),"") ->  | Q131: NC | R131: 0 | S131: 0 | T131: 0 | W131: =IFERROR(DISTANCE3BANDES(V131,distance),"") ->  | Z131: NC | AA131: 0 | AB131: 0 | AC131: 0 | AE131: =IF(AJ131>0,IF(AF131="ESTIMEE",AN131,DISTANCE5Q((AG131+AK131)/(AH131+AL131),distance)),AI131) -> NC | AG131: NC | AI131: =IF(AH131="",AG131,DISTANCE5Q(AG131/AH131,distance)) -> NC | AN131: =IFERROR(DISTANCE5Q(AM131,distance),"") -> 60
B132: - | C132: =IFERROR(IF(MATCH(Moyennes!B132,'nouveaux joueurs'!B:B,0) >1,"nouveau joueur",""),"") ->  | D132: NC | E132: =IFERROR(DISTANCELIBRE(D132,table),"") ->  | H132: NC | I132: 0 | J132: 0 | K132: 0 | M132: NC | N132: =IFERROR(DISTANCEBANDE(M132,distance),"") ->  | Q132: NC | R132: 0 | S132: 0 | T132: 0 | W132: =IFERROR(DISTANCE3BANDES(V132,distance),"") ->  | Z132: NC | AA132: 0 | AB132: 0 | AC132: 0 | AE132: =IF(AJ132>0,IF(AF132="ESTIMEE",AN132,DISTANCE5Q((AG132+AK132)/(AH132+AL132),distance)),AI132) -> NC | AG132: NC | AI132: =IF(AH132="",AG132,DISTANCE5Q(AG132/AH132,distance)) -> NC | AN132: =IFERROR(DISTANCE5Q(AM132,distance),"") -> 60
B133: - | C133: =IFERROR(IF(MATCH(Moyennes!B133,'nouveaux joueurs'!B:B,0) >1,"nouveau joueur",""),"") ->  | D133: NC | E133: =IFERROR(DISTANCELIBRE(D133,table),"") ->  | H133: NC | I133: 0 | J133: 0 | K133: 0 | M133: NC | N133: =IFERROR(DISTANCEBANDE(M133,distance),"") ->  | Q133: NC | R133: 0 | S133: 0 | T133: 0 | W133: =IFERROR(DISTANCE3BANDES(V133,distance),"") ->  | Z133: NC | AA133: 0 | AB133: 0 | AC133: 0 | AE133: =IF(AJ133>0,IF(AF133="ESTIMEE",AN133,DISTANCE5Q((AG133+AK133)/(AH133+AL133),distance)),AI133) -> NC | AG133: NC | AI133: =IF(AH133="",AG133,DISTANCE5Q(AG133/AH133,distance)) -> NC | AN133: =IFERROR(DISTANCE5Q(AM133,distance),"") -> 60
B134: - | C134: =IFERROR(IF(MATCH(Moyennes!B134,'nouveaux joueurs'!B:B,0) >1,"nouveau joueur",""),"") ->  | D134: NC | E134: =IFERROR(DISTANCELIBRE(D134,table),"") ->  | H134: NC | I134: 0 | J134: 0 | K134: 0 | M134: NC | N134: =IFERROR(DISTANCEBANDE(M134,distance),"") ->  | Q134: NC | R134: 0 | S134: 0 | T134: 0 | W134: =IFERROR(DISTANCE3BANDES(V134,distance),"") ->  | Z134: NC | AA134: 0 | AB134: 0 | AC134: 0 | AE134: =IF(AJ134>0,IF(AF134="ESTIMEE",AN134,DISTANCE5Q((AG134+AK134)/(AH134+AL134),distance)),AI134) -> NC | AG134: NC | AI134: =IF(AH134="",AG134,DISTANCE5Q(AG134/AH134,distance)) -> NC | AN134: =IFERROR(DISTANCE5Q(AM134,distance),"") -> 60
B135: - | C135: =IFERROR(IF(MATCH(Moyennes!B135,'nouveaux joueurs'!B:B,0) >1,"nouveau joueur",""),"") ->  | D135: NC | E135: =IFERROR(DISTANCELIBRE(D135,table),"") ->  | H135: NC | I135: 0 | J135: 0 | K135: 0 | M135: NC | N135: =IFERROR(DISTANCEBANDE(M135,distance),"") ->  | Q135: NC | R135: 0 | S135: 0 | T135: 0 | W135: =IFERROR(DISTANCE3BANDES(V135,distance),"") ->  | Z135: NC | AA135: 0 | AB135: 0 | AC135: 0 | AE135: =IF(AJ135>0,IF(AF135="ESTIMEE",AN135,DISTANCE5Q((AG135+AK135)/(AH135+AL135),distance)),AI135) -> NC | AG135: NC | AI135: =IF(AH135="",AG135,DISTANCE5Q(AG135/AH135,distance)) -> NC | AN135: =IFERROR(DISTANCE5Q(AM135,distance),"") -> 60
B136: - | C136: =IFERROR(IF(MATCH(Moyennes!B136,'nouveaux joueurs'!B:B,0) >1,"nouveau joueur",""),"") ->  | D136: NC | E136: =IFERROR(DISTANCELIBRE(D136,table),"") ->  | H136: NC | I136: 0 | J136: 0 | K136: 0 | M136: NC | N136: =IFERROR(DISTANCEBANDE(M136,distance),"") ->  | Q136: NC | R136: 0 | S136: 0 | T136: 0 | W136: =IFERROR(DISTANCE3BANDES(V136,distance),"") ->  | Z136: NC | AA136: 0 | AB136: 0 | AC136: 0 | AE136: =IF(AJ136>0,IF(AF136="ESTIMEE",AN136,DISTANCE5Q((AG136+AK136)/(AH136+AL136),distance)),AI136) -> NC | AG136: NC | AI136: =IF(AH136="",AG136,DISTANCE5Q(AG136/AH136,distance)) -> NC | AN136: =IFERROR(DISTANCE5Q(AM136,distance),"") -> 60
B137: - | C137: =IFERROR(IF(MATCH(Moyennes!B137,'nouveaux joueurs'!B:B,0) >1,"nouveau joueur",""),"") ->  | D137: =IF(I137>0,IF(F137="ESTIMEE",L137,(H137*G137+I137*L137)/(G137+I137)),H137) -> NC | E137: =IFERROR(DISTANCELIBRE(D137,table),"") ->  | H137: NC | I137: 0 | J137: 0 | K137: 0 | M137: =IF(R137>0,IF(O137="ESTIMEE",U137,(Q137*P137+R137*U137)/(P137+R137)),Q137) -> NC | N137: =IFERROR(DISTANCEBANDE(M137,distance),"") ->  | Q137: NC | R137: 0 | S137: 0 | T137: 0 | W137: =IFERROR(DISTANCE3BANDES(V137,distance),"") ->  | Z137: NC | AA137: 0 | AB137: 0 | AC137: 0 | AE137: =IF(AJ137>0,IF(AF137="ESTIMEE",AN137,DISTANCE5Q((AG137+AK137)/(AH137+AL137),distance)),AI137) -> NC | AG137: NC | AI137: =IF(AH137="",AG137,DISTANCE5Q(AG137/AH137,distance)) -> NC | AN137: =IFERROR(DISTANCE5Q(AM137,distance),"") -> 60
B138: - | C138: =IFERROR(IF(MATCH(Moyennes!B138,'nouveaux joueurs'!B:B,0) >1,"nouveau joueur",""),"") ->  | D138: NC | E138: =IFERROR(DISTANCELIBRE(D138,table),"") ->  | H138: NC | I138: 0 | J138: 0 | K138: 0 | M138: NC | N138: =IFERROR(DISTANCEBANDE(M138,distance),"") ->  | Q138: NC | R138: 0 | S138: 0 | T138: 0 | W138: =IFERROR(DISTANCE3BANDES(V138,distance),"") ->  | Z138: NC | AA138: 0 | AB138: 0 | AC138: 0 | AE138: =IF(AJ138>0,IF(AF138="ESTIMEE",AN138,DISTANCE5Q((AG138+AK138)/(AH138+AL138),distance)),AI138) -> NC | AG138: NC | AI138: =IF(AH138="",AG138,DISTANCE5Q(AG138/AH138,distance)) -> NC | AN138: =IFERROR(DISTANCE5Q(AM138,distance),"") -> 60
B139: - | C139: =IFERROR(IF(MATCH(Moyennes!B139,'nouveaux joueurs'!B:B,0) >1,"nouveau joueur",""),"") ->  | D139: NC | E139: =IFERROR(DISTANCELIBRE(D139,table),"") ->  | H139: NC | I139: 0 | J139: 0 | K139: 0 | M139: NC | N139: =IFERROR(DISTANCEBANDE(M139,distance),"") ->  | Q139: NC | R139: 0 | S139: 0 | T139: 0 | W139: =IFERROR(DISTANCE3BANDES(V139,distance),"") ->  | Z139: NC | AA139: 0 | AB139: 0 | AC139: 0 | AE139: =IF(AJ139>0,IF(AF139="ESTIMEE",AN139,DISTANCE5Q((AG139+AK139)/(AH139+AL139),distance)),AI139) -> NC | AG139: NC | AI139: =IF(AH139="",AG139,DISTANCE5Q(AG139/AH139,distance)) -> NC | AN139: =IFERROR(DISTANCE5Q(AM139,distance),"") -> 60
B140: - | C140: =IFERROR(IF(MATCH(Moyennes!B140,'nouveaux joueurs'!B:B,0) >1,"nouveau joueur",""),"") ->  | D140: NC | E140: =IFERROR(DISTANCELIBRE(D140,table),"") ->  | H140: NC | I140: 0 | J140: 0 | K140: 0 | M140: NC | N140: =IFERROR(DISTANCEBANDE(M140,distance),"") ->  | Q140: NC | R140: 0 | S140: 0 | T140: 0 | W140: =IFERROR(DISTANCE3BANDES(V140,distance),"") ->  | Z140: NC | AA140: 0 | AB140: 0 | AC140: 0 | AE140: =IF(AJ140>0,IF(AF140="ESTIMEE",AN140,DISTANCE5Q((AG140+AK140)/(AH140+AL140),distance)),AI140) -> NC | AG140: NC | AI140: =IF(AH140="",AG140,DISTANCE5Q(AG140/AH140,distance)) -> NC | AN140: =IFERROR(DISTANCE5Q(AM140,distance),"") -> 60
B141: - | C141: =IFERROR(IF(MATCH(Moyennes!B141,'nouveaux joueurs'!B:B,0) >1,"nouveau joueur",""),"") ->  | D141: NC | E141: =IFERROR(DISTANCELIBRE(D141,table),"") ->  | H141: NC | I141: 0 | J141: 0 | K141: 0 | L141: =IFERROR(J141/K141,"") ->  | M141: NC | N141: =IFERROR(DISTANCEBANDE(M141,distance),"") ->  | Q141: NC | R141: 0 | S141: 0 | T141: 0 | U141: =IFERROR(S141/T141,"") ->  | W141: =IFERROR(DISTANCE3BANDES(V141,distance),"") ->  | Z141: NC | AA141: 0 | AB141: 0 | AC141: 0 | AD141: =IFERROR(AB141/AC141,"") ->  | AE141: =IF(AJ141>0,IF(AF141="ESTIMEE",AN141,DISTANCE5Q((AG141+AK141)/(AH141+AL141),distance)),AI141) -> NC | AG141: NC | AI141: =IF(AH141="",AG141,DISTANCE5Q(AG141/AH141,distance)) -> NC | AJ141: 0 | AK141: 0 | AL141: 0 | AN141: =IFERROR(DISTANCE5Q(AM141,distance),"") -> 
B142: - | C142: =IFERROR(IF(MATCH(Moyennes!B142,'nouveaux joueurs'!B:B,0) >1,"nouveau joueur",""),"") ->  | D142: NC | E142: =IFERROR(DISTANCELIBRE(D142,table),"") ->  | H142: NC | I142: 0 | J142: 0 | K142: 0 | M142: NC | N142: =IFERROR(DISTANCEBANDE(M142,distance),"") ->  | Q142: NC | R142: 0 | S142: 0 | T142: 0 | W142: =IFERROR(DISTANCE3BANDES(V142,distance),"") ->  | Z142: NC | AA142: 0 | AB142: 0 | AC142: 0 | AE142: =IF(AJ142>0,IF(AF142="ESTIMEE",AN142,DISTANCE5Q((AG142+AK142)/(AH142+AL142),distance)),AI142) -> NC | AG142: NC | AI142: =IF(AH142="",AG142,DISTANCE5Q(AG142/AH142,distance)) -> NC | AJ142: 0 | AK142: 0 | AL142: 0 | AN142: =IFERROR(DISTANCE5Q(AM142,distance),"") -> 
B143: - | C143: =IFERROR(IF(MATCH(Moyennes!B143,'nouveaux joueurs'!B:B,0) >1,"nouveau joueur",""),"") ->  | D143: NC | E143: =IFERROR(DISTANCELIBRE(D143,table),"") ->  | H143: NC | I143: 0 | J143: 0 | K143: 0 | M143: NC | N143: =IFERROR(DISTANCEBANDE(M143,distance),"") ->  | Q143: NC | R143: 0 | S143: 0 | T143: 0 | W143: =IFERROR(DISTANCE3BANDES(V143,distance),"") ->  | Z143: NC | AA143: 0 | AB143: 0 | AC143: 0 | AE143: =IF(AJ143>0,IF(AF143="ESTIMEE",AN143,DISTANCE5Q((AG143+AK143)/(AH143+AL143),distance)),AI143) -> NC | AG143: NC | AI143: =IF(AH143="",AG143,DISTANCE5Q(AG143/AH143,distance)) -> NC | AJ143: 0 | AK143: 0 | AL143: 0 | AN143: =IFERROR(DISTANCE5Q(AM143,distance),"") -> 
B144: - | C144: =IFERROR(IF(MATCH(Moyennes!B144,'nouveaux joueurs'!B:B,0) >1,"nouveau joueur",""),"") ->  | D144: NC | E144: =IFERROR(DISTANCELIBRE(D144,table),"") ->  | H144: NC | I144: 0 | J144: 0 | K144: 0 | M144: NC | N144: =IFERROR(DISTANCEBANDE(M144,distance),"") ->  | Q144: NC | R144: 0 | S144: 0 | T144: 0 | W144: =IFERROR(DISTANCE3BANDES(V144,distance),"") ->  | Z144: NC | AA144: 0 | AB144: 0 | AC144: 0 | AE144: =IF(AJ144>0,IF(AF144="ESTIMEE",AN144,DISTANCE5Q((AG144+AK144)/(AH144+AL144),distance)),AI144) -> NC | AG144: NC | AI144: =IF(AH144="",AG144,DISTANCE5Q(AG144/AH144,distance)) -> NC | AJ144: 0 | AK144: 0 | AL144: 0 | AN144: =IFERROR(DISTANCE5Q(AM144,distance),"") -> 
A146: les joueurs en jaunes participent au tournoi cette année
A147: les joueurs en rouges ne participent pas au tournoi cette année
A148: LNR : licence non renouvelée
A150: Source prise en compte pour la moyenne initial
A151: OFFICIELLE | B151: Moyenne offcielle début de saison
A152: ESTIMEE | B152: Estimation par le capitaine de l'équipe ou pour les 5 quilles, distance calculée à partir d'un autre mode de jeux
A153: -

Sheet Distances
A1: Distances vétérans 2024-2025
A3: Les nombres en rouge correspondent au milieu de chaque catégorie
B4: Libre | G4: Bande | L4: 3 Bandes | P4: 5 quilles
B6: =CONCATENATE("d= ",distance_libre_c," m² +",distance_libre_b," m +",distance_libre_a) -> d= -1,34 m² +30 m +22 | G6: =CONCATENATE("d= ",distance_bande_c," m² +",distance_bande_b," m +",distance_bande_a) -> d= -0,84 m² +21 m +23 | L6: =CONCATENATE("d= ",distance_3bandes_c," m² +",distance_3bandes_b," m +",distance_3bandes_a) -> d= 30 m² +23 m +8 | P6: =CONCATENATE("d= ",distance_quilles_c," m² +",distance_quilles_b," m +",distance_quilles_a) -> d= -2 m² +50 m +30
C7: incrément | D7: =(distance_quilles_max-distance_quilles_min)/(MAX(B$9:B$120)-MIN(B$9:B$120)) -> 4.504504505 | H7: incrément | I7: =(distance_quilles_max-distance_quilles_min)/(MAX(G$9:G$120)-MIN(G$9:G$120)) -> 19.23076923 | M7: incrément | N7: =(distance_quilles_max-distance_quilles_min)/(MAX(L$9:L$120)-MIN(L$9:L$120)) -> 71.83908046
A8: Cat. | B8: m | C8: distance | D8: dist. 5Q | F8: Cat. | G8: m | H8: distance | I8: dist. 5Q | K8: Cat. | L8: m | M8: distance | N8: dist. 5Q | P8: Cat. | Q8: m | R8: distance
B9: 0 | C9: =ROUND(distance_libre_c*B9^2+distance_libre_b*B9+distance_libre_a,0) -> 22 | D9: =ROUND(distance_quilles_min+$D$7*B9,0) -> 60 | G9: 0 | H9: =ROUND(distance_bande_c*G9^2+distance_bande_b*G9+distance_bande_a,0) -> 23 | I9: =ROUND(distance_quilles_min+$I$7*G9,0) -> 60 | L9: 0 | M9: =ROUND(distance_3bandes_c*L9^2+distance_3bandes_b*L9+distance_3bandes_a,0) -> 8 | N9: =ROUND(distance_quilles_min+$N$7*L9,0) -> 60 | Q9: 0 | R9: =IFERROR(ROUND(MAX(distance_quilles_min,MIN(distance_quilles_max,distance_quilles_a+Q9*distance_quilles_b+distance_quilles_c*Q9^2)),0),"") -> 60
B10: 0.1 | C10: 25 | D10: 60 | G10: 0.05 | H10: 24 | I10: 61 | L10: 0.01 | M10: 8 | N10: 61 | Q10: 0.05 | R10: 60
B11: 0.2 | C11: 28 | D11: 61 | G11: 0.1 | H11: 25 | I11: 62 | L11: 0.02 | M11: 8 | N11: 61 | Q11: 0.1 | R11: 60
B12: 0.3 | C12: 31 | D12: 61 | G12: 0.15 | H12: 26 | I12: 63 | L12: 0.03 | M12: 9 | N12: 62 | Q12: 0.15 | R12: 60
B13: 0.4 | C13: 34 | D13: 62 | G13: 0.2 | H13: 27 | I13: 64 | L13: 0.04 | M13: 9 | N13: 63 | Q13: 0.2 | R13: 60
B14: 0.5 | C14: 37 | D14: 62 | G14: 0.25 | H14: 28 | I14: 65 | L14: 0.05 | M14: 9 | N14: 64 | Q14: 0.25 | R14: 60
A15: R4 | B15: 0.6 | C15: 40 | D15: 63 | G15: 0.3 | H15: 29 | I15: 66 | L15: 0.06 | M15: 9 | N15: 64 | Q15: 0.3 | R15: 60
B16: 0.7 | C16: 42 | D16: 63 | G16: 0.35 | H16: 30 | I16: 67 | L16: 0.07 | M16: 10 | N16: 65 | Q16: 0.35 | R16: 60
B17: 0.8 | C17: 45 | D17: 64 | G17: 0.4 | H17: 31 | I17: 68 | L17: 0.08 | M17: 10 | N17: 66 | Q17: 0.4 | R17: 60
B18: 0.9 | C18: 48 | D18: 64 | G18: 0.45 | H18: 32 | I18: 69 | L18: 0.09 | M18: 10 | N18: 66 | Q18: 0.45 | R18: 60
B19: 1 | C19: 51 | D19: 65 | F19: R2 | G19: 0.5 | H19: 33 | I19: 70 | L19: 0.1 | M19: 11 | N19: 67 | Q19: 0.5 | R19: 60
B20: 1.1 | C20: 53 | D20: 65 | G20: 0.55 | H20: 34 | I20: 71 | L20: 0.11 | M20: 11 | N20: 68 | Q20: 0.55 | R20: 60
B21: 1.2 | C21: 56 | D21: 65 | G21: 0.6 | H21: 35 | I21: 72 | L21: 0.12 | M21: 11 | N21: 69 | Q21: 0.6 | R21: 60
B22: 1.3 | C22: 59 | D22: 66 | G22: 0.65 | H22: 36 | I22: 73 | K22: R2 | L22: 0.13 | M22: 11 | N22: 69 | Q22: 0.65 | R22: 62
B23: 1.4 | C23: 61 | D23: 66 | G23: 0.7 | H23: 37 | I23: 73 | L23: 0.14 | M23: 12 | N23: 70 | Q23: 0.7 | R23: 64
B24: 1.5 | C24: 64 | D24: 67 | G24: 0.75 | H24: 38 | I24: 74 | L24: 0.15 | M24: 12 | N24: 71 | Q24: 0.75 | R24: 66
B25: 1.6 | C25: 67 | D25: 67 | G25: 0.8 | H25: 39 | I25: 75 | L25: 0.16 | M25: 12 | N25: 71 | Q25: 0.8 | R25: 69
B26: 1.7 | C26: 69 | D26: 68 | G26: 0.85 | H26: 40 | I26: 76 | L26: 0.17 | M26: 13 | N26: 72 | Q26: 0.85 | R26: 71
A27: R3 | B27: 1.8 | C27: 72 | D27: 68 | G27: 0.9 | H27: 41 | I27: 77 | L27: 0.18 | M27: 13 | N27: 73 | Q27: 0.9 | R27: 73
B28: 1.9 | C28: 74 | D28: 69 | G28: 0.95 | H28: 42 | I28: 78 | L28: 0.19 | M28: 13 | N28: 74 | Q28: 0.95 | R28: 76
B29: 2 | C29: 77 | D29: 69 | G29: 1 | H29: 43 | I29: 79 | L29: 0.2 | M29: 14 | N29: 74 | Q29: 1 | R29: 78
B30: 2.1 | C30: 79 | D30: 69 | G30: 1.05 | H30: 44 | I30: 80 | L30: 0.21 | M30: 14 | N30: 75 | Q30: 1.05 | R30: 80
B31: 2.2 | C31: 82 | D31: 70 | G31: 1.1 | H31: 45 | I31: 81 | L31: 0.22 | M31: 15 | N31: 76 | Q31: 1.1 | R31: 83
B32: 2.3 | C32: 84 | D32: 70 | G32: 1.15 | H32: 46 | I32: 82 | L32: 0.23 | M32: 15 | N32: 77 | Q32: 1.15 | R32: 85
B33: 2.4 | C33: 86 | D33: 71 | G33: 1.2 | H33: 47 | I33: 83 | L33: 0.24 | M33: 15 | N33: 77 | Q33: 1.2 | R33: 87
B34: 2.5 | C34: 89 | D34: 71 | G34: 1.25 | H34: 48 | I34: 84 | L34: 0.25 | M34: 16 | N34: 78 | Q34: 1.25 | R34: 89
B35: 2.6 | C35: 91 | D35: 72 | G35: 1.3 | H35: 49 | I35: 85 | L35: 0.26 | M35: 16 | N35: 79 | Q35: 1.3 | R35: 92
B36: 2.7 | C36: 93 | D36: 72 | G36: 1.35 | H36: 50 | I36: 86 | L36: 0.27 | M36: 16 | N36: 79 | Q36: 1.35 | R36: 94
B37: 2.8 | C37: 95 | D37: 73 | F37: R1 | G37: 1.4 | H37: 51 | I37: 87 | L37: 0.28 | M37: 17 | N37: 80 | Q37: 1.4 | R37: 96
B38: 2.9 | C38: 98 | D38: 73 | G38: 1.45 | H38: 52 | I38: 88 | L38: 0.29 | M38: 17 | N38: 81 | Q38: 1.45 | R38: 98
A39: R2 | B39: 3 | C39: 100 | D39: 74 | G39: 1.5 | H39: 53 | I39: 89 | L39: 0.3 | M39: 18 | N39: 82 | Q39: 1.5 | R39: 101
B40: 3.1 | C40: 102 | D40: 74 | G40: 1.55 | H40: 54 | I40: 90 | K40: R1 | L40: 0.31 | M40: 18 | N40: 82 | Q40: 1.55 | R40: 103
B41: 3.2 | C41: =ROUND(distance_libre_c*B41^2+distance_libre_b*B41+distance_libre_a,0) -> 104 | D41: =ROUND(distance_quilles_min+$D$7*B41,0) -> 74 | G41: 1.6 | H41: =ROUND(distance_bande_c*G41^2+distance_bande_b*G41+distance_bande_a,0) -> 54 | I41: =ROUND(distance_quilles_min+$I$7*G41,0) -> 91 | L41: 0.32 | M41: =ROUND(distance_3bandes_c*L41^2+distance_3bandes_b*L41+distance_3bandes_a,0) -> 18 | N41: =ROUND(distance_quilles_min+$N$7*L41,0) -> 83 | Q41: 1.6 | R41: 105
B42: 3.3 | C42: 106 | D42: 75 | G42: 1.65 | H42: 55 | I42: 92 | L42: 0.33 | M42: 19 | N42: 84 | Q42: 1.65 | R42: 107
B43: 3.4 | C43: 109 | D43: 75 | G43: 1.7 | H43: 56 | I43: 93 | L43: 0.34 | M43: 19 | N43: 84 | Q43: 1.7 | R43: 109
B44: 3.5 | C44: 111 | D44: 76 | G44: 1.75 | H44: 57 | I44: 94 | L44: 0.35 | M44: 20 | N44: 85 | Q44: 1.75 | R44: 110
B45: 3.6 | C45: 113 | D45: 76 | G45: 1.8 | H45: 58 | I45: 95 | L45: 0.36 | M45: 20 | N45: 86 | Q45: 1.8 | R45: 110
B46: 3.7 | C46: 115 | D46: 77 | G46: 1.85 | H46: 59 | I46: 96 | L46: 0.37 | M46: 21 | N46: 87 | Q46: 1.85 | R46: 110
B47: 3.8 | C47: 117 | D47: 77 | G47: 1.9 | H47: 60 | I47: 97 | L47: 0.38 | M47: 21 | N47: 87 | Q47: 1.9 | R47: 110
B48: 3.9 | C48: 119 | D48: 78 | G48: 1.95 | H48: 61 | I48: 98 | L48: 0.39 | M48: 22 | N48: 88 | Q48: 1.95 | R48: 110
B49: 4 | C49: 121 | D49: 78 | G49: 2 | H49: 62 | I49: 98 | L49: 0.4 | M49: 22 | N49: 89 | Q49: 2 | R49: 110
B50: 4.1 | C50: 122 | D50: 78 | G50: 2.05 | H50: 63 | I50: 99 | L50: 0.41 | M50: 22 | N50: 89
B51: 4.2 | C51: 124 | D51: 79 | G51: 2.1 | H51: 63 | I51: 100 | L51: 0.42 | M51: 23 | N51: 90
B52: 4.3 | C52: 126 | D52: 79 | F52: N3 | G52: 2.15 | H52: 64 | I52: 101 | L52: 0.43 | M52: 23 | N52: 91
B53: 4.4 | C53: 128 | D53: 80 | G53: 2.2 | H53: 65 | I53: 102 | K53: N3 | L53: 0.44 | M53: 24 | N53: 92
B54: 4.5 | C54: 130 | D54: 80 | G54: 2.25 | H54: 66 | I54: 103 | L54: 0.45 | M54: 24 | N54: 92
B55: 4.6 | C55: 132 | D55: 81 | G55: 2.3 | H55: 67 | I55: 104 | L55: 0.46 | M55: 25 | N55: 93
B56: 4.7 | C56: 133 | D56: 81 | G56: 2.35 | H56: 68 | I56: 105 | L56: 0.47 | M56: 25 | N56: 94
B57: 4.8 | C57: 135 | D57: 82 | G57: 2.4 | H57: 69 | I57: 106 | L57: 0.48 | M57: 26 | N57: 94
B58: 4.9 | C58: 137 | D58: 82 | G58: 2.45 | H58: 69 | I58: 107 | L58: 0.49 | M58: 26 | N58: 95
A59: R1 | B59: 5 | C59: 139 | D59: 83 | G59: 2.5 | H59: 70 | I59: 108 | L59: 0.5 | M59: 27 | N59: 96
B60: 5.1 | C60: 140 | D60: 83 | G60: 2.55 | H60: 71 | I60: 109 | L60: 0.51 | M60: 28 | N60: 97
B61: 5.2 | C61: 142 | D61: 83 | G61: 2.6 | H61: 72 | I61: 110 | L61: 0.52 | M61: 28 | N61: 97
B62: 5.3 | C62: 143 | D62: 84 | L62: 0.53 | M62: 29 | N62: 98
B63: 5.4 | C63: 145 | D63: 84 | L63: 0.54 | M63: 29 | N63: 99
B64: 5.5 | C64: 146 | D64: 85 | L64: 0.55 | M64: 30 | N64: 100
B65: 5.6 | C65: 148 | D65: 85 | L65: 0.56 | M65: 30 | N65: 100
B66: 5.7 | C66: 149 | D66: 86 | L66: 0.57 | M66: 31 | N66: 101
B67: 5.8 | C67: 151 | D67: 86 | L67: 0.58 | M67: 31 | N67: 102
B68: 5.9 | C68: 152 | D68: 87 | L68: 0.59 | M68: 32 | N68: 102
B69: 6 | C69: 154 | D69: 87 | K69: N2 | L69: 0.6 | M69: 33 | N69: 103
B70: 6.1 | C70: 155 | D70: 87 | L70: 0.61 | M70: 33 | N70: 104
B71: 6.2 | C71: 156 | D71: 88 | L71: 0.62 | M71: 34 | N71: 105
B72: 6.3 | C72: 158 | D72: 88 | L72: 0.63 | M72: 34 | N72: 105
B73: 6.4 | C73: =ROUND(distance_libre_c*B73^2+distance_libre_b*B73+distance_libre_a,0) -> 159 | D73: =ROUND(distance_quilles_min+$D$7*B73,0) -> 89 | L73: 0.64 | M73: =ROUND(distance_3bandes_c*L73^2+distance_3bandes_b*L73+distance_3bandes_a,0) -> 35 | N73: =ROUND(distance_quilles_min+$N$7*L73,0) -> 106
B74: 6.5 | C74: 160 | D74: 89 | L74: 0.65 | M74: 36 | N74: 107
B75: 6.6 | C75: 162 | D75: 90 | L75: 0.66 | M75: 36 | N75: 107
B76: 6.7 | C76: 163 | D76: 90 | L76: 0.67 | M76: 37 | N76: 108
B77: 6.8 | C77: 164 | D77: 91 | L77: 0.68 | M77: 38 | N77: 109
B78: 6.9 | C78: 165 | D78: 91 | L78: 0.69 | M78: 38 | N78: 110
A79: N3 | B79: 7 | C79: 166 | D79: 92 | L79: 0.696 | M79: 39 | N79: 110
B80: 7.1 | C80: 167 | D80: 92
B81: 7.2 | C81: 169 | D81: 92
B82: 7.3 | C82: 170 | D82: 93
B83: 7.4 | C83: 171 | D83: 93
B84: 7.5 | C84: 172 | D84: 94
B85: 7.6 | C85: 173 | D85: 94
B86: 7.7 | C86: 174 | D86: 95
B87: 7.8 | C87: 174 | D87: 95
B88: 7.9 | C88: 175 | D88: 96
B89: 8 | C89: 176 | D89: 96
B90: 8.1 | C90: 177 | D90: 96
B91: 8.2 | C91: 178 | D91: 97
B92: 8.3 | C92: 179 | D92: 97
B93: 8.4 | C93: 179 | D93: 98
B94: 8.5 | C94: 180 | D94: 98
B95: 8.6 | C95: 181 | D95: 99
B96: 8.7 | C96: 182 | D96: 99
B97: 8.8 | C97: 182 | D97: 100
B98: 8.9 | C98: 183 | D98: 100
B99: 9 | C99: 183 | D99: 101
B100: 9.1 | C100: 184 | D100: 101
B101: 9.2 | C101: 185 | D101: 101
B102: 9.3 | C102: 185 | D102: 102
B103: 9.4 | C103: 186 | D103: 102
A104: N3 | B104: 9.5 | C104: 186 | D104: 103
B105: 9.6 | C105: =ROUND(distance_libre_c*B105^2+distance_libre_b*B105+distance_libre_a,0) -> 187 | D105: =ROUND(distance_quilles_min+$D$7*B105,0) -> 103
B106: 9.7 | C106: 187 | D106: 104
B107: 9.8 | C107: 187 | D107: 104
B108: 9.9 | C108: 188 | D108: 105
B109: 10 | C109: 188 | D109: 105
B110: 10.1 | C110: 188 | D110: 105
B111: 10.2 | C111: 189 | D111: 106
B112: 10.3 | C112: 189 | D112: 106
B113: 10.4 | C113: 189 | D113: 107
B114: 10.5 | C114: 189 | D114: 107
B115: 10.6 | C115: 189 | D115: 108
B116: 10.7 | C116: 190 | D116: 108
B117: 10.8 | C117: 190 | D117: 109
B118: 10.9 | C118: 190 | D118: 109
B119: 11 | C119: 190 | D119: 110
B120: 11.1 | C120: 190 | D120: 110

Sheet Equipes
A1: Liste des équipes engagées pour la saison 2025 / 2026 | N1: Suivi des équipes incomplètes
B3: Equipe 1 | E3: Equipe 2 | H3: Equipe 3 | K3: Remplaçants
K4: (sera affecté à l'équipe pour laquelle il aura fait le premier match) | M4: Une équipe qui ne peut présenter que 3 joueurs est dite incomplète. Ce cas de figure ne sera accepté que 2 fois dans la saison, à la 3ème fois, cette équipe sera déclarée forfait et les points seront alors comptabilisés comme défini au paragraphe 7 du règlement.
B5: Equipe 1 | N5: Matchs Aller équipes incomplètes
A6: Arpajon | N6: 1
A7: 9095 | B7: Jean Claude DEVILLEBICHOT | C7: 104112 I | N7: 2
B8: Daniel GODFIN | C8: 179222 G | K8: Daniel GODFIN | L8: 179222 G | N8: 3
B9: Philippe VIGNON | C9: 172084 Y | K9: Pascal JACQUIN | L9: 127813 x | N9: 4
B10: Max THENOT | C10: 154289 F | K10: Manuel Pinto MONTERO | L10: 184622 B | N10: 5
B11: Dominique CUILLERAT | C11: 187715 N | K11: Max THENOT | L11: 154289 F | N11: 6
B12: Manuel Pinto MONTERO | C12: 184622 B | K12: Christophe GESLIN | L12: 154485 T | N12: 7
B13: Pascal JACQUIN | C13: 127813 x | K13: Philippe VIGNON | L13: 172084 Y | N13: 8
B14: Christophe GESLIN | C14: 154485 T | K14: Jacques LORENZI | L14: 183003 R | N14: 9
B15: Pascal JACQUIN | C15: 127813 x | K15: Tan Phuong NGUYEN | L15: 178279 G | N15: 10
K16: Dominique CUILLERAT | L16: 187715 N
K17: Jean Claude DEVILLEBICHOT | L17: 104112 I
N19: Matchs Retour équipes incomplètes
N20: 1
N21: 2
N22: 3
N23: 4
N24: 5
N25: 6
N26: 7
N27: 8
B28: Equipe 1 | N28: 9
N29: 10
B39: Equipe 1
A40: Draveil | B40: Jean Louis HUE | C40: 188935 P | K40: Germain DESHAYES | L40: 149927 P | N40: Année 2025 / 2026 : 76 participants - 11 nouveaux joueurs
A41: 9082 | B41: Didier MOULAY | C41: 013796 Q | K41: Philippe LEVOIVENEL | L41: 140579 X
B42: Eric TAVERNIER | C42: 171909 H | K42: Rolland HOUDOU | L42: 120412 G
B43: Patrice MESNY | C43: 013731 D | K43: Christian AUBOUET | L43: 114584 C
B44: Maurice MIRLAUD | C44: 013753 Z | K44: Maurice MIRLAUD | L44: 013753 Z
B45: Eric ANNE | C45: 142400 Y | K45: Marcel LAUTI | L45: 109482 W
B46: Jean Paul DELOBEL | C46: 166094 M | K46: Didier MOULAY | L46: 013796 Q
B47: Germain DESHAYES | C47: 149927 P | K47: Jean Louis HUE | L47: 188935 P
K48: Roberto LAMPLE | L48: 114622 O
K49: Bernard VIVENOT | L49: 132296 I
K50: Eric ANNE | L50: 142400 Y
K51: Guy HUIBAN | L51: 139193 P
K52: Patrice MESNY | L52: 013731 D
K53: Eric TAVERNIER | L53: 171909 H
K54: Jean Paul DELOBEL | L54: 166094 M
K55: Joseph MARTINEZ | L55: 103337 N
K56: Jean LESAGE | L56: 138060 A
B62: Equipe 1
B63: LEBROT Guy | C63: 138066 G | K63: FLEURY Gérard | L63: 153995 L
A64: Etréchy | B64: HOUPLAIN Michel | C64: 013365 B | K64: BELINGARD Eric | L64: 138061 B
A65: 9096 | B65: VERLEY Nicolas | C65: 018351 V | K65: PORCU Frédéric | L65: 133357 D
B66: LHOMME Eric | C66: 181958 F | K66: LHOMME Eric | L66: 181958 F
B67: FLEURY Gérard | C67: 153995 L | K67: LEBROT Guy | L67: 138066 G
B68: BENOIT Patrick | C68: 185784 P | K68: SAULE Philippe | L68: 182187 E
B69: LOUBIGNAC Jean Claude | C69: 174503 C | K69: HOUPLAIN Michel | L69: 013365 B
B70: PORCU Frédéric | C70: 133357 D | K70: LOUBIGNAC Jean Claude | L70: 174503 C
K71: BRILLAUD Patrick | L71: 169399 E
K72: VERLEY Nicolas | L72: 018351 V
K73: BENOIT Patrick | L73: 185784 P
B77: Equipe 1
B78: Bernard BRIOIT | C78: 156244 F
A79: Massy | B79: Philippe VANHEE | C79: 182749 Q | K79: Bernard BRIOIT | L79: 156244 F
A80: 9064 | B80: Maurice CARON | C80: 126098 Y | K80: Jean-Paul CARLE | L80: 152435 Q
B81: Jean-Paul CARLE | C81: 152435 Q | K81: Christian DANIAU | L81: 148183 T
B82: Thierry LEVANIER | C82: 191125 v | K82: Patrick JOYEZ | L82: 013415 Z
B83: Christian DANIAU | C83: 148183 T | K83: Thierry LEVANIER | L83: 191125 v
K84: Philippe VANHEE | L84: 182749 Q
K85: Maurice CARON | L85: 126098 Y
K86: Stéphane AGUEFF | L86: 191524 D
B91: Equipe 1 | E91: Equipe 2 | H91: Equipe 3
B92: Marc VICARI | C92: 014321 V | E92: Martial PREVOT | F92: 165700 J | K92: Manuel PAIS | L92: 169180 R
A93: Morangis | B93: Hervé MAILLARD | C93: 186955 M | E93: Eric VINGUEASSALOM | F93: 014337 L | K93: Bernard FAYT | L93: 165924 C
A94: 9009 | B94: Manuel PAIS | C94: 169180 R | E94: Jean Pierre CHAMPAGNE | F94: 124892 O | K94: Jean Claude FREYSZ | L94: 139536 U
B95: Araya LILLO | C95: 163145 G | E95: Alain GOT | F95: 148370 X | K95: Stéphane MIRMAN | L95: 125422 Y
B96: Roland COTILLARD | C96: 1080203B | E96: Jean Michel AIRAULT | F96: 012403 B | K96: Gérald TRUFFAUT | L96: 134307 R
B97: Bernard FAYT | C97: 165924 C | E97: François VILLET | F97: 184194 L | K97: Jacques PRIEUR | L97: 133738 U
B98: Michel ALEXANDRE | C98: 120146 A | E98: Stéphane MIRMAN | F98: 125422 Y | K98: Alain GOT | L98: 148370 X
E99: Gérald TRUFFAUT | F99: 134307 R | K99: François VILLET | L99: 184194 L
K100: Martial PREVOT | L100: 165700 J
K101: Michel ALEXANDRE | L101: 120146 A
K102: Araya LILLO | L102: 163145 G
K103: Thierry VALLEE | L103: 165702 L
K104: Eric VINGUEASSALOM | L104: 014337 L
K105: Marc VICARI | L105: 014321 V
K106: Jean Pierre CHAMPAGNE | L106: 124892 O
K107: Roland COTILLARD | L107: 1080203B
K108: Hervé MAILLARD | L108: 186955 M
K109: Jean Michel AIRAULT | L109: 012403 B
B114: Equipe 1 | E114: Equipe 2 | K114: Equipe 1
B115: JOREAU Danièle | C115: 114621 N | E115: ROUX Olivier | F115: 185900 Q | K115: ABITBOL Mickaël | L115: 185993 R
A116: Vigneux | B116: COSOLETO Carmelo | C116: 012847 D | E116: MICHELET Jean Claude | F116: 135964 K | K116: ANNERON Alain | L116: 150615 M
A117: 9131 | B117: BORDIER Marc | C117: 012634 Y | E117: MOINDREAU Michel | F117: 150618 Q | K117: BIDE Roger | L117: 012582 Y
B118: ABITBOL Mickaël | C118: 185993 R | E118: CATALLO Fausto | F118: 185992 Q | K118: BORDIER Marc | L118: 012634 Y
B119: HELEU Jérome | C119: 166095 N | E119: VENOT René | F119: 186705 Q | K119: CATALLO Fausto | L119: 185992 Q
B120: BIDE Roger | C120: 012582 Y | E120: ANNERON Alain | F120: 150615 M | K120: VENOT René | L120: 186705 Q
K121: HELEU Jérome | L121: 166095 N
K122: MICHELET Jean Claude | L122: 135964 K
K123: ROUX Olivier | L123: 185900 Q
K124: JOREAU Danièle | L124: 114621 N
K125: COSOLETO Carmelo | L125: 012847 D
K126: MOINDREAU Michel | L126: 150618 Q
B129: Inscrits saison 2025 / 2026
B131: participants 60

Sheet Gestion (hidden)
A1: Calendrier | C1: Liste des clubs à établir en début de saison :
A2: 2025-11-18 | C2: ARPAJON
A3: 2025-11-25 | C3: DRAVEIL | E3: INTEGRATION DU RESULTAT : !!! Pensez à COPIER LE RESULTAT à partir de l'onglet FEUILLE DE MATCH
A4: 2025-12-02 | C4: ETRECHY
A5: 2025-12-09 | C5: MASSY | E5: Nombre
A6: 2025-12-16 | C6: MORANGIS1 | E6: Type | F6: Total | H6: Dernière journée | I6: =MAX(Matchs!A:A) -> 7
A7: 2026-01-06 | C7: MORANGIS2 | E7: Rencontre | F7: 27
A8: 2026-01-13 | C8: VIGNEUX1
A9: 2026-01-20 | C9: VIGNEUX2
A10: 2026-01-27 | C10: - | E10: Début de saison : Remise à zéro de tous les matchs , classement vide et 1er journée
A11: 2026-02-03 | C11: -
A12: 2026-02-10 | C12: -
A13: 2026-02-17 | C13: -
A14: 2026-03-10 | C14: -
A15: 2026-03-17 | C15: - | E15: Actualisation de classement (à faire après modification de l'onglet matchs)
A16: 2026-03-24 | C16: -
A17: 2026-03-31 | C17: -
A18: 2026-04-07 | C18: -
A19: 2026-04-14 | C19: -
A20: 2026-05-05 | C20: -
A21: 2026-05-12 | C21: -
A22: - | C22: -
A23: - | C23: -
A24: - | C24: -
A25: - | C25: -
A26: - | C26: -
A31: Formule de calcul des distances en fonction des moyennes
A32: Calcul distance | C32: d = a + bm + cm²
B33: mode de jeux : | C33: a | D33: b | E33: c
B34: libre | C34: 22 | D34: 30 | E34: -1.34
B35: bande | C35: 23 | D35: 21 | E35: -0.84
B36: 3 bandes | C36: 8 | D36: 23 | E36: 30 | F36: min | G36: max
B37: quille | C37: 30 | D37: 50 | E37: -2 | F37: 60 | G37: 110
A39: m : moyenne générale ou pour les quilles = points marqués / points subis
A40: dist : distance du joueur

Sheet nouveaux joueurs (hidden)
A1: Nouveaux joueurs
A3: ETR | B3: BENOIT
A4: VIG | B4: VENOT
A5: ETR | B5: SAULE
A6: ETR | B6: LEBROT
A7: DRA | B7: HOUDOU
A8: DRA | B8: HUE
A9: ARP | B9: LORENZI
A10: ARP | B10: NGUYEN
A11: ARP | B11: CUILLERAT
A12: VIG | B12: COSOLETO
A13: MAS | B13: AGUEFF

Sheet Gestion matchs (hidden)
B1: Modification d'une partie existante:
B2: 1) compléter le n° de journée et le nom des deux équipes
B3: 2) charger le résultat
B4: 3) modifier le résultat
B5: 4) enregistrer les modifications
B8: Numéro journée : | C8: EQUIPE RECEVANTE : | J8: EQUIPE VISITEUSE :
B9: 1 | C9: DRAVEIL | J9: ARPAJON
K11: 6
B12: Résultat de la journée : | K12: 6
B13: NOM DES JOUEURS | J13: NOM DES JOUEURS
B15: Libre | C15: distance | D15: pts réal. | E15: reprises | F15: moyenne | H15: pt match | J15: Libre | K15: distance | L15: pts réal. | M15: reprises | N15: moyenne | P15: pt match
B16: LAMPLE | C16: 85 | D16: 85 | E16: 27 | F16: =IF(E16="","",D16/E16) -> 3.148148148 | H16: =IF(D16=0,"",IF(C16=D16,IF(K16=L16,2,3),IF(D16<C16,1))) -> 3 | J16: CUILLERAT | K16: 40 | L16: 32 | M16: 27 | N16: =IF(M16="","",L16/M16) -> 1.185185185 | P16: =IF(L16=0,"",IF(K16=L16,IF(D16=C16,2,3),IF(L16<K16,1))) -> 1
F18: moyenne | H18: pts match | N18: moyenne | P18: pts match
B19: TAVERNIER | C19: 46 | D19: 38 | E19: 59 | F19: =IF(E19="","",D19/E19) -> 0.6440677966 | H19: =IF(D19=0,"",IF(C19=D19,IF(K19=L19,2,3),IF(D19<C19,1))) -> 1 | J19: GODFIN | K19: 36 | L19: 36 | M19: 59 | N19: =IF(M19="","",L19/M19) -> 0.6101694915 | P19: =IF(L19=0,"",IF(K19=L19,IF(D19=C19,2,3),IF(L19<K19,1))) -> 3
F21: moyenne | H21: pts match | N21: moyenne | P21: pts match
B22: MOULAY | C22: 25 | D22: 23 | E22: 44 | F22: =IF(E22="","",D22/E22) -> 0.5227272727 | H22: =IF(D22=0,"",IF(C22=D22,IF(K22=L22,2,3),IF(D22<C22,1))) -> 1 | J22: DEVILLEBICHOT | K22: 22 | L22: 22 | M22: 44 | N22: =IF(M22="","",L22/M22) -> 0.5 | P22: =IF(L22=0,"",IF(K22=L22,IF(D22=C22,2,3),IF(L22<K22,1))) -> 3
B25: DESHAYES | C25: 68 | D25: 54 | E25: 50 | F25: =IF(D25=C25,1,0) -> 0 | G25: =IF(E25=C25,1,0) -> 0 | H25: =IF(D25=0,"",IF(F25+G25=2,3,IF(F25+G25=1,2,1))) -> 1 | J25: GESLIN | K25: 60 | L25: 60 | M25: 60 | N25: =IF(L25=K25,1,0) -> 1 | O25: =IF(M25=K25,1,0) -> 1 | P25: =IF(L25=0,"",IF(N25+O25=2,3,IF(N25+O25=1,2,1))) -> 3
B27: TOTAUX | C27: =IF(C16+C19+C22+C25=0,"",SUM(C16+C19+C22+C25)) -> 224 | D27: =IF(D16+D19+D22+D25+E25=0,"",SUM(D16+D19+D22+D25)) -> 200 | E27: coef. Pond. | F27: =IF(C27="","",(D16*1+D19*2+D22*5+(D25+E25)*0.5)/(C16*1+C19*2+C22*5+2*C25*0.5)) -> 0.8864864865 | J27: TOTAUX | K27: =IF(K16+K19+K22+K25=0,"",SUM(K16+K19+K22+K25)) -> 158 | L27: =IF(L16+L19+L22+L25+M25=0,"",SUM(L16+L19+L22+L25)) -> 150 | M27: coef. Pond. | N27: =IF(K27="","",(L16*1+L19*2+L22*5+(L25+M25)*0.5)/(K16*1+K19*2+K22*5+2*K25*0.5)) -> 0.9716312057
B29: points obtenus par l'équipe : >>>>>>>>>>>> >>>>>>>>>>>>>>>>>>> | H29: =IF(H16="","",H16+H19+H22+H25) -> 6 | J29: points obtenus par l'équipe : >>>>>>>>>>>> >>>>>>>>>>>>>>>>>>> | P29: =IF(P16="","",P16+P19+P22+P25) -> 10
B32: !!! NE PAS MODIFIER !!! Utiliser par la macro "ENREGISTRER MODIFICATION'
A33: =$B$9 -> 1 | B33: Rencontre | C33: =CONCATENATE(D33," - ",J33) -> DRAVEIL - ARPAJON | D33: =$C$9 -> DRAVEIL | E33: =E36+2*E37+5*E38+E39+E39 -> 438 | F33: =F36+2*F37+5*F38+F39+G39 -> 380 | G33: =H36+H37+H38+H39 -> 6 | H33: =IF(G33>M33,3,IF(G33<M33,1,2)) -> 1 | J33: =$J$9 -> ARPAJON | K33: =K36+2*K37+5*K38+K39+K39 -> 342 | L33: =L36+2*L37+5*L38+L39+M39 -> 334 | M33: =N36+N37+N38+N39 -> 10 | N33: =IF(M33>G33,3,IF(M33<G33,1,2)) -> 3
A34: =$B$9 -> 1 | B34: Points equipes | C34: =$D$33 -> DRAVEIL | E34: =E33 -> 438 | F34: =F33 -> 380 | G34: =G33 -> 6 | H34: =H33 -> 1 | I34: =$J$33 -> ARPAJON | K34: =K33 -> 342 | L34: =L33 -> 334 | M34: =M33 -> 10 | N34: =N33 -> 3
A35: 1 | B35: Points equipes | C35: =$J$33 -> ARPAJON | E35: =K33 -> 342 | F35: =L33 -> 334 | G35: =M33 -> 10 | H35: =N33 -> 3 | I35: =$D$33 -> DRAVEIL | K35: =E33 -> 438 | L35: =F33 -> 380 | M35: =G33 -> 6 | N35: =H33 -> 1
A36: 1 | B36: ='Feuille-match'!$B$12 -> Libre | C36: =$D$33 -> DRAVEIL | D36: =B16 -> LAMPLE | E36: =C16 -> 85 | F36: 85 | G36: 27 | H36: =H16 -> 3 | I36: =$J$33 -> ARPAJON | J36: =J16 -> CUILLERAT | K36: =K16 -> 40 | L36: 32 | M36: =M16 -> 27 | N36: =P16 -> 1
A37: 1 | B37: ='Feuille-match'!$B$15 -> Bande | C37: =$D$33 -> DRAVEIL | D37: =B19 -> TAVERNIER | E37: =C19 -> 46 | F37: 38 | G37: 59 | H37: =H19 -> 1 | I37: =$J$33 -> ARPAJON | J37: =J19 -> GODFIN | K37: =K19 -> 36 | L37: 36 | M37: =M19 -> 59 | N37: =P19 -> 3
A38: 1 | B38: ='Feuille-match'!$B$18 -> 3 Bandes | C38: =$D$33 -> DRAVEIL | D38: =B22 -> MOULAY | E38: =C22 -> 25 | F38: 23 | G38: 44 | H38: =H22 -> 1 | I38: =$J$33 -> ARPAJON | J38: =J22 -> DEVILLEBICHOT | K38: =K22 -> 22 | L38: 22 | M38: =M22 -> 44 | N38: =P22 -> 3
A39: 1 | B39: ='Feuille-match'!$B$21 -> 5 Quilles | C39: =$D$33 -> DRAVEIL | D39: =B25 -> DESHAYES | E39: =C25 -> 68 | F39: 54 | G39: 50 | H39: =H25 -> 1 | I39: =$J$33 -> ARPAJON | J39: =J25 -> GESLIN | K39: =K25 -> 60 | L39: 60 | M39: =M25 -> 60 | N39: =P25 -> 3
A40: 1 | B40: ='Feuille-match'!$B$12 -> Libre | C40: =$J$33 -> ARPAJON | D40: =J36 -> CUILLERAT | E40: 40 | F40: 32 | G40: 27 | H40: 1 | I40: =C36 -> DRAVEIL | J40: LAMPLE | K40: 85 | L40: 85 | M40: 27 | N40: 3
A41: 1 | B41: ='Feuille-match'!$B$15 -> Bande | C41: =$J$33 -> ARPAJON | D41: GODFIN | E41: 36 | F41: 36 | G41: 59 | H41: 3 | I41: DRAVEIL | J41: TAVERNIER | K41: 46 | L41: 38 | M41: 59 | N41: 1
A42: 1 | B42: ='Feuille-match'!$B$18 -> 3 Bandes | C42: =$J$33 -> ARPAJON | D42: DEVILLEBICHOT | E42: 22 | F42: 22 | G42: 44 | H42: 3 | I42: DRAVEIL | J42: MOULAY | K42: 25 | L42: 23 | M42: 44 | N42: 1
A43: 1 | B43: ='Feuille-match'!$B$21 -> 5 Quilles | C43: =$J$33 -> ARPAJON | D43: GESLIN | E43: 60 | F43: 60 | G43: 60 | H43: 3 | I43: DRAVEIL | J43: DESHAYES | K43: 68 | L43: 54 | M43: 50 | N43: 1

Sheet Matchs (hidden)
A1: Journée | B1: Type | C1: Equipe | D1: Joueur | E1: distance | F1: point | G1: reprise | H1: pt match | I1: Equipe adv | J1: Adversaire | K1: distance | L1: point | M1: reprise | N1: pt match
A2: VETERANT
A3: 1 | B3: Rencontre | C3: DRAVEIL - ARPAJON | D3: DRAVEIL | E3: 438 | F3: 380 | G3: 6 | H3: 1 | J3: ARPAJON | K3: 342 | L3: 334 | M3: 10 | N3: 3
A4: 1 | B4: Points equipes | C4: DRAVEIL | E4: 438 | F4: 380 | G4: 6 | H4: 1 | I4: ARPAJON | K4: 342 | L4: 334 | M4: 10 | N4: 3
A5: 1 | B5: Points equipes | C5: ARPAJON | E5: 342 | F5: 334 | G5: 10 | H5: 3 | I5: DRAVEIL | K5: 438 | L5: 380 | M5: 6 | N5: 1
A6: 1 | B6: Libre | C6: DRAVEIL | D6: LAMPLE | E6: 85 | F6: 85 | G6: 27 | H6: 3 | I6: ARPAJON | J6: CUILLERAT | K6: 40 | L6: 32 | M6: 27 | N6: 1
A7: 1 | B7: Bande | C7: DRAVEIL | D7: TAVERNIER | E7: 46 | F7: 38 | G7: 59 | H7: 1 | I7: ARPAJON | J7: GODFIN | K7: 36 | L7: 36 | M7: 59 | N7: 3
A8: 1 | B8: 3 Bandes | C8: DRAVEIL | D8: MOULAY | E8: 25 | F8: 23 | G8: 44 | H8: 1 | I8: ARPAJON | J8: DEVILLEBICHOT | K8: 22 | L8: 22 | M8: 44 | N8: 3
A9: 1 | B9: 5 Quilles | C9: DRAVEIL | D9: DESHAYES | E9: 68 | F9: 54 | G9: 50 | H9: 1 | I9: ARPAJON | J9: GESLIN | K9: 60 | L9: 60 | M9: 60 | N9: 3
A10: 1 | B10: Libre | C10: ARPAJON | D10: CUILLERAT | E10: 40 | F10: 32 | G10: 27 | H10: 1 | I10: DRAVEIL | J10: LAMPLE | K10: 85 | L10: 85 | M10: 27 | N10: 3
A11: 1 | B11: Bande | C11: ARPAJON | D11: GODFIN | E11: 36 | F11: 36 | G11: 59 | H11: 3 | I11: DRAVEIL | J11: TAVERNIER | K11: 46 | L11: 38 | M11: 59 | N11: 1
A12: 1 | B12: 3 Bandes | C12: ARPAJON | D12: DEVILLEBICHOT | E12: 22 | F12: 22 | G12: 44 | H12: 3 | I12: DRAVEIL | J12: MOULAY | K12: 25 | L12: 23 | M12: 44 | N12: 1
A13: 1 | B13: 5 Quilles | C13: ARPAJON | D13: GESLIN | E13: 60 | F13: 60 | G13: 60 | H13: 3 | I13: DRAVEIL | J13: DESHAYES | K13: 68 | L13: 54 | M13: 50 | N13: 1
A14: VETERANT
A15: 1 | B15: Rencontre | C15: ETRECHY - MASSY | D15: ETRECHY | E15: 409 | F15: 351 | G15: 6 | H15: 1 | J15: MASSY | K15: 382 | L15: 362 | M15: 10 | N15: 3
A16: 1 | B16: Points equipes | C16: ETRECHY | E16: 409 | F16: 351 | G16: 6 | H16: 1 | I16: MASSY | K16: 382 | L16: 362 | M16: 10 | N16: 3
A17: 1 | B17: Points equipes | C17: MASSY | E17: 382 | F17: 362 | G17: 10 | H17: 3 | I17: ETRECHY | K17: 409 | L17: 351 | M17: 6 | N17: 1
A18: 1 | B18: Libre | C18: ETRECHY | D18: LOUBIGNAC | E18: 47 | F18: 43 | G18: 40 | H18: 1 | I18: MASSY | J18: BRIOIT | K18: 69 | L18: 69 | M18: 40 | N18: 3
A19: 1 | B19: Bande | C19: ETRECHY | D19: HOUPLAIN | E19: 56 | F19: 56 | G19: 38 | H19: 3 | I19: MASSY | J19: DANIAU | K19: 40 | L19: 30 | M19: 38 | N19: 1
A20: 1 | B20: 3 Bandes | C20: ETRECHY | D20: VERLEY | E20: 24 | F20: 18 | G20: 49 | H20: 1 | I20: MASSY | J20: CARON | K20: 21 | L20: 21 | M20: 49 | N20: 3
A21: 1 | B21: 5 Quilles | C21: ETRECHY | D21: PORCU | E21: 65 | F21: 43 | G21: 63 | H21: 1 | I21: MASSY | J21: CARLE | K21: 64 | L21: 64 | M21: 64 | N21: 3
A22: 1 | B22: Libre | C22: MASSY | D22: BRIOIT | E22: 69 | F22: 69 | G22: 40 | H22: 3 | I22: ETRECHY | J22: LOUBIGNAC | K22: 47 | L22: 43 | M22: 40 | N22: 1
A23: 1 | B23: Bande | C23: MASSY | D23: DANIAU | E23: 40 | F23: 30 | G23: 38 | H23: 1 | I23: ETRECHY | J23: HOUPLAIN | K23: 56 | L23: 56 | M23: 38 | N23: 3
A24: 1 | B24: 3 Bandes | C24: MASSY | D24: CARON | E24: 21 | F24: 21 | G24: 49 | H24: 3 | I24: ETRECHY | J24: VERLEY | K24: 24 | L24: 18 | M24: 49 | N24: 1
A25: 1 | B25: 5 Quilles | C25: MASSY | D25: CARLE | E25: 64 | F25: 64 | G25: 64 | H25: 3 | I25: ETRECHY | J25: PORCU | K25: 65 | L25: 43 | M25: 63 | N25: 1
A26: VETERANT
A27: 1 | B27: Rencontre | C27: MORANGIS1 - MORANGIS2 | D27: MORANGIS1 | E27: 499 | F27: 466 | G27: 7 | H27: 1 | J27: MORANGIS2 | K27: 398 | L27: 356 | M27: 9 | N27: 3
A28: 1 | B28: Points equipes | C28: MORANGIS1 | E28: 499 | F28: 466 | G28: 7 | H28: 1 | I28: MORANGIS2 | K28: 398 | L28: 356 | M28: 9 | N28: 3
A29: 1 | B29: Points equipes | C29: MORANGIS2 | E29: 398 | F29: 356 | G29: 9 | H29: 3 | I29: MORANGIS1 | K29: 499 | L29: 466 | M29: 7 | N29: 1
A30: 1 | B30: Libre | C30: MORANGIS1 | D30: VICARI | E30: 161 | F30: 161 | G30: 26 | H30: 3 | I30: MORANGIS2 | J30: VINGUEASSALOM | K30: 84 | L30: 66 | M30: 26 | N30: 1
A31: 1 | B31: Bande | C31: MORANGIS1 | D31: FAYT | E31: 40 | F31: 34 | G31: 43 | H31: 1 | I31: MORANGIS2 | J31: VILLET | K31: 37 | L31: 37 | M31: 43 | N31: 3
A32: 1 | B32: 3 Bandes | C32: MORANGIS1 | D32: PAIS | E32: 24 | F32: 22 | G32: 51 | H32: 1 | I32: MORANGIS2 | J32: AIRAULT | K32: 24 | L32: 24 | M32: 51 | N32: 3
A33: 1 | B33: 5 Quilles | C33: MORANGIS1 | D33: LILLO | E33: 69 | F33: 58 | G33: 69 | H33: 2 | I33: MORANGIS2 | J33: GOT | K33: 60 | L33: 60 | M33: 36 | N33: 2
A34: 1 | B34: Libre | C34: MORANGIS2 | D34: VINGUEASSALOM | E34: 84 | F34: 66 | G34: 26 | H34: 1 | I34: MORANGIS1 | J34: VICARI | K34: 161 | L34: 161 | M34: 26 | N34: 3
A35: 1 | B35: Bande | C35: MORANGIS2 | D35: VILLET | E35: 37 | F35: 37 | G35: 43 | H35: 3 | I35: MORANGIS1 | J35: FAYT | K35: 40 | L35: 34 | M35: 43 | N35: 1
A36: 1 | B36: 3 Bandes | C36: MORANGIS2 | D36: AIRAULT | E36: 24 | F36: 24 | G36: 51 | H36: 3 | I36: MORANGIS1 | J36: PAIS | K36: 24 | L36: 22 | M36: 51 | N36: 1
A37: 1 | B37: 5 Quilles | C37: MORANGIS2 | D37: GOT | E37: 60 | F37: 60 | G37: 36 | H37: 2 | I37: MORANGIS1 | J37: LILLO | K37: 69 | L37: 58 | M37: 69 | N37: 2
A38: VETERANT
A39: 1 | B39: Rencontre | C39: VIGNEUX1 - VIGNEUX2 | D39: VIGNEUX1 | E39: 407 | F39: 399 | G39: 10 | H39: 3 | J39: VIGNEUX2 | K39: 322 | L39: 256 | M39: 6 | N39: 1
A40: 1 | B40: Points equipes | C40: VIGNEUX1 | E40: 407 | F40: 399 | G40: 10 | H40: 3 | I40: VIGNEUX2 | K40: 322 | L40: 256 | M40: 6 | N40: 1
A41: 1 | B41: Points equipes | C41: VIGNEUX2 | E41: 322 | F41: 256 | G41: 6 | H41: 1 | I41: VIGNEUX1 | K41: 407 | L41: 399 | M41: 10 | N41: 3
A42: 1 | B42: Libre | C42: VIGNEUX1 | D42: HELLEU | E42: 75 | F42: 67 | G42: 40 | H42: 1 | I42: VIGNEUX2 | J42: MICHELET | K42: 53 | L42: 53 | M42: 40 | N42: 3
A43: 1 | B43: Bande | C43: VIGNEUX1 | D43: COSOLETO | E43: 43 | F43: 43 | G43: 48 | H43: 3 | I43: VIGNEUX2 | J43: MOINDREAU | K43: 37 | L43: 30 | M43: 48 | N43: 1
A44: 1 | B44: 3 Bandes | C44: VIGNEUX1 | D44: BORDIER | E44: 18 | F44: 18 | G44: 59 | H44: 3 | I44: VIGNEUX2 | J44: ROUX | K44: 13 | L44: 9 | M44: 59 | N44: 1
A45: 1 | B45: 5 Quilles | C45: VIGNEUX1 | D45: ABITBOL | E45: 78 | F45: 78 | G45: 78 | H45: 3 | I45: VIGNEUX2 | J45: VENOT | K45: 65 | L45: 53 | M45: 45 | N45: 1
A46: 1 | B46: Libre | C46: VIGNEUX2 | D46: MICHELET | E46: 53 | F46: 53 | G46: 40 | H46: 3 | I46: VIGNEUX1 | J46: HELLEU | K46: 75 | L46: 67 | M46: 40 | N46: 1
A47: 1 | B47: Bande | C47: VIGNEUX2 | D47: MOINDREAU | E47: 37 | F47: 30 | G47: 48 | H47: 1 | I47: VIGNEUX1 | J47: COSOLETO | K47: 43 | L47: 43 | M47: 48 | N47: 3
A48: 1 | B48: 3 Bandes | C48: VIGNEUX2 | D48: ROUX | E48: 13 | F48: 9 | G48: 59 | H48: 1 | I48: VIGNEUX1 | J48: BORDIER | K48: 18 | L48: 18 | M48: 59 | N48: 3
A49: 1 | B49: 5 Quilles | C49: VIGNEUX2 | D49: VENOT | E49: 65 | F49: 53 | G49: 45 | H49: 1 | I49: VIGNEUX1 | J49: ABITBOL | K49: 78 | L49: 78 | M49: 78 | N49: 3
A50: VETERANT
A51: 2 | B51: Rencontre | C51: VIGNEUX2 - MORANGIS2 | D51: VIGNEUX2 | E51: 314 | F51: 265 | G51: 7 | H51: 1 | J51: MORANGIS2 | K51: 394 | L51: 347 | M51: 9 | N51: 3
A52: 2 | B52: Points equipes | C52: VIGNEUX2 | E52: 314 | F52: 265 | G52: 7 | H52: 1 | I52: MORANGIS2 | K52: 394 | L52: 347 | M52: 9 | N52: 3
A53: 2 | B53: Points equipes | C53: MORANGIS2 | E53: 394 | F53: 347 | G53: 9 | H53: 3 | I53: VIGNEUX2 | K53: 314 | L53: 265 | M53: 7 | N53: 1
A54: 2 | B54: Libre | C54: VIGNEUX2 | D54: MICHELET | E54: 56 | F54: 49 | G54: 62 | H54: 1 | I54: MORANGIS2 | J54: VINGUEASSALOM | K54: 87 | L54: 87 | M54: 62 | N54: 3
A55: 2 | B55: Bande | C55: VIGNEUX2 | D55: MOINDREAU | E55: 37 | F55: 37 | G55: 48 | H55: 3 | I55: MORANGIS2 | J55: VILLET | K55: 39 | L55: 35 | M55: 48 | N55: 1
A56: 2 | B56: 3 Bandes | C56: VIGNEUX2 | D56: ROUX | E56: 12 | F56: 6 | G56: 49 | H56: 1 | I56: MORANGIS2 | J56: CHAMPAGNE | K56: 19 | L56: 19 | M56: 49 | N56: 3
A57: 2 | B57: 5 Quilles | C57: VIGNEUX2 | D57: CATALLO | E57: 62 | F57: 50 | G57: 62 | H57: 2 | I57: MORANGIS2 | J57: GOT | K57: 67 | L57: 67 | M57: 28 | N57: 2
A58: 2 | B58: Libre | C58: MORANGIS2 | D58: VINGUEASSALOM | E58: 87 | F58: 87 | G58: 62 | H58: 3 | I58: VIGNEUX2 | J58: MICHELET | K58: 56 | L58: 49 | M58: 62 | N58: 1
A59: 2 | B59: Bande | C59: MORANGIS2 | D59: VILLET | E59: 39 | F59: 35 | G59: 48 | H59: 1 | I59: VIGNEUX2 | J59: MOINDREAU | K59: 37 | L59: 37 | M59: 48 | N59: 3
A60: 2 | B60: 3 Bandes | C60: MORANGIS2 | D60: CHAMPAGNE | E60: 19 | F60: 19 | G60: 49 | H60: 3 | I60: VIGNEUX2 | J60: ROUX | K60: 12 | L60: 6 | M60: 49 | N60: 1
A61: 2 | B61: 5 Quilles | C61: MORANGIS2 | D61: GOT | E61: 67 | F61: 67 | G61: 28 | H61: 2 | I61: VIGNEUX2 | J61: CATALLO | K61: 62 | L61: 50 | M61: 62 | N61: 2
A62: VETERANT
A63: 2 | B63: Rencontre | C63: MASSY - VIGNEUX1 | D63: MASSY | E63: 432 | F63: 350 | G63: 8 | H63: 2 | J63: VIGNEUX1 | K63: 476 | L63: 435 | M63: 8 | N63: 2
A64: 2 | B64: Points equipes | C64: MASSY | E64: 432 | F64: 350 | G64: 8 | H64: 2 | I64: VIGNEUX1 | K64: 476 | L64: 435 | M64: 8 | N64: 2
A65: 2 | B65: Points equipes | C65: VIGNEUX1 | E65: 476 | F65: 435 | G65: 8 | H65: 2 | I65: MASSY | K65: 432 | L65: 350 | M65: 8 | N65: 2
A66: 2 | B66: Libre | C66: MASSY | D66: BRIOIT | E66: 69 | F66: 69 | G66: 55 | H66: 3 | I66: VIGNEUX1 | J66: HELLEU | K66: 72 | L66: 61 | M66: 55 | N66: 1
A67: 2 | B67: Bande | C67: MASSY | D67: VANHEE | E67: 29 | F67: 12 | G67: 71 | H67: 1 | I67: VIGNEUX1 | J67: BIDE | K67: 47 | L67: 47 | M67: 71 | N67: 3
A68: 2 | B68: 3 Bandes | C68: MASSY | D68: DANIAU | E68: 17 | F68: 17 | G68: 38 | H68: 3 | I68: VIGNEUX1 | J68: BORDIER | K68: 18 | L68: 12 | M68: 38 | N68: 1
A69: 2 | B69: 5 Quilles | C69: MASSY | D69: CARLE | E69: 110 | F69: 86 | G69: 86 | H69: 1 | I69: VIGNEUX1 | J69: ABITBOL | K69: 110 | L69: 110 | M69: 110 | N69: 3
A70: 2 | B70: Libre | C70: VIGNEUX1 | D70: HELLEU | E70: 72 | F70: 61 | G70: 55 | H70: 1 | I70: MASSY | J70: BRIOIT | K70: 69 | L70: 69 | M70: 55 | N70: 3
A71: 2 | B71: Bande | C71: VIGNEUX1 | D71: BIDE | E71: 47 | F71: 47 | G71: 71 | H71: 3 | I71: MASSY | J71: VANHEE | K71: 29 | L71: 12 | M71: 71 | N71: 1
A72: 2 | B72: 3 Bandes | C72: VIGNEUX1 | D72: BORDIER | E72: 18 | F72: 12 | G72: 38 | H72: 1 | I72: MASSY | J72: DANIAU | K72: 17 | L72: 17 | M72: 38 | N72: 3
A73: 2 | B73: 5 Quilles | C73: VIGNEUX1 | D73: ABITBOL | E73: 110 | F73: 110 | G73: 110 | H73: 3 | I73: MASSY | J73: CARLE | K73: 110 | L73: 86 | M73: 86 | N73: 1
A74: VETERANT
A75: 2 | B75: Rencontre | C75: ARPAJON - ETRECHY | D75: ARPAJON | E75: 362 | F75: 326 | G75: 8 | H75: 2 | J75: ETRECHY | K75: 384 | L75: 345 | M75: 8 | N75: 2
A76: 2 | B76: Points equipes | C76: ARPAJON | E76: 362 | F76: 326 | G76: 8 | H76: 2 | I76: ETRECHY | K76: 384 | L76: 345 | M76: 8 | N76: 2
A77: 2 | B77: Points equipes | C77: ETRECHY | E77: 384 | F77: 345 | G77: 8 | H77: 2 | I77: ARPAJON | K77: 362 | L77: 326 | M77: 8 | N77: 2
A78: 2 | B78: Libre | C78: ARPAJON | D78: VIGNON | E78: 58 | F78: 58 | G78: 41 | H78: 3 | I78: ETRECHY | J78: LOUBIGNAC | K78: 50 | L78: 38 | M78: 41 | N78: 1
A79: 2 | B79: Bande | C79: ARPAJON | D79: GESLIN | E79: 42 | F79: 34 | G79: 44 | H79: 1 | I79: ETRECHY | J79: LHOMME | K79: 42 | L79: 42 | M79: 44 | N79: 3
A80: 2 | B80: 3 Bandes | C80: ARPAJON | D80: PINTO | E80: 16 | F80: 12 | G80: 88 | H80: 1 | I80: ETRECHY | J80: VERLEY | K80: 22 | L80: 22 | M80: 88 | N80: 3
A81: 2 | B81: 5 Quilles | C81: ARPAJON | D81: THENOT | E81: 70 | F81: 70 | G81: 70 | H81: 3 | I81: ETRECHY | J81: PORCU | K81: 70 | L81: 64 | M81: 49 | N81: 1
A82: 2 | B82: Libre | C82: ETRECHY | D82: LOUBIGNAC | E82: 50 | F82: 38 | G82: 41 | H82: 1 | I82: ARPAJON | J82: VIGNON | K82: 58 | L82: 58 | M82: 41 | N82: 3
A83: 2 | B83: Bande | C83: ETRECHY | D83: LHOMME | E83: 42 | F83: 42 | G83: 44 | H83: 3 | I83: ARPAJON | J83: GESLIN | K83: 42 | L83: 34 | M83: 44 | N83: 1
A84: 2 | B84: 3 Bandes | C84: ETRECHY | D84: VERLEY | E84: 22 | F84: 22 | G84: 88 | H84: 3 | I84: ARPAJON | J84: PINTO | K84: 16 | L84: 12 | M84: 88 | N84: 1
A85: 2 | B85: 5 Quilles | C85: ETRECHY | D85: PORCU | E85: 70 | F85: 64 | G85: 49 | H85: 1 | I85: ARPAJON | J85: THENOT | K85: 70 | L85: 70 | M85: 70 | N85: 3
A86: VETERANT
A87: 2 | B87: Rencontre | C87: DRAVEIL - MORANGIS1 | D87: DRAVEIL | E87: 351 | F87: 286 | G87: 6 | H87: 1 | J87: MORANGIS1 | K87: 485 | L87: 455 | M87: 10 | N87: 3
A88: 2 | B88: Points equipes | C88: DRAVEIL | E88: 351 | F88: 286 | G88: 6 | H88: 1 | I88: MORANGIS1 | K88: 485 | L88: 455 | M88: 10 | N88: 3
A89: 2 | B89: Points equipes | C89: MORANGIS1 | E89: 485 | F89: 455 | G89: 10 | H89: 3 | I89: DRAVEIL | K89: 351 | L89: 286 | M89: 6 | N89: 1
A90: 2 | B90: Libre | C90: DRAVEIL | D90: DELOBEL | E90: 64 | F90: 52 | G90: 28 | H90: 1 | I90: MORANGIS1 | J90: VICARI | K90: 159 | L90: 159 | M90: 28 | N90: 3
A91: 2 | B91: Bande | C91: DRAVEIL | D91: TAVERNIER | E91: 41 | F91: 41 | G91: 36 | H91: 3 | I91: MORANGIS1 | J91: FAYT | K91: 39 | L91: 24 | M91: 36 | N91: 1
A92: 2 | B92: 3 Bandes | C92: DRAVEIL | D92: MIRLAUD | E92: 17 | F92: 13 | G92: 72 | H92: 1 | I92: MORANGIS1 | J92: PAIS | K92: 24 | L92: 24 | M92: 72 | N92: 3
A93: 2 | B93: 5 Quilles | C93: DRAVEIL | D93: HUE | E93: 60 | F93: 33 | G93: 54 | H93: 1 | I93: MORANGIS1 | J93: ALEXANDRE | K93: 64 | L93: 64 | M93: 64 | N93: 3
A94: 2 | B94: Libre | C94: MORANGIS1 | D94: VICARI | E94: 159 | F94: 159 | G94: 28 | H94: 3 | I94: DRAVEIL | J94: DELOBEL | K94: 64 | L94: 52 | M94: 28 | N94: 1
A95: 2 | B95: Bande | C95: MORANGIS1 | D95: FAYT | E95: 39 | F95: 24 | G95: 36 | H95: 1 | I95: DRAVEIL | J95: TAVERNIER | K95: 41 | L95: 41 | M95: 36 | N95: 3
A96: 2 | B96: 3 Bandes | C96: MORANGIS1 | D96: PAIS | E96: 24 | F96: 24 | G96: 72 | H96: 3 | I96: DRAVEIL | J96: MIRLAUD | K96: 17 | L96: 13 | M96: 72 | N96: 1
A97: 2 | B97: 5 Quilles | C97: MORANGIS1 | D97: ALEXANDRE | E97: 64 | F97: 64 | G97: 64 | H97: 3 | I97: DRAVEIL | J97: HUE | K97: 60 | L97: 33 | M97: 54 | N97: 1
A98: VETERANT
A99: 3 | B99: Rencontre | C99: MORANGIS2 - VIGNEUX1 | D99: MORANGIS2 | E99: 419 | F99: 379 | G99: 10 | H99: 3 | J99: VIGNEUX1 | K99: 431 | L99: 319 | M99: 6 | N99: 1
A100: 3 | B100: Points equipes | C100: MORANGIS2 | E100: 419 | F100: 379 | G100: 10 | H100: 3 | I100: VIGNEUX1 | K100: 431 | L100: 319 | M100: 6 | N100: 1
A101: 3 | B101: Points equipes | C101: VIGNEUX1 | E101: 431 | F101: 319 | G101: 6 | H101: 1 | I101: MORANGIS2 | K101: 419 | L101: 379 | M101: 10 | N101: 3
A102: 3 | B102: Libre | C102: MORANGIS2 | D102: PREVOT | E102: 47 | F102: 47 | G102: 29 | H102: 3 | I102: VIGNEUX1 | J102: HELLEU | K102: 65 | L102: 49 | M102: 29 | N102: 1
A103: 3 | B103: Bande | C103: MORANGIS2 | D103: VINGUEASSALOM | E103: 44 | F103: 44 | G103: 39 | H103: 3 | I103: VIGNEUX1 | J103: COSOLETO | K103: 42 | L103: 35 | M103: 39 | N103: 1
A104: 3 | B104: 3 Bandes | C104: MORANGIS2 | D104: CHAMPAGNE | E104: 20 | F104: 12 | G104: 60 | H104: 1 | I104: VIGNEUX1 | J104: BORDIER | K104: 18 | L104: 18 | M104: 60 | N104: 3
A105: 3 | B105: 5 Quilles | C105: MORANGIS2 | D105: AIRAULT | E105: 92 | F105: 92 | G105: 92 | H105: 3 | I105: VIGNEUX1 | J105: ABITBOL | K105: 96 | L105: 18 | M105: 92 | N105: 1
A106: 3 | B106: Libre | C106: VIGNEUX1 | D106: HELLEU | E106: 65 | F106: 49 | G106: 29 | H106: 1 | I106: MORANGIS2 | J106: PREVOT | K106: 47 | L106: 47 | M106: 29 | N106: 3
A107: 3 | B107: Bande | C107: VIGNEUX1 | D107: COSOLETO | E107: 42 | F107: 35 | G107: 39 | H107: 1 | I107: MORANGIS2 | J107: VINGUEASSALOM | K107: 44 | L107: 44 | M107: 39 | N107: 3
A108: 3 | B108: 3 Bandes | C108: VIGNEUX1 | D108: BORDIER | E108: 18 | F108: 18 | G108: 60 | H108: 3 | I108: MORANGIS2 | J108: CHAMPAGNE | K108: 20 | L108: 12 | M108: 60 | N108: 1
A109: 3 | B109: 5 Quilles | C109: VIGNEUX1 | D109: ABITBOL | E109: 96 | F109: 18 | G109: 92 | H109: 1 | I109: MORANGIS2 | J109: AIRAULT | K109: 92 | L109: 92 | M109: 92 | N109: 3
A110: VETERANT
A111: 3 | B111: Rencontre | C111: VIGNEUX2 - DRAVEIL | D111: VIGNEUX2 | E111: 367 | F111: 245 | G111: 6 | H111: 1 | J111: DRAVEIL | K111: 393 | L111: 368 | M111: 10 | N111: 3
A112: 3 | B112: Points equipes | C112: VIGNEUX2 | E112: 367 | F112: 245 | G112: 6 | H112: 1 | I112: DRAVEIL | K112: 393 | L112: 368 | M112: 10 | N112: 3
A113: 3 | B113: Points equipes | C113: DRAVEIL | E113: 393 | F113: 368 | G113: 10 | H113: 3 | I113: VIGNEUX2 | K113: 367 | L113: 245 | M113: 6 | N113: 1
A114: 3 | B114: Libre | C114: VIGNEUX2 | D114: MOINDREAU | E114: 69 | F114: 52 | G114: 43 | H114: 1 | I114: DRAVEIL | J114: MOULAY | K114: 98 | L114: 98 | M114: 43 | N114: 3
A115: 3 | B115: Bande | C115: VIGNEUX2 | D115: VENOT | E115: 33 | F115: 14 | G115: 50 | H115: 1 | I115: DRAVEIL | J115: TAVERNIER | K115: 42 | L115: 42 | M115: 50 | N115: 3
A116: 3 | B116: 3 Bandes | C116: VIGNEUX2 | D116: ROUX | E116: 12 | F116: 12 | G116: 47 | H116: 3 | I116: DRAVEIL | J116: MIRLAUD | K116: 15 | L116: 10 | M116: 47 | N116: 1
A117: 3 | B117: 5 Quilles | C117: VIGNEUX2 | D117: CATALLO | E117: 86 | F117: 39 | G117: 66 | H117: 1 | I117: DRAVEIL | J117: ANNE | K117: 68 | L117: 68 | M117: 68 | N117: 3
A118: 3 | B118: Libre | C118: DRAVEIL | D118: MOULAY | E118: 98 | F118: 98 | G118: 43 | H118: 3 | I118: VIGNEUX2 | J118: MOINDREAU | K118: 69 | L118: 52 | M118: 43 | N118: 1
A119: 3 | B119: Bande | C119: DRAVEIL | D119: TAVERNIER | E119: 42 | F119: 42 | G119: 50 | H119: 3 | I119: VIGNEUX2 | J119: VENOT | K119: 33 | L119: 14 | M119: 50 | N119: 1
A120: 3 | B120: 3 Bandes | C120: DRAVEIL | D120: MIRLAUD | E120: 15 | F120: 10 | G120: 47 | H120: 1 | I120: VIGNEUX2 | J120: ROUX | K120: 12 | L120: 12 | M120: 47 | N120: 3
A121: 3 | B121: 5 Quilles | C121: DRAVEIL | D121: ANNE | E121: 68 | F121: 68 | G121: 68 | H121: 3 | I121: VIGNEUX2 | J121: CATALLO | K121: 86 | L121: 39 | M121: 66 | N121: 1
A122: VETERANT
A123: 3 | B123: Rencontre | C123: ETRECHY - MORANGIS1 | D123: ETRECHY | E123: 352 | F123: 251 | G123: 5 | H123: 1 | J123: MORANGIS1 | K123: 443 | L123: 418 | M123: 11 | N123: 3
A124: 3 | B124: Points equipes | C124: ETRECHY | E124: 352 | F124: 251 | G124: 5 | H124: 1 | I124: MORANGIS1 | K124: 443 | L124: 418 | M124: 11 | N124: 3
A125: 3 | B125: Points equipes | C125: MORANGIS1 | E125: 443 | F125: 418 | G125: 11 | H125: 3 | I125: ETRECHY | K125: 352 | L125: 251 | M125: 5 | N125: 1
A126: 3 | B126: Libre | C126: ETRECHY | D126: BENOIT | E126: 59 | F126: 40 | G126: 25 | H126: 1 | I126: MORANGIS1 | J126: MAILLARD | K126: 47 | L126: 47 | M126: 25 | N126: 3
A127: 3 | B127: Bande | C127: ETRECHY | D127: FLEURY | E127: 31 | F127: 20 | G127: 30 | H127: 1 | I127: MORANGIS1 | J127: COTILLARD | K127: 44 | L127: 44 | M127: 30 | N127: 3
A128: 3 | B128: 3 Bandes | C128: ETRECHY | D128: VERLEY | E128: 19 | F128: 9 | G128: 35 | H128: 1 | I128: MORANGIS1 | J128: PAIS | K128: 22 | L128: 22 | M128: 35 | N128: 3
A129: 3 | B129: 5 Quilles | C129: ETRECHY | D129: LHOMME | E129: 68 | F129: 58 | G129: 68 | H129: 2 | I129: MORANGIS1 | J129: ALEXANDRE | K129: 99 | L129: 99 | M129: 74 | N129: 2
A130: 3 | B130: Libre | C130: MORANGIS1 | D130: MAILLARD | E130: 47 | F130: 47 | G130: 25 | H130: 3 | I130: ETRECHY | J130: BENOIT | K130: 59 | L130: 40 | M130: 25 | N130: 1
A131: 3 | B131: Bande | C131: MORANGIS1 | D131: COTILLARD | E131: 44 | F131: 44 | G131: 30 | H131: 3 | I131: ETRECHY | J131: FLEURY | K131: 31 | L131: 20 | M131: 30 | N131: 1
A132: 3 | B132: 3 Bandes | C132: MORANGIS1 | D132: PAIS | E132: 22 | F132: 22 | G132: 35 | H132: 3 | I132: ETRECHY | J132: VERLEY | K132: 19 | L132: 9 | M132: 35 | N132: 1
A133: 3 | B133: 5 Quilles | C133: MORANGIS1 | D133: ALEXANDRE | E133: 99 | F133: 99 | G133: 74 | H133: 2 | I133: ETRECHY | J133: LHOMME | K133: 68 | L133: 58 | M133: 68 | N133: 2
A134: VETERANT
A135: 3 | B135: Rencontre | C135: MASSY - ARPAJON | D135: MASSY | E135: 369 | F135: 254 | G135: 9 | H135: 3 | J135: ARPAJON | K135: 318 | L135: 257 | M135: 7 | N135: 1
A136: 3 | B136: Points equipes | C136: MASSY | E136: 369 | F136: 254 | G136: 9 | H136: 3 | I136: ARPAJON | K136: 318 | L136: 257 | M136: 7 | N136: 1
A137: 3 | B137: Points equipes | C137: ARPAJON | E137: 318 | F137: 257 | G137: 7 | H137: 1 | I137: MASSY | K137: 369 | L137: 254 | M137: 9 | N137: 3
A138: 3 | B138: Libre | C138: MASSY | D138: LEVANIER | E138: 31 | F138: 31 | G138: 24 | H138: 3 | I138: ARPAJON | J138: CUILLERAT | K138: 48 | L138: 21 | M138: 24 | N138: 1
A139: 3 | B139: Bande | C139: MASSY | D139: DANIAU | E139: 40 | F139: 40 | G139: 42 | H139: 3 | I139: ARPAJON | J139: GODFIN | K139: 36 | L139: 26 | M139: 42 | N139: 1
A140: 3 | B140: 3 Bandes | C140: MASSY | D140: CARON | E140: 22 | F140: 4 | G140: 34 | H140: 1 | I140: ARPAJON | J140: PINTO | K140: 14 | L140: 14 | M140: 34 | N140: 3
A141: 3 | B141: 5 Quilles | C141: MASSY | D141: CARLE | E141: 74 | F141: 74 | G141: 49 | H141: 2 | I141: ARPAJON | J141: JACQUIN | K141: 64 | L141: 50 | M141: 64 | N141: 2
A142: 3 | B142: Libre | C142: ARPAJON | D142: CUILLERAT | E142: 48 | F142: 21 | G142: 24 | H142: 1 | I142: MASSY | J142: LEVANIER | K142: 31 | L142: 31 | M142: 24 | N142: 3
A143: 3 | B143: Bande | C143: ARPAJON | D143: GODFIN | E143: 36 | F143: 26 | G143: 42 | H143: 1 | I143: MASSY | J143: DANIAU | K143: 40 | L143: 40 | M143: 42 | N143: 3
A144: 3 | B144: 3 Bandes | C144: ARPAJON | D144: PINTO | E144: 14 | F144: 14 | G144: 34 | H144: 3 | I144: MASSY | J144: CARON | K144: 22 | L144: 4 | M144: 34 | N144: 1
A145: 3 | B145: 5 Quilles | C145: ARPAJON | D145: JACQUIN | E145: 64 | F145: 50 | G145: 64 | H145: 2 | I145: MASSY | J145: CARLE | K145: 74 | L145: 74 | M145: 49 | N145: 2
A146: VETERANT
A147: 4 | B147: Rencontre | C147: ETRECHY - VIGNEUX2 | D147: ETRECHY | E147: 380 | F147: 316 | G147: 8 | H147: 2 | J147: VIGNEUX2 | K147: 341 | L147: 278 | M147: 8 | N147: 2
A148: 4 | B148: Points equipes | C148: ETRECHY | E148: 380 | F148: 316 | G148: 8 | H148: 2 | I148: VIGNEUX2 | K148: 341 | L148: 278 | M148: 8 | N148: 2
A149: 4 | B149: Points equipes | C149: VIGNEUX2 | E149: 341 | F149: 278 | G149: 8 | H149: 2 | I149: ETRECHY | K149: 380 | L149: 316 | M149: 8 | N149: 2
A150: 4 | B150: Libre | C150: ETRECHY | D150: LEBROT | E150: 47 | F150: 36 | G150: 47 | H150: 1 | I150: VIGNEUX2 | J150: MICHELET | K150: 52 | L150: 52 | M150: 47 | N150: 3
A151: 4 | B151: Bande | C151: ETRECHY | D151: HOUPLAIN | E151: 54 | F151: 54 | G151: 33 | H151: 3 | I151: VIGNEUX2 | J151: MOINDREAU | K151: 37 | L151: 18 | M151: 33 | N151: 1
A152: 4 | B152: 3 Bandes | C152: ETRECHY | D152: VERLEY | E152: 19 | F152: 19 | G152: 57 | H152: 3 | I152: VIGNEUX2 | J152: ROUX | K152: 13 | L152: 8 | M152: 57 | N152: 1
A153: 4 | B153: 5 Quilles | C153: ETRECHY | D153: LHOMME | E153: 65 | F153: 31 | G153: 46 | H153: 1 | I153: VIGNEUX2 | J153: CATALLO | K153: 75 | L153: 75 | M153: 75 | N153: 3
A154: 4 | B154: Libre | C154: VIGNEUX2 | D154: MICHELET | E154: 52 | F154: 52 | G154: 47 | H154: 3 | I154: ETRECHY | J154: LEBROT | K154: 47 | L154: 36 | M154: 47 | N154: 1
A155: 4 | B155: Bande | C155: VIGNEUX2 | D155: MOINDREAU | E155: 37 | F155: 18 | G155: 33 | H155: 1 | I155: ETRECHY | J155: HOUPLAIN | K155: 54 | L155: 54 | M155: 33 | N155: 3
A156: 4 | B156: 3 Bandes | C156: VIGNEUX2 | D156: ROUX | E156: 13 | F156: 8 | G156: 57 | H156: 1 | I156: ETRECHY | J156: VERLEY | K156: 19 | L156: 19 | M156: 57 | N156: 3
A157: 4 | B157: 5 Quilles | C157: VIGNEUX2 | D157: CATALLO | E157: 75 | F157: 75 | G157: 75 | H157: 3 | I157: ETRECHY | J157: LHOMME | K157: 65 | L157: 31 | M157: 46 | N157: 1
A158: VETERANT
A159: 4 | B159: Rencontre | C159: VIGNEUX1 - ARPAJON | D159: VIGNEUX1 | E159: 381 | F159: 339 | G159: 8 | H159: 2 | J159: ARPAJON | K159: 435 | L159: 405 | M159: 8 | N159: 2
A160: 4 | B160: Points equipes | C160: VIGNEUX1 | E160: 381 | F160: 339 | G160: 8 | H160: 2 | I160: ARPAJON | K160: 435 | L160: 405 | M160: 8 | N160: 2
A161: 4 | B161: Points equipes | C161: ARPAJON | E161: 435 | F161: 405 | G161: 8 | H161: 2 | I161: VIGNEUX1 | K161: 381 | L161: 339 | M161: 8 | N161: 2
A162: 4 | B162: Libre | C162: VIGNEUX1 | D162: JOREAU | E162: 45 | F162: 18 | G162: 22 | H162: 1 | I162: ARPAJON | J162: VIGNON | K162: 60 | L162: 60 | M162: 22 | N162: 3
A163: 4 | B163: Bande | C163: VIGNEUX1 | D163: COSOLETO | E163: 42 | F163: 42 | G163: 41 | H163: 3 | I163: ARPAJON | J163: GODFIN | K163: 36 | L163: 27 | M163: 41 | N163: 1
A164: 4 | B164: 3 Bandes | C164: VIGNEUX1 | D164: BORDIER | E164: 18 | F164: 15 | G164: 84 | H164: 1 | I164: ARPAJON | J164: DEVILLEBICHOT | K164: 25 | L164: 25 | M164: 84 | N164: 3
A165: 4 | B165: 5 Quilles | C165: VIGNEUX1 | D165: ABITBOL | E165: 81 | F165: 81 | G165: 81 | H165: 3 | I165: ARPAJON | J165: THENOT | K165: 89 | L165: 82 | M165: 84 | N165: 1
A166: 4 | B166: Libre | C166: ARPAJON | D166: VIGNON | E166: 60 | F166: 60 | G166: 22 | H166: 3 | I166: VIGNEUX1 | J166: JOREAU | K166: 45 | L166: 18 | M166: 22 | N166: 1
A167: 4 | B167: Bande | C167: ARPAJON | D167: GODFIN | E167: 36 | F167: 27 | G167: 41 | H167: 1 | I167: VIGNEUX1 | J167: COSOLETO | K167: 42 | L167: 42 | M167: 41 | N167: 3
A168: 4 | B168: 3 Bandes | C168: ARPAJON | D168: DEVILLEBICHOT | E168: 25 | F168: 25 | G168: 84 | H168: 3 | I168: VIGNEUX1 | J168: BORDIER | K168: 18 | L168: 15 | M168: 84 | N168: 1
A169: 4 | B169: 5 Quilles | C169: ARPAJON | D169: THENOT | E169: 89 | F169: 82 | G169: 84 | H169: 1 | I169: VIGNEUX1 | J169: ABITBOL | K169: 81 | L169: 81 | M169: 81 | N169: 3
A170: VETERANT
A171: 4 | B171: Rencontre | C171: MORANGIS1 - MASSY | D171: MORANGIS1 | E171: 524 | F171: 471 | G171: 9 | H171: 3 | J171: MASSY | K171: 368 | L171: 298 | M171: 7 | N171: 1
A172: 4 | B172: Points equipes | C172: MORANGIS1 | E172: 524 | F172: 471 | G172: 9 | H172: 3 | I172: MASSY | K172: 368 | L172: 298 | M172: 7 | N172: 1
A173: 4 | B173: Points equipes | C173: MASSY | E173: 368 | F173: 298 | G173: 7 | H173: 1 | I173: MORANGIS1 | K173: 524 | L173: 471 | M173: 9 | N173: 3
A174: 4 | B174: Libre | C174: MORANGIS1 | D174: VICARI | E174: 156 | F174: 156 | G174: 29 | H174: 3 | I174: MASSY | J174: BRIOIT | K174: 65 | L174: 51 | M174: 29 | N174: 1
A175: 4 | B175: Bande | C175: MORANGIS1 | D175: MAILLARD | E175: 31 | F175: 31 | G175: 40 | H175: 3 | I175: MASSY | J175: VANHEE | K175: 28 | L175: 14 | M175: 40 | N175: 1
A176: 4 | B176: 3 Bandes | C176: MORANGIS1 | D176: PAIS | E176: 24 | F176: 19 | G176: 65 | H176: 1 | I176: MASSY | J176: CARON | K176: 19 | L176: 19 | M176: 65 | N176: 3
A177: 4 | B177: 5 Quilles | C177: MORANGIS1 | D177: LILLO | E177: 93 | F177: 93 | G177: 65 | H177: 2 | I177: MASSY | J177: CARLE | K177: 76 | L177: 48 | M177: 76 | N177: 2
A178: 4 | B178: Libre | C178: MASSY | D178: BRIOIT | E178: 65 | F178: 51 | G178: 29 | H178: 1 | I178: MORANGIS1 | J178: VICARI | K178: 156 | L178: 156 | M178: 29 | N178: 3
A179: 4 | B179: Bande | C179: MASSY | D179: VANHEE | E179: 28 | F179: 14 | G179: 40 | H179: 1 | I179: MORANGIS1 | J179: MAILLARD | K179: 31 | L179: 31 | M179: 40 | N179: 3
A180: 4 | B180: 3 Bandes | C180: MASSY | D180: CARON | E180: 19 | F180: 19 | G180: 65 | H180: 3 | I180: MORANGIS1 | J180: PAIS | K180: 24 | L180: 19 | M180: 65 | N180: 1
A181: 4 | B181: 5 Quilles | C181: MASSY | D181: CARLE | E181: 76 | F181: 48 | G181: 76 | H181: 2 | I181: MORANGIS1 | J181: LILLO | K181: 93 | L181: 93 | M181: 65 | N181: 2
A182: VETERANT
A183: 4 | B183: Rencontre | C183: DRAVEIL - MORANGIS2 | D183: DRAVEIL | E183: 367 | F183: 341 | G183: 11 | H183: 3 | J183: MORANGIS2 | K183: 375 | L183: 279 | M183: 5 | N183: 1
A184: 4 | B184: Points equipes | C184: DRAVEIL | E184: 367 | F184: 341 | G184: 11 | H184: 3 | I184: MORANGIS2 | K184: 375 | L184: 279 | M184: 5 | N184: 1
A185: 4 | B185: Points equipes | C185: MORANGIS2 | E185: 375 | F185: 279 | G185: 5 | H185: 1 | I185: DRAVEIL | K185: 367 | L185: 341 | M185: 11 | N185: 3
A186: 4 | B186: Libre | C186: DRAVEIL | D186: MOULAY | E186: 91 | F186: 91 | G186: 37 | H186: 3 | I186: MORANGIS2 | J186: PREVOT | K186: 57 | L186: 36 | M186: 37 | N186: 1
A187: 4 | B187: Bande | C187: DRAVEIL | D187: TAVERNIER | E187: 41 | F187: 41 | G187: 31 | H187: 3 | I187: MORANGIS2 | J187: VINGUEASSALOM | K187: 45 | L187: 34 | M187: 31 | N187: 1
A188: 4 | B188: 3 Bandes | C188: DRAVEIL | D188: HUE | E188: 14 | F188: 14 | G188: 43 | H188: 3 | I188: MORANGIS2 | J188: CHAMPAGNE | K188: 18 | L188: 10 | M188: 43 | N188: 1
A189: 4 | B189: 5 Quilles | C189: DRAVEIL | D189: MESNY | E189: 62 | F189: 62 | G189: 36 | H189: 2 | I189: MORANGIS2 | J189: GOT | K189: 69 | L189: 56 | M189: 69 | N189: 2
A190: 4 | B190: Libre | C190: MORANGIS2 | D190: PREVOT | E190: 57 | F190: 36 | G190: 37 | H190: 1 | I190: DRAVEIL | J190: MOULAY | K190: 91 | L190: 91 | M190: 37 | N190: 3
A191: 4 | B191: Bande | C191: MORANGIS2 | D191: VINGUEASSALOM | E191: 45 | F191: 34 | G191: 31 | H191: 1 | I191: DRAVEIL | J191: TAVERNIER | K191: 41 | L191: 41 | M191: 31 | N191: 3
A192: 4 | B192: 3 Bandes | C192: MORANGIS2 | D192: CHAMPAGNE | E192: 18 | F192: 10 | G192: 43 | H192: 1 | I192: DRAVEIL | J192: HUE | K192: 14 | L192: 14 | M192: 43 | N192: 3
A193: 4 | B193: 5 Quilles | C193: MORANGIS2 | D193: GOT | E193: 69 | F193: 56 | G193: 69 | H193: 2 | I193: DRAVEIL | J193: MESNY | K193: 62 | L193: 62 | M193: 36 | N193: 2
A194: VETERANT
A195: 5 | B195: Rencontre | C195: DRAVEIL - VIGNEUX1 | D195: DRAVEIL | E195: 402 | F195: 337 | G195: 7 | H195: 1 | J195: VIGNEUX1 | K195: 405 | L195: 394 | M195: 9 | N195: 3
A196: 5 | B196: Points equipes | C196: DRAVEIL | E196: 402 | F196: 337 | G196: 7 | H196: 1 | I196: VIGNEUX1 | K196: 405 | L196: 394 | M196: 9 | N196: 3
A197: 5 | B197: Points equipes | C197: VIGNEUX1 | E197: 405 | F197: 394 | G197: 9 | H197: 3 | I197: DRAVEIL | K197: 402 | L197: 337 | M197: 7 | N197: 1
A198: 5 | B198: Libre | C198: DRAVEIL | D198: MIRLAUD | E198: 76 | F198: 51 | G198: 31 | H198: 1 | I198: VIGNEUX1 | J198: HELLEU | K198: 65 | L198: 65 | M198: 31 | N198: 3
A199: 5 | B199: Bande | C199: DRAVEIL | D199: TAVERNIER | E199: 42 | F199: 42 | G199: 37 | H199: 3 | I199: VIGNEUX1 | J199: BORDIER | K199: 45 | L199: 44 | M199: 37 | N199: 1
A200: 5 | B200: 3 Bandes | C200: DRAVEIL | D200: DESHAYES | E200: 12 | F200: 8 | G200: 48 | H200: 1 | I200: VIGNEUX1 | J200: COSOLETO | K200: 18 | L200: 18 | M200: 48 | N200: 3
... 125 more rows

Sheet Calculs equipes (hidden)
A2: Nbr rencontres par équipe
A4: Type | B4: (Plusieurs éléments)
A6: Nombre de Journée | B6: Equipe
B7: MORANGIS1 | C7: MORANGIS2 | D7: ETRECHY | E7: MASSY | F7: DRAVEIL | G7: ARPAJON | H7: VIGNEUX1 | I7: VIGNEUX2
A8: Total | B8: 7 | C8: 7 | D8: 6 | E8: 7 | F8: 6 | G8: 7 | H8: 7 | I8: 7
A12: Points Matchs par équipe
A14: Type | B14: (Plusieurs éléments)
A16: Somme de pt match | B16: Equipe
B17: MORANGIS1 | C17: MORANGIS2 | D17: ETRECHY | E17: MASSY | F17: DRAVEIL | G17: ARPAJON | H17: VIGNEUX1 | I17: VIGNEUX2
A18: Total | B18: 18 | C18: 17 | D18: 10 | E18: 17 | F18: 11 | G18: 14 | H18: 13 | I18: 8
A21: Points pour/contre par équipe
A23: Type | B23: (Plusieurs éléments)
B25: Equipe | C25: Données
B26: MORANGIS1 | D26: MORANGIS2 | F26: ETRECHY | H26: MASSY | J26: DRAVEIL | L26: ARPAJON | N26: VIGNEUX1 | P26: VIGNEUX2
B27: + | C27: - | D27: + | E27: - | F27: + | G27: - | H27: + | I27: - | J27: + | K27: - | L27: + | M27: - | N27: + | O27: - | P27: + | Q27: -
A28: Total | B28: 65 | C28: 47 | D28: 57 | E28: 55 | F28: 43 | G28: 53 | H28: 63 | I28: 49 | J28: 48 | K28: 48 | L28: 56 | M28: 56 | N28: 52 | O28: 60 | P28: 48 | Q28: 64
A31: Distance (points à faire) et points faits par équipe
A33: Type | B33: (Plusieurs éléments)
B35: Equipe | C35: Données
B36: MORANGIS1 | D36: MORANGIS2 | F36: ETRECHY | H36: MASSY | J36: DRAVEIL | L36: ARPAJON | N36: VIGNEUX1 | P36: VIGNEUX2
B37: Points à faire | C37: Points faits | D37: Points à faire | E37: Points faits | F37: Points à faire | G37: Points faits | H37: Points à faire | I37: Points faits | J37: Points à faire | K37: Points faits | L37: Points à faire | M37: Points faits | N37: Points à faire | O37: Points faits | P37: Points à faire | Q37: Points faits
A38: Total | B38: 3559 | C38: 3311 | D38: 2744 | E38: 2359 | F38: 2287 | G38: 1873 | H38: 2576 | I38: 2190 | J38: 2305 | K38: 2042 | L38: 2431 | M38: 2176 | N38: 2796 | O38: 2431 | P38: 2371 | Q38: 1868
A41: Coefficient ( Points faits / distance) par équipe
A43: Type | B43: (Plusieurs éléments)
A45: Moyenne de Coefficient | B45: Equipe
B46: MORANGIS1 | C46: MORANGIS2 | D46: ETRECHY | E46: MASSY | F46: DRAVEIL | G46: ARPAJON | H46: VIGNEUX1 | I46: VIGNEUX2
A47: Total | B47: 0.9303175049 | C47: 0.8596938776 | D47: 0.8189768255 | E47: 0.8501552795 | F47: 0.8859002169 | G47: 0.8951048951 | H47: 0.8694563662 | I47: 0.7878532265
A50: Classement non trié | I50: Classement trié
A52: Equipe | B52: jouées | C52: pts | D52: pour | E52: contre | F52: différence | G52: coefficient | I52: Equipe | J52: jouées | K52: pts | L52: pour | M52: contre | N52: différence | O52: coefficient
A53: =Gestion!C2 -> ARPAJON | B53: =IFERROR(GETPIVOTDATA("Journée",'Calculs equipes'!$A$6,"Equipe",A53),"") -> 7 | C53: =IFERROR(GETPIVOTDATA("Somme de pt match",'Calculs equipes'!$A$16,"Equipe",A53),0) -> 14 | D53: =IFERROR(GETPIVOTDATA("+",'Calculs equipes'!$A$25,"Equipe",A53),0) -> 56 | E53: =IFERROR(GETPIVOTDATA("-",'Calculs equipes'!$A$25,"Equipe",A53),0) -> 56 | F53: =D53-E53 -> 0 | G53: =IFERROR(GETPIVOTDATA("Coefficient",$A$45,"Equipe",A53),"") -> 0.8951048951 | I53: =_xlfn._xlws.SORT('Calculs equipes'!$A$53:$G$66,{3;6;1},{-1;-1;-1}) -> MORANGIS1 | J53: 7 | K53: 18 | L53: 65 | M53: 47 | N53: 18 | O53: 0.9303175049
A54: =Gestion!C3 -> DRAVEIL | B54: =IFERROR(GETPIVOTDATA("Journée",'Calculs equipes'!$A$6,"Equipe",A54),"") -> 6 | C54: =IFERROR(GETPIVOTDATA("Somme de pt match",'Calculs equipes'!$A$16,"Equipe",A54),0) -> 11 | D54: =IFERROR(GETPIVOTDATA("+",'Calculs equipes'!$A$25,"Equipe",A54),0) -> 48 | E54: =IFERROR(GETPIVOTDATA("-",'Calculs equipes'!$A$25,"Equipe",A54),0) -> 48 | F54: 0 | G54: 0.8859002169 | I54: MASSY | J54: 7 | K54: 17 | L54: 63 | M54: 49 | N54: 14 | O54: 0.8501552795
A55: =Gestion!C4 -> ETRECHY | B55: =IFERROR(GETPIVOTDATA("Journée",'Calculs equipes'!$A$6,"Equipe",A55),"") -> 6 | C55: =IFERROR(GETPIVOTDATA("Somme de pt match",'Calculs equipes'!$A$16,"Equipe",A55),0) -> 10 | D55: =IFERROR(GETPIVOTDATA("+",'Calculs equipes'!$A$25,"Equipe",A55),0) -> 43 | E55: =IFERROR(GETPIVOTDATA("-",'Calculs equipes'!$A$25,"Equipe",A55),0) -> 53 | F55: -10 | G55: 0.8189768255 | I55: MORANGIS2 | J55: 7 | K55: 17 | L55: 57 | M55: 55 | N55: 2 | O55: 0.8596938776
A56: =Gestion!C5 -> MASSY | B56: =IFERROR(GETPIVOTDATA("Journée",'Calculs equipes'!$A$6,"Equipe",A56),"") -> 7 | C56: =IFERROR(GETPIVOTDATA("Somme de pt match",'Calculs equipes'!$A$16,"Equipe",A56),0) -> 17 | D56: =IFERROR(GETPIVOTDATA("+",'Calculs equipes'!$A$25,"Equipe",A56),0) -> 63 | E56: =IFERROR(GETPIVOTDATA("-",'Calculs equipes'!$A$25,"Equipe",A56),0) -> 49 | F56: 14 | G56: 0.8501552795 | I56: ARPAJON | J56: 7 | K56: 14 | L56: 56 | M56: 56 | N56: 0 | O56: 0.8951048951
A57: =Gestion!C6 -> MORANGIS1 | B57: =IFERROR(GETPIVOTDATA("Journée",'Calculs equipes'!$A$6,"Equipe",A57),"") -> 7 | C57: =IFERROR(GETPIVOTDATA("Somme de pt match",'Calculs equipes'!$A$16,"Equipe",A57),0) -> 18 | D57: =IFERROR(GETPIVOTDATA("+",'Calculs equipes'!$A$25,"Equipe",A57),0) -> 65 | E57: =IFERROR(GETPIVOTDATA("-",'Calculs equipes'!$A$25,"Equipe",A57),0) -> 47 | F57: 18 | G57: 0.9303175049 | I57: VIGNEUX1 | J57: 7 | K57: 13 | L57: 52 | M57: 60 | N57: -8 | O57: 0.8694563662
A58: =Gestion!C7 -> MORANGIS2 | B58: =IFERROR(GETPIVOTDATA("Journée",'Calculs equipes'!$A$6,"Equipe",A58),"") -> 7 | C58: =IFERROR(GETPIVOTDATA("Somme de pt match",'Calculs equipes'!$A$16,"Equipe",A58),0) -> 17 | D58: =IFERROR(GETPIVOTDATA("+",'Calculs equipes'!$A$25,"Equipe",A58),0) -> 57 | E58: =IFERROR(GETPIVOTDATA("-",'Calculs equipes'!$A$25,"Equipe",A58),0) -> 55 | F58: 2 | G58: 0.8596938776 | I58: DRAVEIL | J58: 6 | K58: 11 | L58: 48 | M58: 48 | N58: 0 | O58: 0.8859002169
A59: =Gestion!C8 -> VIGNEUX1 | B59: =IFERROR(GETPIVOTDATA("Journée",'Calculs equipes'!$A$6,"Equipe",A59),"") -> 7 | C59: =IFERROR(GETPIVOTDATA("Somme de pt match",'Calculs equipes'!$A$16,"Equipe",A59),0) -> 13 | D59: =IFERROR(GETPIVOTDATA("+",'Calculs equipes'!$A$25,"Equipe",A59),0) -> 52 | E59: =IFERROR(GETPIVOTDATA("-",'Calculs equipes'!$A$25,"Equipe",A59),0) -> 60 | F59: -8 | G59: 0.8694563662 | I59: ETRECHY | J59: 6 | K59: 10 | L59: 43 | M59: 53 | N59: -10 | O59: 0.8189768255
A60: =Gestion!C9 -> VIGNEUX2 | B60: =IFERROR(GETPIVOTDATA("Journée",'Calculs equipes'!$A$6,"Equipe",A60),"") -> 7 | C60: =IFERROR(GETPIVOTDATA("Somme de pt match",'Calculs equipes'!$A$16,"Equipe",A60),0) -> 8 | D60: =IFERROR(GETPIVOTDATA("+",'Calculs equipes'!$A$25,"Equipe",A60),0) -> 48 | E60: =IFERROR(GETPIVOTDATA("-",'Calculs equipes'!$A$25,"Equipe",A60),0) -> 64 | F60: -16 | G60: 0.7878532265 | I60: VIGNEUX2 | J60: 7 | K60: 8 | L60: 48 | M60: 64 | N60: -16 | O60: 0.7878532265
A61: =Gestion!C10 -> - | B61: =IFERROR(GETPIVOTDATA("Journée",'Calculs equipes'!$A$6,"Equipe",A61),"") ->  | C61: =IFERROR(GETPIVOTDATA("Somme de pt match",'Calculs equipes'!$A$16,"Equipe",A61),0) -> 0 | D61: =IFERROR(GETPIVOTDATA("+",'Calculs equipes'!$A$25,"Equipe",A61),0) -> 0 | E61: =IFERROR(GETPIVOTDATA("-",'Calculs equipes'!$A$25,"Equipe",A61),0) -> 0 | F61: 0 | I61: - | K61: 0 | L61: 0 | M61: 0 | N61: 0
A62: =Gestion!C11 -> - | B62: =IFERROR(GETPIVOTDATA("Journée",'Calculs equipes'!$A$6,"Equipe",A62),"") ->  | C62: =IFERROR(GETPIVOTDATA("Somme de pt match",'Calculs equipes'!$A$16,"Equipe",A62),0) -> 0 | D62: =IFERROR(GETPIVOTDATA("+",'Calculs equipes'!$A$25,"Equipe",A62),0) -> 0 | E62: =IFERROR(GETPIVOTDATA("-",'Calculs equipes'!$A$25,"Equipe",A62),0) -> 0 | F62: =D62-E62 -> 0 | G62: =IFERROR(GETPIVOTDATA("Coefficient",$A$45,"Equipe",A62),"") ->  | I62: - | K62: 0 | L62: 0 | M62: 0 | N62: 0
A63: =Gestion!C12 -> - | B63: =IFERROR(GETPIVOTDATA("Journée",'Calculs equipes'!$A$6,"Equipe",A63),"") ->  | C63: =IFERROR(GETPIVOTDATA("Somme de pt match",'Calculs equipes'!$A$16,"Equipe",A63),0) -> 0 | D63: =IFERROR(GETPIVOTDATA("+",'Calculs equipes'!$A$25,"Equipe",A63),0) -> 0 | E63: =IFERROR(GETPIVOTDATA("-",'Calculs equipes'!$A$25,"Equipe",A63),0) -> 0 | F63: =D63-E63 -> 0 | G63: =IFERROR(GETPIVOTDATA("Coefficient",$A$45,"Equipe",A63),"") ->  | I63: - | K63: 0 | L63: 0 | M63: 0 | N63: 0
A64: =Gestion!C13 -> - | B64: =IFERROR(GETPIVOTDATA("Journée",'Calculs equipes'!$A$6,"Equipe",A64),"") ->  | C64: =IFERROR(GETPIVOTDATA("Somme de pt match",'Calculs equipes'!$A$16,"Equipe",A64),0) -> 0 | D64: =IFERROR(GETPIVOTDATA("+",'Calculs equipes'!$A$25,"Equipe",A64),0) -> 0 | E64: =IFERROR(GETPIVOTDATA("-",'Calculs equipes'!$A$25,"Equipe",A64),0) -> 0 | F64: =D64-E64 -> 0 | G64: =IFERROR(GETPIVOTDATA("Coefficient",$A$45,"Equipe",A64),"") -> 
A65: =Gestion!C14 -> - | B65: =IFERROR(GETPIVOTDATA("Journée",'Calculs equipes'!$A$6,"Equipe",A65),"") ->  | C65: =IFERROR(GETPIVOTDATA("Somme de pt match",'Calculs equipes'!$A$16,"Equipe",A65),0) -> 0 | D65: =IFERROR(GETPIVOTDATA("+",'Calculs equipes'!$A$25,"Equipe",A65),0) -> 0 | E65: =IFERROR(GETPIVOTDATA("-",'Calculs equipes'!$A$25,"Equipe",A65),0) -> 0 | F65: =D65-E65 -> 0 | G65: =IFERROR(GETPIVOTDATA("Coefficient",$A$45,"Equipe",A65),"") -> 
A66: =Gestion!C15 -> - | B66: =IFERROR(GETPIVOTDATA("Journée",'Calculs equipes'!$A$6,"Equipe",A66),"") ->  | C66: =IFERROR(GETPIVOTDATA("Somme de pt match",'Calculs equipes'!$A$16,"Equipe",A66),0) -> 0 | D66: =IFERROR(GETPIVOTDATA("+",'Calculs equipes'!$A$25,"Equipe",A66),0) -> 0 | E66: =IFERROR(GETPIVOTDATA("-",'Calculs equipes'!$A$25,"Equipe",A66),0) -> 0 | F66: =D66-E66 -> 0 | G66: =IFERROR(GETPIVOTDATA("Coefficient",$A$45,"Equipe",A66),"") -> 

Sheet Calculs joueurs (hidden)
A2: Résultat joueurs
A4: Type | B4: (Plusieurs éléments) | F4: Type | G4: (Plusieurs éléments) | L4: Type | M4: (Plusieurs éléments) | R4: Type | S4: (Plusieurs éléments)
B6: Données | G6: Données | M6: Données | S6: Données
A7: Joueur | B7: Nb parties | C7: Total points | D7: Total reprises | F7: Joueur | G7: Nb parties | H7: Total points | I7: Total reprises | L7: Joueur | M7: Nb parties | N7: Total points | O7: Total reprises | R7: Joueur | S7: Nb parties | T7: Total pt match | U7: Total points joueur | V7: Total points adversaire
A8: DELOBEL | B8: 1 | C8: 52 | D8: 28 | F8: FAYT | G8: 2 | H8: 58 | I8: 79 | L8: CARON | M8: 6 | N8: 101 | O8: 290 | R8: CATALLO | S8: 4 | T8: 8 | U8: 510 | V8: 494
A9: BRIOIT | B9: 3 | C9: 189 | D9: 124 | F9: GESLIN | G9: 1 | H9: 34 | I9: 44 | L9: DESHAYES | M9: 1 | N9: 8 | O9: 48 | R9: DESHAYES | S9: 1 | T9: 1 | U9: 104 | V9: 120
A10: VALLEE | B10: 1 | C10: 15 | D10: 40 | F10: GODFIN | G10: 3 | H10: 89 | I10: 142 | L10: GODFIN | M10: 2 | N10: 13 | O10: 107 | R10: GESLIN | S10: 1 | T10: 3 | U10: 120 | V10: 104
A11: VINGUEASSALOM | B11: 2 | C11: 153 | D11: 88 | F11: DANIAU | G11: 4 | H11: 151 | I11: 158 | L11: DANIAU | M11: 1 | N11: 17 | O11: 38 | R11: DANIAU | S11: 1 | T11: 3 | U11: 134 | V11: 98
A12: ANNERON | B12: 1 | C12: 59 | D12: 46 | F12: COTILLARD | G12: 2 | H12: 88 | I12: 78 | L12: CHAMPAGNE | M12: 5 | N12: 68 | O12: 212 | R12: ABITBOL | S12: 5 | T12: 12 | U12: 799 | V12: 782
A13: MOULAY | B13: 2 | C13: 189 | D13: 80 | F13: VINGUEASSALOM | G13: 3 | H13: 123 | I13: 108 | L13: AIRAULT | M13: 2 | N13: 44 | O13: 98 | R13: PORCU | S13: 2 | T13: 2 | U13: 219 | V13: 268
A14: VICARI | B14: 6 | C14: 921 | D14: 173 | F14: BORDIER | G14: 1 | H14: 44 | I14: 37 | L14: BORDIER | M14: 6 | N14: 94 | O14: 334 | R14: AIRAULT | S14: 1 | T14: 3 | U14: 184 | V14: 110
A15: MIRLAUD | B15: 2 | C15: 109 | D15: 66 | F15: LHOMME | G15: 2 | H15: 84 | I15: 86 | L15: VERLEY | M15: 6 | N15: 100 | O15: 299 | R15: LHOMME | S15: 3 | T15: 6 | U15: 325 | V15: 427
A16: VANHEE | B16: 1 | C16: 23 | D16: 46 | F16: FLEURY | G16: 1 | H16: 20 | I16: 30 | L16: MOULAY | M16: 1 | N16: 23 | O16: 44 | R16: FLEURY | S16: 1 | T16: 1 | U16: 47 | V16: 130
A17: PREVOT | B17: 3 | C17: 137 | D17: 131 | F17: TAVERNIER | G17: 6 | H17: 247 | I17: 254 | L17: PAIS | M17: 7 | N17: 154 | O17: 376 | R17: MESNY | S17: 1 | T17: 2 | U17: 98 | V17: 125
A18: VIGNON | B18: 2 | C18: 118 | D18: 63 | F18: JACQUIN | G18: 1 | H18: 29 | I18: 48 | L18: MIRLAUD | M18: 2 | N18: 23 | O18: 119 | R18: ALEXANDRE | S18: 5 | T18: 10 | U18: 798 | V18: 577
A19: HELLEU | B19: 6 | C19: 327 | D19: 209 | F19: HOUPLAIN | G19: 3 | H19: 159 | I19: 109 | L19: ROUX | M19: 7 | N19: 64 | O19: 351 | R19: THENOT | S19: 3 | T19: 5 | U19: 435 | V19: 421
A20: MICHELET | B20: 3 | C20: 154 | D20: 149 | F20: VANHEE | G20: 2 | H20: 26 | I20: 111 | L20: PINTO | M20: 2 | N20: 26 | O20: 122 | R20: JACQUIN | S20: 2 | T20: 4 | U20: 251 | V20: 214
A21: LOUBIGNAC | B21: 2 | C21: 81 | D21: 81 | F21: VIGNON | G21: 2 | H21: 63 | I21: 83 | L21: LAMPLE | M21: 1 | N21: 12 | O21: 59 | R21: CARLE | S21: 6 | T21: 11 | U21: 761 | V21: 833
A22: MIRMAN | B22: 1 | C22: 96 | D22: 31 | F22: MICHELET | G22: 2 | H22: 64 | I22: 106 | L22: DEVILLEBICHOT | M22: 3 | N22: 68 | O22: 188 | R22: ANNE | S22: 2 | T22: 5 | U22: 298 | V22: 256
A23: MAILLARD | B23: 1 | C23: 47 | D23: 25 | F23: BIDE | G23: 2 | H23: 83 | I23: 113 | L23: COSOLETO | M23: 1 | N23: 18 | O23: 48 | R23: VIGNON | S23: 1 | T23: 3 | U23: 120 | V23: 152
A24: LAMPLE | B24: 1 | C24: 85 | D24: 27 | F24: MIRMAN | G24: 1 | H24: 44 | I24: 38 | L24: HUE | M24: 1 | N24: 14 | O24: 43 | R24: LILLO | S24: 2 | T24: 4 | U24: 285 | V24: 220
A25: CUILLERAT | B25: 3 | C25: 94 | D25: 98 | F25: MAILLARD | G25: 2 | H25: 70 | I25: 70 | R25: MIRMAN | S25: 1 | T25: 3 | U25: 146 | V25: 129
A26: MOINDREAU | B26: 3 | C26: 159 | D26: 116 | F26: VILLET | G26: 2 | H26: 72 | I26: 91 | R26: TRUFFAUT | S26: 1 | T26: 3 | U26: 130 | V26: 47
A27: BENOIT | B27: 3 | C27: 139 | D27: 84 | F27: GOT | G27: 1 | H27: 23 | I27: 38 | R27: GOT | S27: 4 | T27: 7 | U27: 414 | V27: 471
A28: LEVANIER | B28: 3 | C28: 93 | D28: 99 | F28: COSOLETO | G28: 4 | H28: 134 | I28: 158 | R28: VENOT | S28: 3 | T28: 5 | U28: 298 | V28: 401
A29: LEBROT | B29: 1 | C29: 36 | D29: 47 | F29: MOINDREAU | G29: 4 | H29: 106 | I29: 166 | R29: HUE | S29: 2 | T29: 4 | U29: 213 | V29: 234
A30: JOREAU | B30: 1 | C30: 18 | D30: 22 | F30: VENOT | G30: 1 | H30: 14 | I30: 50 | R30: JOREAU | S30: 2 | T30: 3 | U30: 205 | V30: 281
A31: LORENZI | B31: 2 | C31: 73 | D31: 103 | F31: AGUEFF | G31: 1 | H31: 23 | I31: 38
F32: PRIEUR | G32: 1 | H32: 29 | I32: 61

Sheet Resultat
A1: Zone de travail pour la copie d'une feuille de match
A2: =Journee_classement+1 -> 8 | B2: Rencontre | C2: =CONCATENATE(D2," - ",J2) -> - - - | D2: ='Feuille-match'!$C$8 -> - | E2: =E5+2*E6+5*E7+E8+E8 ->  | F2: =F5+2*F6+5*F7+F8+G8 -> 0 | G2: =H5+H6+H7+H8 ->  | H2: =IF(G2>M2,3,IF(G2<M2,1,2)) ->  | J2: ='Feuille-match'!$K$8 -> - | K2: =K5+2*K6+5*K7+K8+K8 ->  | L2: =L5+2*L6+5*L7+L8+M8 -> 0 | M2: =N5+N6+N7+N8 ->  | N2: =IF(M2>G2,3,IF(M2<G2,1,2)) -> 
A3: 8 | B3: Points equipes | C3: =D2 -> - | E3: =E2 ->  | F3: =F2 -> 0 | G3: =G2 ->  | H3: =H2 ->  | I3: =J2 -> - | K3: =K2 ->  | L3: =L2 -> 0 | M3: =M2 ->  | N3: =N2 -> 
A4: 8 | B4: Points equipes | C4: =J2 -> - | E4: =K2 ->  | F4: =L2 -> 0 | G4: =M2 ->  | H4: =N2 ->  | I4: =D2 -> - | K4: =E2 ->  | L4: =F2 -> 0 | M4: =G2 ->  | N4: =H2 -> 
A5: 8 | B5: ='Feuille-match'!$B$12 -> Libre | C5: =$D$2 -> - | D5: ='Feuille-match'!B13 -> - | E5: ='Feuille-match'!C13 ->  | F5: ='Feuille-match'!D13 -> 0 | G5: ='Feuille-match'!E13 -> 0 | H5: ='Feuille-match'!H13 ->  | I5: =$J$2 -> - | J5: ='Feuille-match'!J13 -> - | K5: ='Feuille-match'!K13 ->  | L5: ='Feuille-match'!L13 -> 0 | M5: ='Feuille-match'!M13 -> 0 | N5: ='Feuille-match'!P13 -> 
A6: 8 | B6: ='Feuille-match'!$B$15 -> Bande | C6: =$D$2 -> - | D6: ='Feuille-match'!B16 -> - | E6: ='Feuille-match'!C16 ->  | F6: ='Feuille-match'!D16 -> 0 | G6: ='Feuille-match'!E16 -> 0 | H6: ='Feuille-match'!H16 ->  | I6: =$J$2 -> - | J6: ='Feuille-match'!J16 -> - | K6: ='Feuille-match'!K16 ->  | L6: ='Feuille-match'!L16 -> 0 | M6: ='Feuille-match'!M16 -> 0 | N6: ='Feuille-match'!P16 -> 
A7: 8 | B7: ='Feuille-match'!$B$18 -> 3 Bandes | C7: =$D$2 -> - | D7: ='Feuille-match'!B19 -> - | E7: ='Feuille-match'!C19 ->  | F7: ='Feuille-match'!D19 -> 0 | G7: ='Feuille-match'!E19 -> 0 | H7: ='Feuille-match'!H19 ->  | I7: =$J$2 -> - | J7: ='Feuille-match'!J19 -> - | K7: ='Feuille-match'!K19 ->  | L7: ='Feuille-match'!L19 -> 0 | M7: ='Feuille-match'!M19 -> 0 | N7: ='Feuille-match'!P19 -> 
A8: 8 | B8: ='Feuille-match'!$B$21 -> 5 Quilles | C8: =$D$2 -> - | D8: ='Feuille-match'!B22 -> - | E8: ='Feuille-match'!C22 ->  | F8: ='Feuille-match'!D22 -> 0 | G8: ='Feuille-match'!E22 -> 0 | H8: ='Feuille-match'!H22 ->  | I8: =$J$2 -> - | J8: ='Feuille-match'!J22 -> - | K8: ='Feuille-match'!K22 ->  | L8: ='Feuille-match'!L22 -> 0 | M8: ='Feuille-match'!M22 -> 0 | N8: ='Feuille-match'!P22 -> 
A9: 8 | B9: ='Feuille-match'!$B$12 -> Libre | C9: =I5 -> - | D9: - | F9: 0 | G9: 0 | I9: =C5 -> - | J9: - | L9: 0 | M9: 0
A10: 8 | B10: ='Feuille-match'!$B$15 -> Bande | C10: - | D10: - | F10: 0 | G10: 0 | I10: - | J10: - | L10: 0 | M10: 0
A11: 8 | B11: ='Feuille-match'!$B$18 -> 3 Bandes | C11: - | D11: - | F11: 0 | G11: 0 | I11: - | J11: - | L11: 0 | M11: 0
A12: 8 | B12: ='Feuille-match'!$B$21 -> 5 Quilles | C12: - | D12: - | F12: 0 | G12: 0 | I12: - | J12: - | L12: 0 | M12: 0
A13: Zone de travail pour l'intégration d'un résultat
A14: =CONCATENATE("Equipe recevante : ",D23) -> Equipe recevante : MORANGIS1
A15: =CONCATENATE("Equipe visiteur : ", J23) -> Equipe visiteur : VIGNEUX2
A16: =CONCATENATE("Score : ",D23," ",G23," - ",M23," ",J23) -> Score : MORANGIS1 9 - 7 VIGNEUX2 | F16: !!! NE PAS MODIFIER !!! Utiliser par les macros de COPIER et COLLER des résultats
A17: =CONCATENATE(B5," : ",D23," ",H26," - ",N26," ",J23) -> Libre : MORANGIS1 3 - 1 VIGNEUX2
A18: =CONCATENATE(B6," : ",D23," ",H27," - ",N27," ",J23) -> Bande : MORANGIS1 1 - 3 VIGNEUX2
A19: =CONCATENATE(B7," : ",D23," ",H28," - ",N28," ",J23) -> 3 Bandes : MORANGIS1 3 - 1 VIGNEUX2
A20: =CONCATENATE(B8," : ",D23," ",H29," - ",N29," ",J23) -> 5 Quilles : MORANGIS1 2 - 2 VIGNEUX2
A22: VETERANT
A23: 7 | B23: Rencontre | C23: MORANGIS1 - VIGNEUX2 | D23: MORANGIS1 | E23: 528 | F23: 500 | G23: 9 | H23: 3 | J23: VIGNEUX2 | K23: 373 | L23: 294 | M23: 7 | N23: 1
A24: 7 | B24: Points equipes | C24: MORANGIS1 | E24: 528 | F24: 500 | G24: 9 | H24: 3 | I24: VIGNEUX2 | K24: 373 | L24: 294 | M24: 7 | N24: 1
A25: 7 | B25: Points equipes | C25: VIGNEUX2 | E25: 373 | F25: 294 | G25: 7 | H25: 1 | I25: MORANGIS1 | K25: 528 | L25: 500 | M25: 9 | N25: 3
A26: 7 | B26: Libre | C26: MORANGIS1 | D26: VICARI | E26: 146 | F26: 146 | G26: 26 | H26: 3 | I26: VIGNEUX2 | J26: MOINDREAU | K26: 62 | L26: 44 | M26: 26 | N26: 1
A27: 7 | B27: Bande | C27: MORANGIS1 | D27: PRIEUR | E27: 39 | F27: 29 | G27: 61 | H27: 1 | I27: VIGNEUX2 | J27: MICHELET | K27: 36 | L27: 36 | M27: 61 | N27: 3
A28: 7 | B28: 3 Bandes | C28: MORANGIS1 | D28: PAIS | E28: 22 | F28: 22 | G28: 37 | H28: 3 | I28: VIGNEUX2 | J28: ROUX | K28: 13 | L28: 7 | M28: 37 | N28: 1
A29: 7 | B29: 5 Quilles | C29: MORANGIS1 | D29: ALEXANDRE | E29: 97 | F29: 97 | G29: 89 | H29: 2 | I29: VIGNEUX2 | J29: CATALLO | K29: 87 | L29: 56 | M29: 87 | N29: 2
A30: 7 | B30: Libre | C30: VIGNEUX2 | D30: MOINDREAU | E30: 62 | F30: 44 | G30: 26 | H30: 1 | I30: MORANGIS1 | J30: VICARI | K30: 146 | L30: 146 | M30: 26 | N30: 3
A31: 7 | B31: Bande | C31: VIGNEUX2 | D31: MICHELET | E31: 36 | F31: 36 | G31: 61 | H31: 3 | I31: MORANGIS1 | J31: PRIEUR | K31: 39 | L31: 29 | M31: 61 | N31: 1
A32: 7 | B32: 3 Bandes | C32: VIGNEUX2 | D32: ROUX | E32: 13 | F32: 7 | G32: 37 | H32: 1 | I32: MORANGIS1 | J32: PAIS | K32: 22 | L32: 22 | M32: 37 | N32: 3
A33: 7 | B33: 5 Quilles | C33: VIGNEUX2 | D33: CATALLO | E33: 87 | F33: 56 | G33: 87 | H33: 2 | I33: MORANGIS1 | J33: ALEXANDRE | K33: 97 | L33: 97 | M33: 89 | N33: 2

Sheet 5QUILLES
A1: distance 5 quilles | D1: =CONCATENATE("d= ",distance_quilles_c," m² +",distance_quilles_b," m +",distance_quilles_a) -> d= -2 m² +50 m +30
B3: resultats CDBE saison 2023-2024 | H3: Ranking FFB 2023-2024 (124 joueurs) | M3: résultats révérants après 13 jours
C4: moyenne | D4: points joueurs | E4: points adverses | F4: distance | I4: min | J4: max | K4: moyenne top 10 | M4: Joueur | N4: Nb parties | O4: Total pt match | P4: distance eval | Q4: Pts Jr | R4: Pts adv | S4: Moyenne pt marqués | T4: % gain | U4: Moyenne
A5: 1er | B5: GUERIN | C5: =D5/E5 -> 1.404494382 | D5: 2000 | E5: 1424 | F5: =distance_quilles_a+distance_quilles_b*C5+distance_quilles_c*C5^2 -> 96.27951016 | I5: =MIN(K7:K130) -> 44.49295022 | J5: =MAX(K7:K130) -> 100.9310079 | K5: =AVERAGE(K7:K16) -> 83.03942282 | M5: MOREL | N5: 4 | O5: 10 | P5: =INDEX(Moyennes!$AI$6:$AI$144,MATCH(M5,Joueurs,0)) -> 72 | Q5: 634 | R5: 345 | S5: =Q5/(2*N5) -> 79.25 | T5: =(O5-N5)/(N5*2) -> 0.75 | U5: =Q5/R5 -> 1.837681159
A6: 2éme | B6: DUVERNOY | C6: =D6/E6 -> 1.75 | D6: 1946 | E6: 1112 | F6: 111.375 | I6: Nom-Prénom | J6: Moyenne | M6: CATALLO | N6: 4 | O6: 11 | P6: =INDEX(Moyennes!$AI$6:$AI$144,MATCH(M6,Joueurs,0)) -> 62 | Q6: 398 | R6: 227 | S6: =Q6/(2*N6) -> 49.75 | T6: =(O6-N6)/(N6*2) -> 0.875 | U6: 1.753303965
A7: 3éme | B7: JOYEZ | C7: 1.365454545 | D7: 1502 | E7: 1100 | F7: 94.54379504 | H7: 1 | I7: GUERIN | J7: 1.1736 | K7: =distance_quilles_a+distance_quilles_b*J7+distance_quilles_c*J7^2 -> 85.92532608 | M7: ABITBOL | N7: 4 | O7: 12 | P7: =INDEX(Moyennes!$AI$6:$AI$144,MATCH(M7,Joueurs,0)) -> 78 | Q7: 456 | R7: 273 | S7: 57 | T7: 1 | U7: 1.67032967
A8: 4éme | B8: LABLANCHE | C8: 1.077037037 | D8: 1454 | E8: 1350 | F8: 81.53183429 | H8: 2 | I8: CARREAU | J8: 1.1682 | K8: 85.68061752 | M8: LEGRAND | N8: 1 | O8: 3 | P8: =INDEX(Moyennes!$AI$6:$AI$144,MATCH(M8,Joueurs,0)) -> 66 | Q8: 114 | R8: 69 | S8: 57 | T8: 1 | U8: 1.652173913
A9: 5éme | B9: ALEXANDRE | C9: 1.005859375 | D9: 1030 | E9: 1024 | F9: 78.26946259 | H9: 3 | I9: LEMATRE | J9: 1.1257 | K9: 83.75059902 | M9: FEVER | N9: 2 | O9: 6 | P9: =INDEX(Moyennes!$AI$6:$AI$144,MATCH(M9,Joueurs,0)) -> 89 | Q9: 296 | R9: 208 | S9: 74 | T9: 1 | U9: 1.423076923
A10: 6ème | B10: WEBER | C10: 0.9861878453 | D10: 1428 | E10: 1448 | F10: 77.36425933 | H10: 4 | I10: LAMBIASE | J10: 1.0654 | K10: 80.99984568 | M10: GAROIS | N10: 7 | O10: 18 | P10: =INDEX(Moyennes!$AI$6:$AI$144,MATCH(M10,Joueurs,0)) -> 69 | Q10: 790 | R10: 616 | S10: 56.42857143 | T10: 0.7857142857 | U10: 1.282467532
A11: 7ème | B11: AIRAULT | C11: 0.7932725999 | D11: 1132 | E11: 1427 | F11: 68.40506716 | H11: 5 | I11: DUVERNOY | J11: 1.0897 | K11: 82.11010782 | M11: THENOT | N11: 5 | O11: 11 | P11: =INDEX(Moyennes!$AI$6:$AI$144,MATCH(M11,Joueurs,0)) -> 70 | Q11: 531 | R11: 420 | S11: 53.1 | T11: 0.6 | U11: 1.264285714
A12: 8ème | B12: BARDET | C12: 0.9759036145 | D12: 972 | E12: 996 | F12: 76.89040499 | H12: 6 | I12: GUINGAND | J12: 1.0942 | K12: 82.31545272 | M12: OUVRARD | N12: 5 | O12: 11 | P12: =INDEX(Moyennes!$AI$6:$AI$144,MATCH(M12,Joueurs,0)) -> 68 | Q12: 561 | R12: 499 | S12: 56.1 | T12: 0.6 | U12: 1.124248497
A13: 9ème | B13: LILLO | C13: 0.8320158103 | D13: 842 | E13: 1012 | F13: 70.2162899 | H13: 7 | I13: ROUBY | J13: 1.052 | K13: 80.386592 | M13: HOUPLAIN | N13: 2 | O13: 3 | P13: =INDEX(Moyennes!$AI$6:$AI$144,MATCH(M13,Joueurs,0)) -> 83 | Q13: 251 | R13: 226 | S13: 62.75 | T13: 0.25 | U13: 1.110619469
A14: 10ème | B14: REVAULT | C14: 0.8308333333 | D14: 997 | E14: 1200 | F14: 70.16109861 | H14: 8 | I14: GUILLEMANT | J14: 1.025 | K14: 79.14875 | M14: AIRAULT | N14: 4 | O14: 6 | P14: =INDEX(Moyennes!$AI$6:$AI$144,MATCH(M14,Joueurs,0)) -> 92 | Q14: 490 | R14: 467 | S14: 61.25 | T14: 0.25 | U14: 1.049250535
A15: 11ème | B15: TIRITILLI | C15: 0.58 | D15: 464 | E15: 800 | F15: 58.3272 | H15: 9 | I15: JUBLOT | J15: 1.2141 | K15: 87.75692238 | M15: DANIAU | N15: 2 | O15: 5 | P15: =INDEX(Moyennes!$AI$6:$AI$144,MATCH(M15,Joueurs,0)) -> 67 | Q15: 186 | R15: 189 | S15: 46.5 | T15: 0.75 | U15: 0.9841269841
A16: 12ème | B16: REIG | C16: 0.5 | D16: 400 | E16: 800 | F16: 54.5 | H16: 10 | I16: HERREBRECHT | J16: 1.0943 | K16: 82.32001502 | M16: LILLO | N16: 2 | O16: 5 | P16: =INDEX(Moyennes!$AI$6:$AI$144,MATCH(M16,Joueurs,0)) -> 69 | Q16: 234 | R16: 244 | S16: 58.5 | T16: 0.75 | U16: 0.9590163934
A17: 13ème | B17: CARLE | C17: 0.4075 | D17: 326 | E17: 800 | F17: 50.0428875 | H17: 11 | I17: DAVID | J17: 1.141 | K17: 84.446238 | M17: MICHELET | N17: 1 | O17: 2 | P17: =INDEX(Moyennes!$AI$6:$AI$144,MATCH(M17,Joueurs,0)) -> 65 | Q17: 92 | R17: 98 | S17: 46 | T17: 0.5 | U17: 0.9387755102
H18: 12 | I18: FELLINE | J18: 1.0381 | K18: 79.74969678 | M18: VIVENOT | N18: 11 | O18: 23 | P18: =INDEX(Moyennes!$AI$6:$AI$144,MATCH(M18,Joueurs,0)) -> 60 | Q18: 934 | R18: 1031 | S18: 42.45454545 | T18: 0.5454545455 | U18: 0.9059165858
H19: 13 | I19: BONGIOVANNI | J19: 1.0184 | K19: 78.84572288 | M19: LABLANCHE | N19: 4 | O19: 7 | P19: =INDEX(Moyennes!$AI$6:$AI$144,MATCH(M19,Joueurs,0)) -> 68 | Q19: 337 | R19: 372 | S19: 42.125 | T19: 0.375 | U19: 0.9059139785
H20: 14 | I20: HINGANT | J20: 1.389 | K20: 95.591358 | M20: WEBER | N20: 5 | O20: 8 | P20: =INDEX(Moyennes!$AI$6:$AI$144,MATCH(M20,Joueurs,0)) -> 66 | Q20: 461 | R20: 525 | S20: 46.1 | T20: 0.3 | U20: 0.8780952381
H21: 15 | I21: VICARI | J21: 1.1655 | K21: 85.5582195 | M21: LHOMME | N21: 3 | O21: 6 | P21: =INDEX(Moyennes!$AI$6:$AI$144,MATCH(M21,Joueurs,0)) -> 68 | Q21: 246 | R21: 281 | S21: 41 | T21: 0.5 | U21: 0.8754448399
H22: 16 | I22: MENDOLA | J22: 1.5098 | K22: 100.9310079 | M22: TRUFFAUT | N22: 2 | O22: 4 | P22: =INDEX(Moyennes!$AI$6:$AI$144,MATCH(M22,Joueurs,0)) -> 65 | Q22: 191 | R22: 222 | S22: 47.75 | T22: 0.5 | U22: 0.8603603604
H23: 17 | I23: SAINT | J23: 1.0055 | K23: 78.2529395 | M23: ALEXANDRE | N23: 6 | O23: 11 | P23: =INDEX(Moyennes!$AI$6:$AI$144,MATCH(M23,Joueurs,0)) -> 64 | Q23: 529 | R23: 617 | S23: 44.08333333 | T23: 0.4166666667 | U23: 0.8573743922
H24: 18 | I24: FOURRE | J24: 1.1499 | K24: 84.85045998 | M24: PARIS Philippe | N24: 1 | O24: 1 | P24: =INDEX(Moyennes!$AI$6:$AI$144,MATCH(M24,Joueurs,0)) -> 65 | Q24: 96 | R24: 112 | S24: 48 | T24: 0 | U24: 0.8571428571
H25: 19 | I25: PICOT | J25: 1.1869 | K25: 86.52753678 | M25: DEPARDIEU | N25: 2 | O25: 3 | P25: =INDEX(Moyennes!$AI$6:$AI$144,MATCH(M25,Joueurs,0)) -> 69 | Q25: 145 | R25: 172 | S25: 36.25 | T25: 0.25 | U25: 0.8430232558
H26: 20 | I26: COUPADE | J26: 1.2539 | K26: 89.55046958 | M26: CARLE | N26: 8 | O26: 13 | P26: =INDEX(Moyennes!$AI$6:$AI$144,MATCH(M26,Joueurs,0)) -> 64 | Q26: 635 | R26: 788 | S26: 39.6875 | T26: 0.3125 | U26: 0.8058375635
H27: 21 | I27: TREAL | J27: 1.0983 | K27: 82.50247422 | M27: JACQUIN | N27: 3 | O27: 5 | P27: =INDEX(Moyennes!$AI$6:$AI$144,MATCH(M27,Joueurs,0)) -> 64 | Q27: 222 | R27: 314 | S27: 37 | T27: 0.3333333333 | U27: 0.7070063694
H28: 22 | I28: BOUZEMANE | J28: 1.145 | K28: 84.62795 | M28: PORCU | N28: 3 | O28: 3 | P28: =INDEX(Moyennes!$AI$6:$AI$144,MATCH(M28,Joueurs,0)) -> 65 | Q28: 224 | R28: 386 | S28: 37.33333333 | T28: 0 | U28: 0.5803108808
H29: 23 | I29: GOSSART | J29: 1.1171 | K29: 83.35917518 | M29: PINTO | N29: 1 | O29: 1 | P29: =INDEX(Moyennes!$AI$6:$AI$144,MATCH(M29,Joueurs,0)) -> 65 | Q29: 49 | R29: 100 | S29: 24.5 | T29: 0 | U29: 0.49
H30: 24 | I30: RIMBOT | J30: 1.1016 | K30: 82.65295488 | M30: FLEURY | N30: 3 | O30: 3 | P30: =INDEX(Moyennes!$AI$6:$AI$144,MATCH(M30,Joueurs,0)) -> 65 | Q30: 166 | R30: 378 | S30: 27.66666667 | T30: 0 | U30: 0.4391534392
H31: 25 | I31: GEETS | J31: 1.0474 | K31: 80.17590648 | M31: LEBRUN | N31: 1 | O31: 1 | P31: =INDEX(Moyennes!$AI$6:$AI$144,MATCH(M31,Joueurs,0)) -> 65 | Q31: 45 | R31: 134 | S31: 22.5 | T31: 0 | U31: 0.3358208955
H32: 26 | I32: WALLART | J32: 1.0673 | K32: 81.08674142
H33: 27 | I33: HERREBRECHT | J33: 1.0703 | K33: 81.22391582
H34: 28 | I34: BONNEAU | J34: 1.0585 | K34: 80.6841555
H35: 29 | I35: LANUSSE | J35: 0.9237 | K35: 74.47855662
H36: 30 | I36: ANDRIA | J36: 1.0314 | K36: 79.44242808
H37: 31 | I37: DELORME | J37: 1.0466 | K37: 80.13925688
H38: 32 | I38: LEBOEUF | J38: 0.9951 | K38: 77.77455198
H39: 33 | I39: SAUVAGE | J39: 0.9954 | K39: =distance_quilles_a+distance_quilles_b*J39+distance_quilles_c*J39^2 -> 77.78835768
H40: 34 | I40: SAILLANT | J40: 1.0591 | K40: 80.71161438
H41: 35 | I41: VOI | J41: 1.0548 | K41: 80.51479392
H42: 36 | I42: HERREBRECHT | J42: 1.0531 | K42: 80.43696078
H43: 37 | I43: LUCQUIN | J43: 1.0704 | K43: 81.22848768
H44: 38 | I44: PAPIN | J44: 1.0771 | K44: 81.53471118
H45: 39 | I45: GOUTALOY | J45: 1 | K45: 78
H46: 40 | I46: PERRIN | J46: 1.0574 | K46: 80.63381048
H47: 41 | I47: GODARD | J47: 0.8929 | K47: 73.05045918
H48: 42 | I48: SACRE | J48: 0.9526 | K48: 75.81510648
H49: 43 | I49: COSTA | J49: 1.0381 | K49: 79.74969678
H50: 44 | I50: ACETO | J50: 1.1256 | K50: 83.74604928
H51: 45 | I51: LORIN | J51: 0.9469 | K51: 75.55176078
H52: 46 | I52: DI | J52: 0.9431 | K52: 75.37612478
H53: 47 | I53: DEMILLY | J53: 1.0415 | K53: 79.9055555
H54: 48 | I54: RAHMANI | J54: 1.0038 | K54: 78.17477112
H55: 49 | I55: VERHAGHE | J55: 0.9743 | K55: 76.81647902
H56: 50 | I56: DUGAY | J56: 0.9365 | K56: 75.0709355
H57: 51 | I57: ACUNZO | J57: 0.943 | K57: 75.371502
H58: 52 | I58: RUBLINE | J58: 0.9561 | K58: 75.97674558
H59: 53 | I59: LEPAGE | J59: 0.838 | K59: 70.495512
H60: 54 | I60: MODAFFERI | J60: 1.1093 | K60: 83.00390702
H61: 55 | I61: FONTAINE | J61: 1.1415 | K61: 84.4689555
H62: 56 | I62: ROBERGE | J62: 0.9935 | K62: 77.7009155
H63: 57 | I63: MOREL | J63: 0.9772 | K63: 76.95016032
H64: 58 | I64: DELALANDE | J64: 0.9391 | K64: 75.19118238
H65: 59 | I65: VEREECQUE | J65: 1.003 | K65: 78.137982
H66: 60 | I66: DELORME | J66: 0.7925 | K66: 68.3688875
H67: 61 | I67: BAYON | J67: 0.9761 | K67: 76.89945758
H68: 62 | I68: CHARLES | J68: 0.8386 | K68: 70.52350008
H69: 63 | I69: BORNEQUE | J69: 0.7818 | K69: 67.86757752
H70: 64 | I70: BAUDET | J70: 1.0017 | K70: 78.07819422
H71: 65 | I71: JACQ | J71: 0.8275 | K71: =distance_quilles_a+distance_quilles_b*J71+distance_quilles_c*J71^2 -> 70.0054875
H72: 66 | I72: MARCHISSEAU | J72: 0.8668 | K72: 71.83731552
H73: 67 | I73: JUBLOT | J73: 0.9231 | K73: 74.45077278
H74: 68 | I74: HERVELIN | J74: 1.2404 | K74: 88.94281568
H75: 69 | I75: NAHIRNYJ | J75: 1.0405 | K75: 79.8597195
H76: 70 | I76: HUGEL | J76: 0.8458 | K76: 70.85924472
H77: 71 | I77: VIERA | J77: 1.0812 | K77: 81.72201312
H78: 72 | I78: BUTTI | J78: 0.6297 | K78: 60.69195582
H79: 73 | I79: BAUDRY | J79: 0.7536 | K79: 66.54417408
H80: 74 | I80: MIKDAD | J80: 0.9254 | K80: 74.55726968
H81: 75 | I81: MICHELOTTI | J81: 0.8119 | K81: 69.27663678
H82: 76 | I82: BARDET | J82: 0.882 | K82: 72.544152
H83: 77 | I83: DAVOINE | J83: 1.1054 | K83: 82.82618168
H84: 78 | I84: KERCRET | J84: 0.6687 | K84: 62.54068062
H85: 79 | I85: BELLENS | J85: 0.9464 | K85: 75.52865408
H86: 80 | I86: REYNAERT | J86: 0.8675 | K86: 71.8698875
H87: 81 | I87: MAILLE | J87: 0.835 | K87: 70.35555
H88: 82 | I88: LEJEUNE | J88: 0.9191 | K88: 74.26551038
H89: 83 | I89: MORMICHE | J89: 1.0089 | K89: 78.40924158
H90: 84 | I90: BONVILLE | J90: 0.686 | K90: 63.358808
H91: 85 | I91: GUERIN | J91: 0.6737 | K91: 62.77725662
H92: 86 | I92: AUCLAIR | J92: 1.0067 | K92: 78.30811022
H93: 87 | I93: CHESNEAU | J93: 0.6587 | K93: 62.06722862
H94: 88 | I94: GANGLOFF | J94: 0.9848 | K94: 77.30033792
H95: 89 | I95: ASTIC | J95: 0.9294 | K95: 74.74243128
H96: 90 | I96: ROBIC | J96: 0.8576 | K96: 71.40904448
H97: 91 | I97: FONTAINE | J97: 0.8009 | K97: 68.76211838
H98: 92 | I98: BILLIARD | J98: 0.805 | K98: 68.95395
H99: 93 | I99: BERTELOOT | J99: 0.7715 | K99: 67.3845755
H100: 94 | I100: POULEYN | J100: 0.7683 | K100: 67.23443022
H101: 95 | I101: GAROIS | J101: 0.8119 | K101: 69.27663678
H102: 96 | I102: LABLANCHE | J102: 0.7829 | K102: 67.91913518
H103: 97 | I103: HAYES | J103: 0.7444 | K103: =distance_quilles_a+distance_quilles_b*J103+distance_quilles_c*J103^2 -> 66.11173728
H104: 98 | I104: JOASEM | J104: 0.5433 | K104: 56.57465022
H105: 99 | I105: BUTTI | J105: 0.4556 | K105: 52.36485728
H106: 100 | I106: VAROQUEAUX | J106: 1.0617 | K106: 80.83058622
H107: 101 | I107: JANVIER | J107: 0.9365 | K107: 75.0709355
H108: 102 | I108: CLAUSSE | J108: 0.8235 | K108: 69.8186955
H109: 103 | I109: VEREECQUE | J109: 0.7701 | K109: 67.31889198
H110: 104 | I110: VEREECQUE | J110: 0.7425 | K110: 66.0223875
H111: 105 | I111: PARENT | J111: 0.6842 | K111: 63.27374072
H112: 106 | I112: EVENOU | J112: 0.3483 | K112: 47.17237422
H113: 107 | I113: FAURE | J113: 1.0122 | K113: 78.56090232
H114: 108 | I114: TRANNIN | J114: 0.9472 | K114: 75.56562432
H115: 109 | I115: WEBER | J115: 0.82 | K115: 69.6552
H116: 110 | I116: DELORME | J116: 0.69 | K116: 63.5478
H117: 111 | I117: STEINMANN | J117: 0.67 | K117: 62.6022
H118: 112 | I118: BOZON | J118: 0.6533 | K118: 61.81139822
H119: 113 | I119: SORTAIS | J119: 0.63 | K119: 60.7062
H120: 114 | I120: CHANTARAUD | J120: 0.63 | K120: 60.7062
H121: 115 | I121: ROUBY | J121: 0.6067 | K121: 59.59883022
H122: 116 | I122: ASTIC | J122: 0.5933 | K122: 58.96099022
H123: 117 | I123: COTEZ | J123: 0.56 | K123: 57.3728
H124: 118 | I124: NAHIRNYJ | J124: 0.55 | K124: 56.895
H125: 119 | I125: MALEK | J125: 0.55 | K125: 56.895
H126: 120 | I126: FRANCOIS | J126: 0.4967 | K126: 54.34157822
H127: 121 | I127: TAIEB | J127: 0.4967 | K127: 54.34157822
H128: 122 | I128: POULET | J128: 0.49 | K128: 54.0198
H129: 123 | I129: FATOUS | J129: 0.49 | K129: 54.0198
H130: 124 | I130: LECROART | J130: 0.2933 | K130: 44.49295022
